Workbook

Sheet Index
B2: Revenue Reset Information Pro Formas
B4: INDEX | C4: Click on orange box for link to pages
B7: Historic Opex | D7: Historic Capex
B8: Table 1.1 | C8: Historic Opex by Category - Summary | D8: Table 3.1 | E8: Historic Capex by Category
B9: 1.2 | C9: Historic Opex by Category Year 1 | D9: 3.2 | E9: Historic Capex by Asset Class
B10: 1.3 | C10: Historic Opex by Category Year 2 | D10: 3.3 | E10: Historic Capex - Network
B11: 1.4 | C11: Historic Opex by Category Year 3 | D11: 3.4 | E11: Historic Capex - Non-Network
B12: 1.5 | C12: Historic Opex by Category Year 4
B13: 1.6 | C13: Historic Opex by Category Year 5
B16: Forecast Opex | D16: Forecast Capex
B17: Table 2.1 | C17: Forecast Opex by Category - Summary | D17: Table 4.1 | E17: Forecast Capex by Category
B18: 2.2 | C18: Forecast Opex by Category Year 6 | D18: 4.2 | E18: Forecast Capex by Asset Class
B19: 2.3 | C19: Forecast Opex by Category Year 7 | D19: 4.3 | E19: Forecast Capex - Network
B20: 2.4 | C20: Forecast Opex by Category Year 8 | D20: 4.4 | E20: Forecast Capex - Non-Network
B21: 2.5 | C21: Forecast Opex by Category Year 9
B22: 2.6 | C22: Forecast Opex by Category Year 10
B25: Commentary | D25: Instructions / Definitions
B26: Table 5.1 | C26: Commentary on Opex | D26: Table 6.1 | E26: Opex Instructions
B27: 5.2 | C27: Commentary on Historic Capex | D27: 6.2 | E27: Historic Capex Instructions
B28: 5.3 | C28: Commentary on Forecast Capex | D28: 6.3 | E28: Forecast Capex Instructions

Sheet Opex Commentary
A1: 5.1 Historic and Forecast Opex Commentary proforma: key cost drivers
A3: This pro forma is designed to allow the TNSP to provide context and background for the quantitative opex templates. | C3: Home
A5: The historic opex tables (1.1 - 1.7) provide a column where the key cost drivers for historic opex should be briefly listed. This commentary pro forma provides opportunity for more detailed explanations regarding material changes
A7: The forecast opex tables (2.1 - 2.7) provide a similar column where the key cost drivers for forecast opex should be briefly listed. This commentary pro forma provides the opportunity for more detailed explanations regarding material changes in particular | C7: Link to Historic Opex Summary - Table 1.1
A9: The commentary should address the following:
A11: >The main cost drivers for the particular opex item (eg changes in CPI, legislative and regulatory requirements, environmental factors). | C11: Link to Forecast Opex Summary - Table 2.1
A12: >Were these increases foreseeable? If not, why not?
A13: >Details of management induced opex efficiencies achieved.
A14: >Major opex risks and mitigation strategies.
A15: >Key Performance Indicators – are these benchmarked against other transmission companies?
A17: In addition, the TNSP is requested to provide:
A19: >Its capitalisation policy and details on how it is applied.
A20: >Definitions of ‘opex’ and ‘capex’ used by the business. Further, the TNSP should provide definitions for the categories and activities used in the opex templates. These definitions should be added to the definition section in table 6.1
A21: >A discussion on the relationship between opex and capex.
A22: >Details of changes in accounting policies over the past regulatory period and how they may have impacted on opex in general or specific opex items.
A25: Commentary on cost drivers and material changes over the current regulatory period
A26: Refer section 4.4 of the Revenue Proposal for discussion on cost drivers and material changes in the current regulatory period.
A30: Supporting information
A31: Please list documentation substantiating the reason for change
A32: As above
A36: Commentary on cost drivers and material changes affecting the upcoming regulatory period
A37: Refer section 6.6 of the Revenue Proposal for discussion on key inputs and assumptions. Also refer chapter 5 of the Revised Revenue Proposal for additional comments on the adjustments from the draft decision
A39: Supporting information
A40: Please list documentation substantiating the reason for change
A41: As above

Sheet Commentary on Historic Capex (hidden)
A1: 5.2 Historic Capex Commentary Proforma: reasons for variance
A3: This pro forma is designed to allow TNSP's to provide context and background for the quantitative historic capex templates. | C3: Home
A5: Tables 3.3 & 3.4 provide a column where reasons for capex cost variances may be briefly listed. This pro forma provides the opportunity for more detailed reasons to be given for material differences between actual project costs and amounts included in th
A7: The commentary should address the following:
C8: Link to Historic Capex by category - Table 3.1
A9: >The main reasons for the project being undertaken (eg. demand growth)
A10: >The main reasons for material cost variances for the particular project (eg changes in material costs, legislative and regulatory requirements, environmental factors, technology changes) and whether they were forseeable.
A11: >The main reason for any material variance in commissioning date (e.g delays in supply of materials, environmental approvals etc) and whether they were forseeable.
A12: >How does the project align with the TNSP's asset management strategy/plan?
A13: >Reference to the project's assessment in the TNSP's Annual Planning Reports. | C13: Link to Historic Capex by Asset Class - Table 3.2
A14: >Details of management induced capex efficiencies which have reduced costs.
A15: >Major project risks and strategies undertaken to mitigate them.
A17: In addition, the TNSP is requested to provide:
A19: >Details of its capital expenditure planning, development and approval processes.
A20: >Details of its overall asset management strategy. | C20: Link to Historic Capex - Network - Table 3.3
A21: >Relevant Annual Planning Reports.
A22: >For augmentations greater than $10M, the Regulatory Test documentation.
A23: >For non-augmentation projects, the business case assessment documentation.
A24: >Capitalisation policy.
A25: Commentary on reasons for variance
A26: Refer comments in Tables 3.3 and 3.4 and Section 4.3 of the Revenue Proposal
C27: Link to Historic Capex - Non-Network - Table 3.4
A33: Supporting information
A34: Please list documentation in support of reasons
A35: Refer to Section 4.3 of the Revenue Proposal

Sheet Commentary on Forecast Capex (hidden)
A1: 5.3 Forecast Capex Commentary Proforma: reasons for project
A3: This pro forma is designed to provide context and background for the quantitative forecast capex templates, by specifying matters that the AER will take into account in assessing the TNSP’s proposed expenditure. | C3: Home
A5: Table 4.3 provides a column where reasons for the project can be provided. This pro forma provides the opportunity for more detailed reasons to be given for factors influencing the proposed spend, including load growth, planned generation and the range o
A7: The commentary should address the following: | C7: Link to Forecast Capex by category - Table 4.1
A9: >The theme sets upon which the proposed capex spend is based
A10: > The scenarios derived from the above theme sets and their relevant probabilities.
A11: > Project specific information in addition to the cost information provided in the forward capex templates.
A14: In addition, the TNSP is requested to provide: | C14: Link to Forecast by Asset Class - Table 4.2
A16: >Details of its capital expenditure and approvals processes.
A17: >Details of its overall asset management strategy/plan.
A18: >Relevant Annual Planning Reports.
A19: >Consultants reports on the probabilistic methodology adopted, its assumptions, inputs and detailed information on the outcomes.
C21: Link to Forecast Capex - Network - Table 4.3
A22: Theme sets and Scenarios modelled
A23: Refer to Section 5.7.2 of the Revenue Proposal for discussion on load and generation scenarios modelled
A24: Refer to chapter 4 of the Revised Revenue Proposal for additional comments on variations from the Draft Decision.
A28: Supporting information | C28: Link to Forecast Capex - Non-Network - Table 4.4
A29: Please list documentation in support of reasons
A30: Refer to Section 3.5 of the Revenue Proposal for discussion on ElectraNet's approach to asset management including Regional Development Plans and Asset Management Plan
A31: Refer to Sections 5.6 and 5.7 of the Revenue Proposal for discussion on ElectraNet's forecasting methodology and key inputs and assumptions
A32: Appendix G of the Revenue Proposal includes project summaries including discussion of the investment need for network projects estimated to cost $1m or more

Sheet Opex Instructions
A1: 6.1 OPEX - Instructions and definitions
A3: PURPOSE OF INFORMATION AND USE BY THE AER: | B3: The historic worksheets (1.1 to 1.7) are a key input into the AER's assessment of a TNSP's historic opex performance to assist it in establishing a starting point from which to set efficient opex for the next regulatory period. | D3: Home
B4: The forecast worksheets (2.1 to 2.6) are a key input into the AER's assessment of a TNSPs proposed forecast opex.
B5: Key cost drivers for expenditure are important to the AER's understanding of what has happened in the current regulatory period and any step changes in opex claimed for the next regulatory period.
A7: METHODOLOGY | B7: Data has been input on the basis of the definitions provided.
B8: All expenditure relates to the provision of prescribed services.
B9: Key cost drivers for expenditure: reasons for material changes in costs have been expanded upon in the relevant opex commentary proforma.
B10: Templates have been completed in accordance with the instructions contained in the AER's Information Requirements Guidelines (eg. cost allocation methodology.)
B11: Values for 2006/07 and 2007/08 are estimated values only
A13: DEFINITIONS | B13: Asset Manager Support: those operational activities to support the strategic development and ongoing asset management of the network. Asset Management Support has 4 major sub-elements: Grid Planning, Project Support, IT Support, and Network Customer & Regulatory Support
B14: Asset monitoring: the asset monitoring team performing remote monitoring of ElectraNet’s network.
B15: Condition based maintenance: maintenance activities based on inspection/assessment of the condition of an asset.
B16: Corporate Support: the support activities required by ElectraNet in order to ensure adequate and effective corporate governance. The two aspects of corporate support are: Insurance and Corporate Support.
B17: Corrective maintenance: activities that restore a failed component to an operational state.
B18: Direct Charges: costs associated with owning and managing assets, which include council rates charges, water charges, electricity bills and permits etc.
B19: Field maintenance: includes all field activities, performed by maintenance service providers, to ensure the item of plant can perform its required functions.
B20: Field Support: field-based activities provided by ElectraNet and service providers which are not directly related to working on an item of plant.
B21: Key cost drivers: significant factors driving expenditure such as age and condition of assets, size of network, CPI, labour costs, legislative requirements.
B22: Network Monitoring and control: includes all activities in operating and monitoring assets in the field.
B23: Network switching: the control centre function and ongoing management of the energy management system (EMS).
B24: Non-network: all activities not directly related to the operation and maintenance of the network, including administrative, planning and engineering support costs.
B25: Operational refurbishment: TNSP to provide definition.
B26: Opex: expenditure related to operating and maintaining assets which is not capex.
B27: Routine maintenance: recurrent activities undertaken to maintain assets.
B28: Support/corporate: opex that is not directly related to maintenance activities.

Sheet Historic Capex Instructions (hidden)
A1: 6.2 HISTORIC CAPEX - Instructions and definitions
A3: PURPOSE OF INFORMATION AND USE BY THE AER: | B3: The templates are key inputs into the AER's assessment of historic capex and will assist in the analysis of the prudency of expenditure. | D3: Home
B4: Specifying expenditure by project enables the AER to select projects on which to undertake more detailed analysis.
B5: The capex categories are essentially divided between Network and Non-network. Network includes augmentation capex which is subject to the Regulatory Test.
A7: METHODOLOGY: | B7: Data to be input on the basis of the definitions provided.
B8: All expenditure must relate to the provision of prescribed services.
B9: Categorisation of capex should be performed according to the primary reason for expenditure.
B10: Capex amounts should be entered on an as-commissioned basis, excluding customer contributions.
B11: Reasons for variance: if actual expenditure materially varies from the amount determined under the Regulatory Test/Business case, or the date of commissioning was later than planned, then reasons should be given on the Historic Capex Commentary pro forma
B12: Templates must be completed according to the instructions contained in the AER's Information Requirements Guidelines.
B13: Values for 2005/06 and 2006/07 are estimated values only.
A15: DEFINITIONS: | B15: Augmentation: are as defined under the National Electricity Rules (NER) as works to enlarge a network or to increase the capability of a network to transmit (or distribute) active energy.
B16: Business case: a detailed cost/benefit analysis undertaken to support an investment.
B17: Capex: expenditure that satisfies one or more of the following requirements - relates to the purchase or construction of a new asset; increases the functionality of the asset; or extends the service life of the asset.
B18: Connections: changes to connections between the transmission and distribution networks.
B19: Easements: land acquisitions and rights of way for transmission lines.
B20: IDC: interest during construction - interest charges up to the point of completion of the project.
B21: IT: Business IT expenditure.
B22: Other (Load Driven): anything else driven by increasing load.
B23: Other (Non-Load Driven): all other projects associated with the network which provides prescribed transmission services such as communications systems enhancements.
B24: Project ID: A unique numerical identifier for a given project
B25: Project Description: A short description of the project
B26: Regulatory Test: the test as promulgated by the ACCC to assess augmentation expenditure. A prudency test must be applied to other capex undertaken in the current regulatory period.
B27: Replacements: replacement or life extension of network assets.
B28: Security/Compliance: projects undertaken to ensure the physical security of assets and compliance with amendments to various technical, safety or environmental legislation.
B29: Support the business: non-network capex relating to commercial buildings, motor vehicles and tools (but excluding IT).

Sheet Forecast Capex Instructions (hidden)
A1: 6.3 FORECAST CAPEX - Instructions and definitions
A3: PURPOSE OF INFORMATION AND USE BY THE AER: | B3: The templates are key inputs into the AER's assessment of forecast capex and will enable an analysis of the proposed expenditure. | D3: Home
B4: Specifying expenditure by project enables the AER to select projects on which to undertake more detailed analysis.
D6: Link to Forecast Capex commentary - Table 5.3
A7: METHODOLOGY: | B7: Data has been input on the basis of the definitions provided.
B8: All expenditure relates to the provision of prescribed services.
B9: Categorisation of capex has been performed according to the primary reason for expenditure.
B10: Capex amounts has been entered on an as-incurred basis, excluding customer contributions.
B11: Customer contributions are noted separately.
B12: Templates have been completed according to the instructions contained in the AER's Information Requirements Guidelines.
B13: The TNSP is also requested to provide consultants reports on the probabilistic methodology adopted, including information on theme sets and scenarios upon which the proposed capex spend is based. Further, details on the consultants assumptions, inputs and
A14: DEFINITIONS: | B14: Augmentation: are as defined under the National Electricity Rules (NER) as works to enlarge a network or to increase the capability of a network to transmit (or distribute) active energy.
B15: Business case: a detailed cost/benefit analysis undertaken to support an investment.
B16: Capex: expenditure that satisfies one or more of the following requirements - relates to the purchase or construction of a new asset; increases the functionality of the asset; or extends the service life of the asset.
B17: Connections: changes to connections between the transmission and distribution networks.
B18: Easements: land acquisitions and rights of way for transmission lines.
B19: IDC: interest during construction - interest charges up to the point of completion of the project.
B20: IT: Business IT expenditure.
B21: Other (Load Driven): anything else driven by increasing load.
B22: Other (Non-Load Driven): all other projects associated with the network which provides prescribed transmission services such as communications systems enhancements.
B23: Project ID: A unique numerical identifier for a given project
B24: Project Description: A short description of the project
B25: Regulatory Test: the test as promulgated by the ACCC to assess augmentation expenditure. A prudency test must be applied to other capex undertaken in the current regulatory period.
B26: Replacements: replacement or life extension of network assets.
B27: Security/Compliance: projects undertaken to ensure the physical security of assets and compliance with amendments to various technical, safety or environmental legislation.
B28: Support the business: non-network capex relating to commercial buildings, motor vehicles and tools (but excluding IT).

Sheet Hist Opex Cat. Yr0.5 (hidden)
D2: Home | F2: Link to Opex instructions - Table 6.1
B3: 1.2 HISTORIC OPEX by expenditure category
B4: for the year ended 30 June 2003
B5: ($m, nominal) | D5: Half Year Ended 30 June 2003
D6: Field Maintenance | G6: Operational Refurbishment | I6: Network Monitoring & Control | J6: Support / Corporate
D7: Routine | E7: Condition-Based | F7: Corrective | H7: Maintenance Support | J7: Network | K7: Non-Network | M7: TOTAL | O7: Revenue Cap Allowance
B8: Direct Operations & Maintenance
B9: Maintenance
B10: Communications
B11: Labour
B12: Non Labour
B13: Sub-Totals
B14: Lines
B15: Labour
B16: Non Labour
B17: Sub-Totals
B18: Secondary Systems
B19: Labour
B20: Non Labour
B21: Sub-Totals
B22: Substations
B23: Labour
B24: Non Labour
B25: Sub-Totals
B26: Easements
B27: Labour
B28: Non Labour
B29: Sub-Totals
B30: Summary
B31: Sub-Total Labour
B32: Sub-Total Non Labour
B33: Total Maintenance
B34: Field Support
B35: Field Support
B36: Direct Charges
B37: Total Field Support
B38: Operations
B39: Network Switching
B40: Asset Monitoring
B41: Total Operations
B42: Total Direct Operations & Maintenance
B43: Other Controllable
B44: Asset Manager Support
B45: Grid Planning
B46: Project Support
B47: IT Support
B48: Customer & Regulatory Support
B49: Sub-Totals
B50: Corporate Support
B51: Insurance
B52: Corporate Support
B53: Sub-Totals
B54: Total Other Controllable
B55: Summary
B56: Total Maintenance Labour1
B57: Total Maintenance Non labour2
B58: Total Other3
B59: TOTAL CONTROLLABLE OPEX
B61: Other Opex
B62: Network Support
B63: TOTAL OTHER OPEX
B66: Grand Total
B68: Revenue Cap Allowance
B72: 1 Total Maintenance Labour is the total combination of all Field Maintenance items
B73: 2Total Maintenance Non Labour is total combination of all Field Maintenance items
B74: 3The Total Other are all costs sourced from the opex line items including and below Field Support
B75: Labour includes the labour component of both in-house and external maintenance service providers

Sheet Hist Opex Summary New
C2: Home | D2: Link to Opex instructions - Table 6.1
B3: 2.1 Future by expenditure category
B4: for the period 1 July 2008 to 30 June 2013
B6: ($m, nominal)
C7: 2008/09 | D7: 2009/10 | E7: 2010/11 | F7: 2011/12 | G7: 2012/13 | H7: Total | J7: Revenue Cap Allowance | L7: Key cost drivers and explanation for material differences over time
B8: Direct Operations & Maintenance | L8: Detailed for explanation for variances is provided in Section 6.8.2 of the Revenue Proposal.
B9: Field Maintenance
B10: Communications
B11: Labour | C11: ='Hist Opex Cat Yr1 New'!$M11 -> 0.7268894182 | D11: ='Hist Opex Cat Yr2 New'!$M11 -> 0.9235678404 | E11: ='Hist Opex Cat Yr3 New'!$M11 -> 0.8613866215 | F11: ='Hist Opex Cat Yr4 New'!$M11 -> 0.6676342468 | G11: ='Hist Opex Cat Yr5 New'!$M11 -> 0.6144489935 | H11: =SUM(C11:G11) -> 3.79392712 | N11: =SUM(C11:E11) -> 2.51184388
B12: Materials | C12: ='Hist Opex Cat Yr1 New'!$M12 -> 0.9676575818 | D12: ='Hist Opex Cat Yr2 New'!$M12 -> 0.6904751596 | E12: ='Hist Opex Cat Yr3 New'!$M12 -> 0.6175855098 | F12: ='Hist Opex Cat Yr4 New'!$M12 -> 1.442365753 | G12: ='Hist Opex Cat Yr5 New'!$M12 -> 1.617731957 | H12: 5.335815961 | N12: =SUM(C12:E12) -> 2.275718251
B13: Sub-Totals | C13: =C12+C11 -> 1.694547 | D13: =D12+D11 -> 1.614043 | E13: 1.478972131 | F13: 2.11 | G13: 2.23218095 | H13: =SUM(C13:G13) -> 9.129743081 | J13: =SUM('Hist Opex Cat Yr1 New:Hist Opex Cat Yr5 New'!O13) -> 11.12324769 | N13: 4.787562131
B14: Lines | N14: 0
B15: Labour | C15: ='Hist Opex Cat Yr1 New'!$M15 -> 2.097196935 | D15: ='Hist Opex Cat Yr2 New'!$M15 -> 2.572705874 | E15: ='Hist Opex Cat Yr3 New'!$M15 -> 4.362887437 | F15: ='Hist Opex Cat Yr4 New'!$M15 -> 2.8230779 | G15: ='Hist Opex Cat Yr5 New'!$M15 -> 1.858692008 | H15: =SUM(C15:G15) -> 13.71456015 | N15: 9.032790246
B16: Materials | C16: ='Hist Opex Cat Yr1 New'!$M16 -> 2.432803065 | D16: ='Hist Opex Cat Yr2 New'!$M16 -> 2.987294126 | E16: ='Hist Opex Cat Yr3 New'!$M16 -> 5.137112563 | F16: ='Hist Opex Cat Yr4 New'!$M16 -> 10.93770722 | G16: ='Hist Opex Cat Yr5 New'!$M16 -> 6.883743812 | H16: 28.37866078 | N16: 10.55720975
B17: Sub-Totals | C17: =C16+C15 -> 4.53 | D17: =D16+D15 -> 5.56 | E17: =E16+E15 -> 9.5 | F17: =F16+F15 -> 13.76078512 | G17: =G16+G15 -> 8.74243582 | H17: 42.09322094 | J17: =SUM('Hist Opex Cat Yr1 New:Hist Opex Cat Yr5 New'!O17) -> 30.09808101 | N17: 19.59
B18: Secondary Systems | N18: 0
B19: Labour | C19: ='Hist Opex Cat Yr1 New'!$M19 -> 1.458033687 | D19: ='Hist Opex Cat Yr2 New'!$M19 -> 1.938591255 | E19: ='Hist Opex Cat Yr3 New'!$M19 -> 1.312435923 | F19: ='Hist Opex Cat Yr4 New'!$M19 -> 1.205702818 | G19: ='Hist Opex Cat Yr5 New'!$M19 -> 0.9752048267 | H19: 6.889968509 | N19: 4.709060865
B20: Materials | C20: ='Hist Opex Cat Yr1 New'!$M20 -> 0.5919663132 | D20: ='Hist Opex Cat Yr2 New'!$M20 -> 0.811408745 | E20: ='Hist Opex Cat Yr3 New'!$M20 -> 0.3385640773 | F20: ='Hist Opex Cat Yr4 New'!$M20 -> 0.8142971819 | G20: ='Hist Opex Cat Yr5 New'!$M20 -> 0.8549225533 | H20: 3.411158871 | N20: 1.741939135
B21: Sub-Totals | C21: =C20+C19 -> 2.05 | D21: =D20+D19 -> 2.75 | E21: =E20+E19 -> 1.651 | F21: =F20+F19 -> 2.02 | G21: =G20+G19 -> 1.83012738 | H21: 10.30112738 | J21: =SUM('Hist Opex Cat Yr1 New:Hist Opex Cat Yr5 New'!O21) -> 14.00829662 | N21: 6.451
B22: Substations | N22: 0
B23: Labour | C23: ='Hist Opex Cat Yr1 New'!$M23 -> 7.32431771 | D23: ='Hist Opex Cat Yr2 New'!$M23 -> 8.006810288 | E23: ='Hist Opex Cat Yr3 New'!$M23 -> 8.597816436 | F23: ='Hist Opex Cat Yr4 New'!$M23 -> 5.714333382 | G23: ='Hist Opex Cat Yr5 New'!$M23 -> 6.865878687 | H23: 36.5091565 | N23: 23.92894443
B24: Materials | C24: ='Hist Opex Cat Yr1 New'!$M24 -> 3.55145829 | D24: ='Hist Opex Cat Yr2 New'!$M24 -> 3.543189712 | E24: ='Hist Opex Cat Yr3 New'!$M24 -> 3.509752564 | F24: ='Hist Opex Cat Yr4 New'!$M24 -> 6.085666618 | G24: ='Hist Opex Cat Yr5 New'!$M24 -> 7.433801943 | H24: 24.12386913 | N24: 10.60440057
B25: Sub-Totals | C25: =C24+C23 -> 10.875776 | D25: =D24+D23 -> 11.55 | E25: =E24+E23 -> 12.107569 | F25: =F24+F23 -> 11.8 | G25: =G24+G23 -> 14.29968063 | H25: 60.63302563 | J25: =SUM('Hist Opex Cat Yr1 New:Hist Opex Cat Yr5 New'!O25) -> 55.03047904 | N25: 34.533345
B26: Easements | N26: 0
B27: Labour | C27: ='Hist Opex Cat Yr1 New'!$M27 -> 1.073543486 | D27: ='Hist Opex Cat Yr2 New'!$M27 -> 1.210230595 | E27: ='Hist Opex Cat Yr3 New'!$M27 -> 1.186665845 | F27: ='Hist Opex Cat Yr4 New'!$M27 -> 0.8070146303 | G27: ='Hist Opex Cat Yr5 New'!$M27 -> 0.785432499 | H27: 5.062887054 | N27: 3.470439925
B28: Materials | C28: ='Hist Opex Cat Yr1 New'!$M28 -> 0.4485265144 | D28: ='Hist Opex Cat Yr2 New'!$M28 -> 0.4297694053 | E28: ='Hist Opex Cat Yr3 New'!$M28 -> 0.4083341554 | F28: ='Hist Opex Cat Yr4 New'!$M28 -> 0.7329853697 | G28: ='Hist Opex Cat Yr5 New'!$M28 -> 0.690338221 | H28: 2.709953666 | N28: 1.286630075
B29: Sub-Totals | C29: =C28+C27 -> 1.52207 | D29: =D28+D27 -> 1.64 | E29: =E28+E27 -> 1.595 | F29: =F28+F27 -> 1.54 | G29: =G28+G27 -> 1.47577072 | H29: 7.77284072 | J29: =SUM('Hist Opex Cat Yr1 New:Hist Opex Cat Yr5 New'!O29) -> 5.859195082 | N29: 4.75707
B30: Summary
B31: Sub-Total Labour | C31: =C27+C23+C19+C15+C11 -> 12.67998124 | D31: =D27+D23+D19+D15+D11 -> 14.65190585 | E31: 16.32119226 | F31: 11.21776298 | G31: 11.09965701 | H31: 65.97049934
B32: Sub-Total Non Labour | C32: =C28+C24+C20+C16+C12 -> 7.992411764 | D32: =D28+D24+D20+D16+D12 -> 8.462137148 | E32: 10.01134887 | F32: 20.01302214 | G32: 17.48053849 | H32: 63.95945841
B33: Total Maintenance | C33: =C32+C31 -> 20.672393 | D33: =D32+D31 -> 23.114043 | E33: 26.33254113 | F33: 31.23078512 | G33: 28.5801955 | H33: 129.9299577 | J33: =SUM(J13:J29) -> 116.1192994
B34: Field Support
B35: Field Support | C35: ='Hist Opex Cat Yr1 New'!$M35 -> 4.637425155 | D35: ='Hist Opex Cat Yr2 New'!$M35 -> 4.553722315 | E35: ='Hist Opex Cat Yr3 New'!$M35 -> 4.72050843 | F35: ='Hist Opex Cat Yr4 New'!$M35 -> 10.36 | G35: ='Hist Opex Cat Yr5 New'!$M35 -> 7.07520283 | H35: 31.34685873 | J35: =SUM('Hist Opex Cat Yr1 New:Hist Opex Cat Yr5 New'!O35) -> 36.58720238
B36: Direct Charges | C36: ='Hist Opex Cat Yr1 New'!$M36 -> 3.64198612 | D36: ='Hist Opex Cat Yr2 New'!$M36 -> 3.60482554 | E36: ='Hist Opex Cat Yr3 New'!$M36 -> 3.71573743 | F36: ='Hist Opex Cat Yr4 New'!$M36 -> 3.66 | G36: ='Hist Opex Cat Yr5 New'!$M36 -> 3.85836036 | H36: 18.48090945 | J36: =SUM('Hist Opex Cat Yr1 New:Hist Opex Cat Yr5 New'!O36) -> 10.71308738
B37: Total Field Support | C37: =C36+C35 -> 8.279411275 | D37: =D36+D35 -> 8.158547855 | E37: =E36+E35 -> 8.43624586 | F37: =F36+F35 -> 14.02 | G37: =G36+G35 -> 10.93356319 | H37: 49.82776818 | J37: =J36+J35 -> 47.30028976
B38: Operations
B39: Network Switching | C39: ='Hist Opex Cat Yr1 New'!$M39 -> 5.465422023 | D39: ='Hist Opex Cat Yr2 New'!$M39 -> 5.013832942 | E39: ='Hist Opex Cat Yr3 New'!$M39 -> 5.321306 | F39: ='Hist Opex Cat Yr4 New'!$M39 -> 3.255 | G39: ='Hist Opex Cat Yr5 New'!$M39 -> 7.05392881 | H39: 26.10948978 | J39: =SUM('Hist Opex Cat Yr1 New:Hist Opex Cat Yr5 New'!O39) -> 7.815258012
B40: Asset Monitoring | C40: ='Hist Opex Cat Yr1 New'!$M40 -> 1.82963143 | D40: ='Hist Opex Cat Yr2 New'!$M40 -> 1.678455258 | E40: ='Hist Opex Cat Yr3 New'!$M40 -> 1.60251142 | F40: ='Hist Opex Cat Yr4 New'!$M40 -> 1.417 | G40: ='Hist Opex Cat Yr5 New'!$M40 -> 1.87759711 | H40: 8.405195218 | J40: =SUM('Hist Opex Cat Yr1 New:Hist Opex Cat Yr5 New'!O40) -> 3.698525148
B41: Total Operations | C41: =C40+C39 -> 7.295053453 | D41: =D40+D39 -> 6.692288201 | E41: =E40+E39 -> 6.92381742 | F41: =F40+F39 -> 4.672 | G41: =G40+G39 -> 8.93152592 | H41: 34.51468499 | J41: =J40+J39 -> 11.51378316
B42: Total Direct Operations & Maintenance | C42: =C41+C37+C33 -> 36.24685773 | D42: =D41+D37+D33 -> 37.96487906 | E42: 41.69260441 | F42: 49.92278512 | G42: 48.44528461 | H42: 214.2724109 | J42: =J41+J37+J33 -> 174.9333724
B43: Other Controllable
B44: Asset Manager Support
B45: Grid Planning | C45: ='Hist Opex Cat Yr1 New'!$M45 -> 2.713317876 | D45: ='Hist Opex Cat Yr2 New'!$M45 -> 3.259929096 | E45: ='Hist Opex Cat Yr3 New'!$M45 -> 3.31270807 | F45: ='Hist Opex Cat Yr4 New'!$M45 -> 2.94 | G45: ='Hist Opex Cat Yr5 New'!$M45 -> 4.25039698 | H45: 16.47635202 | J45: =SUM('Hist Opex Cat Yr1 New:Hist Opex Cat Yr5 New'!O45) -> 5.762796933
B46: Project Support | C46: ='Hist Opex Cat Yr1 New'!$M46 -> 3.343500357 | D46: ='Hist Opex Cat Yr2 New'!$M46 -> 3.219342373 | E46: ='Hist Opex Cat Yr3 New'!$M46 -> 4.14723285 | F46: ='Hist Opex Cat Yr4 New'!$M46 -> 3.01 | G46: ='Hist Opex Cat Yr5 New'!$M46 -> 3.43375627 | H46: 17.15383185 | J46: =SUM('Hist Opex Cat Yr1 New:Hist Opex Cat Yr5 New'!O46) -> 16.27648431
B47: IT Support | C47: ='Hist Opex Cat Yr1 New'!$M47 -> 0.7281546932 | D47: ='Hist Opex Cat Yr2 New'!$M47 -> 0.5230948932 | E47: ='Hist Opex Cat Yr3 New'!$M47 -> 0.50018863 | F47: ='Hist Opex Cat Yr4 New'!$M47 -> 0.55 | G47: ='Hist Opex Cat Yr5 New'!$M47 -> 0.5161669 | H47: 2.817605116 | J47: =SUM('Hist Opex Cat Yr1 New:Hist Opex Cat Yr5 New'!O47) -> 9.491542844
B48: Customer & Regulatory Support | C48: ='Hist Opex Cat Yr1 New'!$M48 -> 0.6891018715 | D48: ='Hist Opex Cat Yr2 New'!$M48 -> 0.5992526055 | E48: ='Hist Opex Cat Yr3 New'!$M48 -> 0.56678326 | F48: ='Hist Opex Cat Yr4 New'!$M48 -> 2.93 | G48: ='Hist Opex Cat Yr5 New'!$M48 -> 2.11477026 | H48: 6.899907997 | J48: =SUM('Hist Opex Cat Yr1 New:Hist Opex Cat Yr5 New'!O48) -> 3.392188687
B49: Sub-Totals | C49: =SUM(C45:C48) -> 7.474074798 | D49: =SUM(D45:D48) -> 7.601618967 | E49: 8.52691281 | F49: 9.43 | G49: 10.31509041 | H49: 43.34769698 | J49: =SUM(J45:J48) -> 34.92301278
B50: Corporate Support
B51: Insurance | C51: ='Hist Opex Cat Yr1 New'!$M51 -> 1.829 | D51: ='Hist Opex Cat Yr2 New'!$M51 -> 1.883 | E51: ='Hist Opex Cat Yr3 New'!$M51 -> 2.13992658 | F51: ='Hist Opex Cat Yr4 New'!$M51 -> 2.478 | G51: ='Hist Opex Cat Yr5 New'!$M51 -> 2.818556 | H51: 11.14848258 | J51: =SUM('Hist Opex Cat Yr1 New:Hist Opex Cat Yr5 New'!O51) -> 15.63415165
B52: Corporate Support | C52: ='Hist Opex Cat Yr1 New'!$M52 -> 2.824681624 | D52: ='Hist Opex Cat Yr2 New'!$M52 -> 3.472882927 | E52: ='Hist Opex Cat Yr3 New'!$M52 -> 3.50847654 | F52: ='Hist Opex Cat Yr4 New'!$M52 -> 2.35 | G52: ='Hist Opex Cat Yr5 New'!$M52 -> 3.72106935 | H52: 15.87711044 | J52: =SUM('Hist Opex Cat Yr1 New:Hist Opex Cat Yr5 New'!O52) -> 58.02623131
B53: Sub-Totals | C53: =C52+C51 -> 4.653681624 | D53: =D52+D51 -> 5.355882927 | E53: =E52+E51 -> 5.64840312 | F53: =F52+F51 -> 4.828 | G53: =G52+G51 -> 6.53962535 | H53: 27.02559302 | J53: =J52+J51 -> 73.66038296
B54: Total Other Controllable | C54: =C53+C49 -> 12.12775642 | D54: =D53+D49 -> 12.95750189 | E54: 14.17531593 | F54: 14.258 | G54: 16.85471576 | H54: 70.37329001 | J54: =J53+J49 -> 108.5833957
B55: Summary
B56: Total Maintenance Labour1 | C56: =C31 -> 12.67998124 | D56: =D31 -> 14.65190585 | E56: 16.32119226 | F56: 11.21776298 | G56: 11.09965701 | H56: 65.97049934 | J56: =J31 -> 0
B57: Total Maintenance Non labour2 | C57: =C32 -> 7.992411764 | D57: =D32 -> 8.462137148 | E57: 10.01134887 | F57: 20.01302214 | G57: 17.48053849 | H57: 63.95945841 | J57: =J32 -> 0
B58: Total Other3 | C58: =C54+C41+C37 -> 27.70222115 | D58: =D54+D41+D37 -> 27.80833795 | E58: 29.53537921 | F58: 32.95 | G58: 36.71980487 | H58: 154.7157432
B59: TOTAL CONTROLLABLE OPEX | C59: =SUM(C56:C58) -> 48.37461415 | D59: =SUM(D56:D58) -> 50.92238095 | E59: 55.86792034 | F59: 64.18078512 | G59: 65.30000037 | H59: 284.6457009 | J59: =J54+J42 -> 283.5167681
B61: Other Opex
B62: Network Support | C62: ='Hist Opex Cat Yr1 New'!$M62 -> 4.75879522 | D62: ='Hist Opex Cat Yr2 New'!$M62 -> 4.8416048 | E62: ='Hist Opex Cat Yr3 New'!$M62 -> 6.6184656 | F62: ='Hist Opex Cat Yr4 New'!$M62 -> 6.48 | G62: ='Hist Opex Cat Yr5 New'!$M62 -> 6.74 | H62: 29.43886562 | J62: =SUM('Hist Opex Cat Yr1 New:Hist Opex Cat Yr5 New'!O62) -> 28.69332058 | L62: Refer general discussion of forecast Network Support needs in 6.4.3 of Revenue Proposal
B63: Debt Raising | C63: ='Hist Opex Cat Yr1 New'!$M63 -> 0 | D63: ='Hist Opex Cat Yr2 New'!$M63 -> 0 | E63: ='Hist Opex Cat Yr3 New'!$M63 -> 0 | F63: ='Hist Opex Cat Yr4 New'!$M63 -> 0 | G63: ='Hist Opex Cat Yr5 New'!$M63 -> 0 | H63: 0 | L63: Benchmark costs included - refer Section 6.6.10 of Revenue Proposal
B64: Self Insurance | C64: ='Hist Opex Cat Yr1 New'!$M64 -> 1.722934206 | D64: ='Hist Opex Cat Yr2 New'!$M64 -> 1.790808214 | E64: ='Hist Opex Cat Yr3 New'!$M64 -> 1.873509265 | F64: ='Hist Opex Cat Yr4 New'!$M64 -> 1.923 | G64: ='Hist Opex Cat Yr5 New'!$M64 -> 2.032656372 | H64: 9.342908057 | J64: =SUM('Hist Opex Cat Yr1 New:Hist Opex Cat Yr5 New'!O64) -> 9.342908057 | L64: Benchmark costs included - refer Section 6.6.11 of Revenue Proposal
B65: TOTAL OTHER OPEX | C65: =SUM(C62:C64) -> 6.481729426 | D65: =SUM(D62:D64) -> 6.632413014 | E65: 8.491974865 | F65: 8.403 | G65: 8.772656372 | H65: 38.78177368 | J65: =SUM(J62:J64) -> 38.03622863
B68: Grand Total | C68: =C65+C59 -> 54.85634358 | D68: =D65+D59 -> 57.55479396 | E68: 64.35989521 | F68: 72.58378512 | G68: 74.07265674 | H68: 323.4274746 | J68: =J65+J59 -> 321.5529967
B70: Revenue Cap Allowance | C70: ='Hist Opex Cat Yr1 New'!M70 -> 56.54526841 | D70: ='Hist Opex Cat Yr2 New'!M70 -> 59.97971366 | E70: ='Hist Opex Cat Yr3 New'!M70 -> 64.08013443 | F70: ='Hist Opex Cat Yr4 New'!M70 -> 68.13 | G70: ='Hist Opex Cat Yr5 New'!M70+0.005 -> 72.815 | H70: =SUM(C70:G70) -> 321.5501165
B72: Revenue Cap Allowance excludes debt raising cost
B74: 1 Total Maintenance Labour is the total combination of all Field Maintenance Items
B75: 2Total Maintenance Non Labour is total combination of all Field Maintenance Items
B76: 3The Total Other are all costs sourced from the opex line items including and below Field Support.
B77: Labour includes the labour component of both in-house and external maintenance service providers.

Sheet Hist Opex Cat Yr1 New
D1: Current Reporting Format 2008/09 to 2012/13
D2: Home | F2: Link to Opex instructions - Table 6.1
B3: 1.3 HISTORIC OPEX by expenditure category
B4: for the year ended 30 June 2009 | D4: -1 | E4: -1 | F4: -1
B5: ($m, nominal) | D5: Full Year Ended 30 June 2009
D6: Field Maintenance | G6: Operational Refurbishment | I6: Network Monitoring & Control | J6: Support / Corporate
D7: Routine | E7: Condition-Based | F7: Corrective | H7: Maintenance Support | J7: Network | K7: Non-Network | M7: TOTAL | O7: Revenue Cap Allowance
B8: Direct Operations & Maintenance
B9: Maintenance
B10: Communications
B11: Labour | D11: 0.4499362448 | E11: 0 | F11: 0.2157878984 | G11: 0.06116527497 | M11: =SUM(D11:K11) -> 0.7268894182
B12: Non Labour | D12: =0.280063755194339+0.624547 -> 0.9046107552 | E12: 0 | F12: 0.004212101566 | G12: 0.05883472503 | M12: =SUM(D12:K12) -> 0.9676575818
B13: Sub-Totals | D13: =SUM(D11:D12) -> 1.354547 | E13: =SUM(E11:E12) -> 0 | F13: 0.22 | G13: 0.12 | H13: 0 | I13: 0 | J13: 0 | K13: 0 | M13: 1.694547 | O13: 1.684790216
B14: Lines
B15: Labour | D15: 0.4782031607 | E15: 0 | F15: 0.6229106971 | G15: 0.9960830771 | M15: 2.097196935
B16: Non Labour | D16: 0.5817968393 | E16: 0 | F16: 0.5870893029 | G16: 1.263916923 | M16: 2.432803065
B17: Sub-Totals | D17: =SUM(D15:D16) -> 1.06 | E17: =SUM(E15:E16) -> 0 | F17: =SUM(F15:F16) -> 1.21 | G17: =SUM(G15:G16) -> 2.26 | H17: =SUM(H15:H16) -> 0 | I17: =SUM(I15:I16) -> 0 | J17: =SUM(J15:J16) -> 0 | K17: =SUM(K15:K16) -> 0 | M17: 4.53 | O17: 6.2546897
B18: Secondary Systems
B19: Labour | D19: 0.3574835918 | E19: 0 | F19: 0.6374926362 | G19: 0.4630574589 | M19: 1.458033687
B20: Non Labour | D20: 0.2225164082 | E20: 0 | F20: 0.07250736384 | G20: 0.2969425411 | M20: 0.5919663132
B21: Sub-Totals | D21: =SUM(D19:D20) -> 0.58 | E21: =SUM(E19:E20) -> 0 | F21: =SUM(F19:F20) -> 0.71 | G21: =SUM(G19:G20) -> 0.76 | H21: =SUM(H19:H20) -> 0 | I21: =SUM(I19:I20) -> 0 | J21: =SUM(J19:J20) -> 0 | K21: =SUM(K19:K20) -> 0 | M21: 2.05 | O21: 2.069788403
B22: Substations
B23: Labour | D23: =2.42842301991001+0.482156 -> 2.91057902 | E23: 0.1869304415 | F23: =3.15314198873271+0.14846 -> 3.301601989 | G23: 0.92520626 | M23: 7.32431771
B24: Non Labour | D24: 1.51157698 | E24: 0.03306955849 | F24: 0.3668580113 | G24: =1.50479374001824+0.110716+0.024444 -> 1.63995374 | M24: 3.55145829
B25: Sub-Totals | D25: =SUM(D23:D24) -> 4.422156 | E25: =SUM(E23:E24) -> 0.22 | F25: =SUM(F23:F24) -> 3.66846 | G25: =SUM(G23:G24) -> 2.56516 | H25: =SUM(H23:H24) -> 0 | I25: =SUM(I23:I24) -> 0 | J25: =SUM(J23:J24) -> 0 | K25: =SUM(K23:K24) -> 0 | M25: 10.875776 | O25: 9.832776205
B26: Easements
B27: Labour | D27: 1.071473486 | E27: 0 | F27: 0.00207 | G27: 0 | M27: 1.073543486
B28: Non Labour | D28: 0.3485265144 | E28: 0 | F28: 0 | G28: 0.1 | M28: 0.4485265144
B29: Sub-Totals | D29: =SUM(D27:D28) -> 1.42 | E29: =SUM(E27:E28) -> 0 | F29: =SUM(F27:F28) -> 0.00207 | G29: =SUM(G27:G28) -> 0.1 | H29: =SUM(H27:H28) -> 0 | I29: =SUM(I27:I28) -> 0 | J29: =SUM(J27:J28) -> 0 | K29: =SUM(K27:K28) -> 0 | M29: 1.52207 | O29: 1.079293946
B30: Summary
B31: Sub-Total Labour | D31: =D11+D15+D19+D23+D27 -> 5.267675503 | E31: =E11+E15+E19+E23+E27 -> 0.1869304415 | F31: 4.77986322 | G31: 2.445512071 | H31: 0 | I31: 0 | J31: 0 | K31: 0 | M31: 12.67998124
B32: Sub-Total Non Labour | D32: =D12+D16+D20+D24+D28 -> 3.569027497 | E32: =E12+E16+E20+E24+E28 -> 0.03306955849 | F32: 1.03066678 | G32: 3.359647929 | H32: 0 | I32: 0 | J32: 0 | K32: 0 | M32: 7.992411764
B33: Total Maintenance | D33: =D32+D31 -> 8.836703 | E33: =E32+E31 -> 0.22 | F33: 5.81053 | G33: 5.80516 | H33: 0 | I33: 0 | J33: 0 | K33: 0 | M33: 20.672393 | O33: 20.92133847
B34: Field Support
B35: Maintenance Support | H35: 4.637425155 | M35: 4.637425155 | O35: 6.408764608
B36: Local Taxes & Licences | H36: 3.64198612 | M36: 3.64198612 | O36: 1.781515709
B37: Total Field Support | D37: =SUM(D35:D36) -> 0 | E37: =SUM(E35:E36) -> 0 | F37: =SUM(F35:F36) -> 0 | G37: =SUM(G35:G36) -> 0 | H37: =SUM(H35:H36) -> 8.279411275 | I37: =SUM(I35:I36) -> 0 | J37: =SUM(J35:J36) -> 0 | K37: =SUM(K35:K36) -> 0 | M37: 8.279411275 | O37: 8.190280317
B38: Operations
B39: Network Operations | I39: 5.465422023 | J39: 0 | K39: 0 | M39: 5.465422023 | O39: 1.361625875
B40: Asset Monitoring | I40: 1.82963143 | J40: 0 | K40: 0 | M40: 1.82963143 | O40: 0.6447208964
B41: Total Operations | D41: =SUM(D39:D40) -> 0 | E41: =SUM(E39:E40) -> 0 | F41: =SUM(F39:F40) -> 0 | G41: =SUM(G39:G40) -> 0 | H41: =SUM(H39:H40) -> 0 | I41: =SUM(I39:I40) -> 7.295053453 | J41: =SUM(J39:J40) -> 0 | K41: =SUM(K39:K40) -> 0 | M41: 7.295053453 | O41: 2.006346771
B42: Total Direct Operations & Maintenance | D42: =D41+D33+D37 -> 8.836703 | E42: =E41+E33+E37 -> 0.22 | F42: 5.81053 | G42: 5.80516 | H42: 8.279411275 | I42: 7.295053453 | J42: 0 | K42: 0 | M42: 36.24685773 | O42: 31.11796556
B43: Other Controllable
B44: Asset Manager Support
B45: Grid Planning | J45: 2.713317876 | K45: 0 | M45: 2.713317876 | O45: 1.039027144
B46: Project Support | J46: 3.343500357 | K46: 0 | M46: 3.343500357 | O46: 2.911262045
B47: IT Support | J47: 0 | K47: 0.7281546932 | M47: 0.7281546932 | O47: 1.752788653
B48: Customer & Regulatory Support | J48: 0.6891018715 | K48: 0 | M48: 0.6891018715 | O48: 0.6143768702
B49: Sub-Totals | D49: =SUM(D45:D48) -> 0 | E49: =SUM(E45:E48) -> 0 | F49: 0 | G49: 0 | H49: 0 | I49: 0 | J49: 6.745920104 | K49: 0.7281546932 | M49: 7.474074798 | O49: 6.317454713
B50: Corporate Support
A51: -1 | B51: Insurance | J51: 0 | K51: 1.829 | M51: 1.829 | O51: =4.201872942325-K64 -> 2.478938736
A52: -1 | B52: Corporate Support | J52: 0 | K52: =2.79468162397249+0.03 -> 2.824681624 | M52: 2.824681624 | O52: 10.07301716
B53: Sub-Totals | D53: =SUM(D51:D52) -> 0 | E53: =SUM(E51:E52) -> 0 | F53: =SUM(F51:F52) -> 0 | G53: =SUM(G51:G52) -> 0 | H53: =SUM(H51:H52) -> 0 | I53: =SUM(I51:I52) -> 0 | J53: =SUM(J51:J52) -> 0 | K53: =SUM(K51:K52) -> 4.653681624 | M53: 4.653681624 | O53: =O52+O51 -> 12.5519559
B54: Total Other Controllable | D54: =D53+D49 -> 0 | E54: =E53+E49 -> 0 | F54: 0 | G54: 0 | H54: 0 | I54: 0 | J54: 6.745920104 | K54: 5.381836317 | M54: 12.12775642 | O54: =O53+O49 -> 18.86941061
B55: Summary | M55: 0
B56: Total Maintenance Labour1 | D56: =D31 -> 5.267675503 | E56: =E31 -> 0.1869304415 | F56: 4.77986322 | G56: 2.445512071 | H56: 0 | I56: 0 | J56: 0 | K56: 0 | M56: 12.67998124
B57: Total Maintenance Non labour2 | D57: =D32 -> 3.569027497 | E57: =E32 -> 0.03306955849 | F57: 1.03066678 | G57: 3.359647929 | H57: 0 | I57: 0 | J57: 0 | K57: 0 | M57: 7.992411764 | O57: =O42 -> 31.11796556
B58: Total Other3 | D58: =D54+D41+D37 -> 0 | E58: =E54+E41+E37 -> 0 | F58: 0 | G58: 0 | H58: 8.279411275 | I58: 7.295053453 | J58: 6.745920104 | K58: 5.381836317 | M58: 27.70222115 | O58: =O54 -> 18.86941061
B59: TOTAL CONTROLLABLE OPEX | D59: =SUM(D56:D58) -> 8.836703 | E59: =SUM(E56:E58) -> 0.22 | F59: 5.81053 | G59: 5.80516 | H59: 8.279411275 | I59: 7.295053453 | J59: 6.745920104 | K59: 5.381836317 | M59: 48.37461415 | O59: =SUM(O56:O58) -> 49.98737617
B61: Other Opex
A62: -2 | B62: Network Support | J62: 4.75879522 | M62: =SUM(D62:K62) -> 4.75879522 | O62: 4.834958031
B63: Debt Raising | M63: 0
B64: Self Insurance | K64: 1.722934206 | M64: 1.722934206 | O64: =K64 -> 1.722934206
B65: TOTAL OTHER OPEX | D65: =SUM(D62:D64) -> 0 | E65: 0 | F65: 0 | G65: 0 | H65: 0 | I65: 0 | J65: =SUM(J62:J64) -> 4.75879522 | K65: =SUM(K62:K64) -> 1.722934206 | M65: =SUM(M62:M64) -> 6.481729426 | O65: =SUM(O62:O64) -> 6.557892236
B68: Grand Total | D68: =D65+D59 -> 8.836703 | E68: =E65+E59 -> 0.22 | F68: 5.81053 | G68: 5.80516 | H68: 8.279411275 | I68: 7.295053453 | J68: 11.50471532 | K68: 7.104770523 | M68: 54.85634358 | O68: =O59+O65 -> 56.54526841
B70: Revenue Cap Allowance | D70: 8.32747958 | E70: 0.123807387 | F70: 4.860280279 | G70: 7.609771224 | H70: =O37 -> 8.190280317 | I70: =O41 -> 2.006346771 | J70: =O45+O46+O48+O62 -> 9.39962409 | K70: =O53+O47+O64 -> 16.02767876 | M70: 56.54526841
B72: Revenue Cap Allowance excludes debt raising cost
B78: 1 Total Maintenance Labour is the total combination of all Field Maintenance items
B79: 2Total Maintenance Non Labour is total combination of all Field Maintenance items
B80: 3The Total Other are all costs sourced from the opex line items including and below Field Support
B81: Labour includes the labour component of both in-house and external maintenance service providers

Sheet Hist Opex Cat Yr2 New
D1: Current Reporting Format 2008/09 to 2012/13
D2: Home | F2: Link to Opex instructions - Table 6.1
B3: 1.4 HISTORIC OPEX by expenditure category
B4: for the year ended 30 June 2010 | D4: ='Hist Opex Cat Yr1 New'!D4 -> -1 | E4: ='Hist Opex Cat Yr1 New'!E4 -> -1 | F4: ='Hist Opex Cat Yr1 New'!F4 -> -1 | G4: ='Hist Opex Cat Yr1 New'!G4 -> 0 | H4: ='Hist Opex Cat Yr1 New'!H4 -> 0 | I4: ='Hist Opex Cat Yr1 New'!I4 -> 0 | J4: ='Hist Opex Cat Yr1 New'!J4 -> 0 | K4: ='Hist Opex Cat Yr1 New'!K4 -> 0
B5: ($m, nominal) | D5: Full Year Ended 30 June 2010
D6: Field Maintenance | G6: Operational Refurbishment | I6: Network Monitoring & Control | J6: Support / Corporate | O6: Revenue Cap Allowance
D7: Routine | E7: Condition-Based | F7: Corrective | H7: Maintenance Support | J7: Network | K7: Non-Network | M7: TOTAL
B8: Direct Operations & Maintenance
B9: Maintenance
B10: Communications
A11: ='Hist Opex Cat Yr1 New'!A11 -> 0 | B11: Labour | D11: 0.5296961631 | E11: 0 | F11: 0.1864374236 | G11: 0.2074342537 | M11: =SUM(D11:K11) -> 0.9235678404
A12: ='Hist Opex Cat Yr1 New'!A12 -> 0 | B12: Non Labour | D12: =0.313303836876439+0.357896+0.666147-0.843 -> 0.4943468369 | E12: 0 | F12: 0.003562576389 | G12: 0.1925657463 | M12: =SUM(D12:K12) -> 0.6904751596
A13: ='Hist Opex Cat Yr1 New'!A13 -> 0 | B13: Sub-Totals | D13: =SUM(D11:D12) -> 1.024043 | E13: =SUM(E11:E12) -> 0 | F13: 0.19 | G13: 0.4 | H13: 0 | I13: 0 | J13: 0 | K13: 0 | M13: 1.614043 | O13: 2.033858684
A14: ='Hist Opex Cat Yr1 New'!A14 -> 0 | B14: Lines
A15: ='Hist Opex Cat Yr1 New'!A15 -> 0 | B15: Labour | D15: 0.7647836821 | E15: 0 | F15: 0.884195573 | G15: 0.9237266193 | M15: 2.572705874
A16: ='Hist Opex Cat Yr1 New'!A16 -> 0 | B16: Non Labour | D16: 0.8852163179 | E16: 0 | F16: 0.815804427 | G16: 1.286273381 | M16: 2.987294126
A17: ='Hist Opex Cat Yr1 New'!A17 -> 0 | B17: Sub-Totals | D17: =SUM(D15:D16) -> 1.65 | E17: =SUM(E15:E16) -> 0 | F17: 1.7 | G17: 2.21 | H17: 0 | I17: 0 | J17: 0 | K17: 0 | M17: 5.56 | O17: 6.120111901
A18: ='Hist Opex Cat Yr1 New'!A18 -> 0 | B18: Secondary Systems
A19: ='Hist Opex Cat Yr1 New'!A19 -> 0 | B19: Labour | D19: 0.3393071508 | E19: 0 | F19: 0.7468435534 | G19: 0.8524405509 | M19: 1.938591255
A20: ='Hist Opex Cat Yr1 New'!A20 -> 0 | B20: Non Labour | D20: 0.2006928492 | E20: 0 | F20: 0.08315644662 | G20: 0.5275594491 | M20: 0.811408745
A21: ='Hist Opex Cat Yr1 New'!A21 -> 0 | B21: Sub-Totals | D21: =SUM(D19:D20) -> 0.54 | E21: =SUM(E19:E20) -> 0 | F21: 0.83 | G21: 1.38 | H21: 0 | I21: 0 | J21: 0 | K21: 0 | M21: 2.75 | O21: 2.439503248
A22: ='Hist Opex Cat Yr1 New'!A22 -> 0 | B22: Substations
A23: ='Hist Opex Cat Yr1 New'!A23 -> 0 | B23: Labour | D23: 2.381433521 | E23: 0 | F23: 3.575331055 | G23: 2.050045712 | M23: 8.006810288
A24: ='Hist Opex Cat Yr1 New'!A24 -> 0 | B24: Non Labour | D24: 1.408566479 | E24: 0 | F24: 0.6346689448 | G24: 1.499954288 | M24: 3.543189712
A25: ='Hist Opex Cat Yr1 New'!A25 -> 0 | B25: Sub-Totals | D25: =SUM(D23:D24) -> 3.79 | E25: =SUM(E23:E24) -> 0 | F25: 4.21 | G25: 3.55 | H25: 0 | I25: 0 | J25: 0 | K25: 0 | M25: 11.55 | O25: 10.37252039
A26: ='Hist Opex Cat Yr1 New'!A26 -> 0 | B26: Easements
A27: ='Hist Opex Cat Yr1 New'!A27 -> 0 | B27: Labour | D27: 1.210230595 | E27: 0 | F27: 0 | G27: 0 | M27: 1.210230595
A28: ='Hist Opex Cat Yr1 New'!A28 -> 0 | B28: Non Labour | D28: 0.3797694053 | E28: 0 | F28: 0.05 | G28: 0 | M28: 0.4297694053
A29: ='Hist Opex Cat Yr1 New'!A29 -> 0 | B29: Sub-Totals | D29: =SUM(D27:D28) -> 1.59 | E29: =SUM(E27:E28) -> 0 | F29: 0.05 | G29: 0 | H29: 0 | I29: 0 | J29: 0 | K29: 0 | M29: 1.64 | O29: 1.128086507
A30: ='Hist Opex Cat Yr1 New'!A30 -> 0 | B30: Summary
A31: ='Hist Opex Cat Yr1 New'!A31 -> 0 | B31: Sub-Total Labour | D31: =D11+D15+D19+D23+D27 -> 5.225451112 | E31: =E11+E15+E19+E23+E27 -> 0 | F31: 5.392807605 | G31: 4.033647136 | H31: 0 | I31: 0 | J31: 0 | K31: 0 | M31: 14.65190585
A32: ='Hist Opex Cat Yr1 New'!A32 -> 0 | B32: Sub-Total Non Labour | D32: =D12+D16+D20+D24+D28 -> 3.368591888 | E32: 0 | F32: 1.587192395 | G32: 3.506352864 | H32: 0 | I32: 0 | J32: 0 | K32: 0 | M32: 8.462137148
A33: ='Hist Opex Cat Yr1 New'!A33 -> 0 | B33: Total Maintenance | D33: =D32+D31 -> 8.594043 | E33: =E32+E31 -> 0 | F33: 6.98 | G33: 7.54 | H33: 0 | I33: 0 | J33: 0 | K33: 0 | M33: 23.114043 | O33: =O29+O25+O21+O17+O13 -> 22.09408073
A34: ='Hist Opex Cat Yr1 New'!A34 -> 0 | B34: Field Support
A35: ='Hist Opex Cat Yr1 New'!A35 -> 0 | B35: Field Support | H35: 4.553722315 | M35: 4.553722315 | O35: 6.844942963
A36: ='Hist Opex Cat Yr1 New'!A36 -> 0 | B36: Direct Charges | H36: 3.60482554 | M36: 3.60482554 | O36: 1.963654288
A37: ='Hist Opex Cat Yr1 New'!A37 -> 0 | B37: Total Field Support | D37: =SUM(D35:D36) -> 0 | E37: =SUM(E35:E36) -> 0 | F37: 0 | G37: 0 | H37: 8.158547855 | I37: 0 | J37: 0 | K37: 0 | M37: 8.158547855 | O37: =SUM(O35:O36) -> 8.808597251
A38: ='Hist Opex Cat Yr1 New'!A38 -> 0 | B38: Operations
A39: ='Hist Opex Cat Yr1 New'!A39 -> 0 | B39: Network Switching | I39: 5.013832942 | M39: 5.013832942 | O39: 1.45800976
A40: ='Hist Opex Cat Yr1 New'!A40 -> 0 | B40: Asset Monitoring | I40: 1.678455258 | M40: 1.678455258 | O40: 0.6910630597
A41: ='Hist Opex Cat Yr1 New'!A41 -> 0 | B41: Total Operations | D41: =SUM(D39:D40) -> 0 | E41: =SUM(E39:E40) -> 0 | F41: 0 | G41: 0 | H41: 0 | I41: 6.692288201 | J41: 0 | K41: 0 | M41: 6.692288201 | O41: =SUM(O39:O40) -> 2.14907282
A42: ='Hist Opex Cat Yr1 New'!A42 -> 0 | B42: Total Direct Operations & Maintenance | D42: =D41+D33+D37 -> 8.594043 | E42: =E41+E33+E37 -> 0 | F42: 6.98 | G42: 7.54 | H42: 8.158547855 | I42: 6.692288201 | J42: 0 | K42: 0 | M42: 37.96487906 | O42: 33.0517508
A43: ='Hist Opex Cat Yr1 New'!A43 -> 0 | B43: Other Controllable
A44: ='Hist Opex Cat Yr1 New'!A44 -> 0 | B44: Asset Manager Support
A45: ='Hist Opex Cat Yr1 New'!A45 -> 0 | B45: Grid Planning | J45: 3.259929096 | K45: 0 | M45: 3.259929096 | O45: 1.095177417
A46: ='Hist Opex Cat Yr1 New'!A46 -> 0 | B46: Project Support | J46: 3.219342373 | K46: 0 | M46: 3.219342373 | O46: 3.08237067
A47: ='Hist Opex Cat Yr1 New'!A47 -> 0 | B47: IT Support | K47: 0.5230948932 | M47: 0.5230948932 | O47: 1.823485666
A48: ='Hist Opex Cat Yr1 New'!A48 -> 0 | B48: Customer & Regulatory Support | J48: 0.5992526055 | K48: 0 | M48: 0.5992526055 | O48: 0.6460598596
A49: ='Hist Opex Cat Yr1 New'!A49 -> 0 | B49: Sub-Totals | D49: =SUM(D45:D48) -> 0 | E49: =SUM(E45:E48) -> 0 | F49: 0 | G49: 0 | H49: 0 | I49: 0 | J49: 7.078524074 | K49: 0.5230948932 | M49: 7.601618967 | O49: =SUM(O45:O48) -> 6.647093613
A50: ='Hist Opex Cat Yr1 New'!A50 -> 0 | B50: Corporate Support
A51: ='Hist Opex Cat Yr1 New'!A51 -> -1 | B51: Insurance | J51: 0 | K51: 1.883 | M51: 1.883 | O51: =4.54907750989966-K64 -> 2.758269296
A52: ='Hist Opex Cat Yr1 New'!A52 -> -1 | B52: Corporate Support | J52: 0 | K52: 3.472882927 | M52: 3.472882927 | O52: 10.59660152
A53: ='Hist Opex Cat Yr1 New'!A53 -> 0 | B53: Sub-Totals | D53: =SUM(D51:D52) -> 0 | E53: =SUM(E51:E52) -> 0 | F53: 0 | G53: 0 | H53: 0 | I53: 0 | J53: 0 | K53: 5.355882927 | M53: 5.355882927 | O53: =SUM(O51:O52) -> 13.35487081
A54: ='Hist Opex Cat Yr1 New'!A54 -> 0 | B54: Total Other Controllable | D54: =D53+D49 -> 0 | E54: =E53+E49 -> 0 | F54: 0 | G54: 0 | H54: 0 | I54: 0 | J54: 7.078524074 | K54: 5.87897782 | M54: 12.95750189 | O54: =O53+O49 -> 20.00196443
A55: ='Hist Opex Cat Yr1 New'!A55 -> 0 | B55: Summary | M55: 0
A56: ='Hist Opex Cat Yr1 New'!A56 -> 0 | B56: Total Maintenance Labour1 | D56: =D31 -> 5.225451112 | E56: =E31 -> 0 | F56: 5.392807605 | G56: 4.033647136 | H56: 0 | I56: 0 | J56: 0 | K56: 0 | M56: 14.65190585
A57: ='Hist Opex Cat Yr1 New'!A57 -> 0 | B57: Total Maintenance Non labour2 | D57: =D32 -> 3.368591888 | E57: =E32 -> 0 | F57: 1.587192395 | G57: 3.506352864 | H57: 0 | I57: 0 | J57: 0 | K57: 0 | M57: 8.462137148
A58: ='Hist Opex Cat Yr1 New'!A58 -> 0 | B58: Total Other3 | D58: =D54+D41+D37 -> 0 | E58: =E54+E41+E37 -> 0 | F58: 0 | G58: 0 | H58: 8.158547855 | I58: 6.692288201 | J58: 7.078524074 | K58: 5.87897782 | M58: 27.80833795
A59: ='Hist Opex Cat Yr1 New'!A59 -> 0 | B59: TOTAL CONTROLLABLE OPEX | D59: =SUM(D56:D58) -> 8.594043 | E59: =SUM(E56:E58) -> 0 | F59: 6.98 | G59: 7.54 | H59: 8.158547855 | I59: 6.692288201 | J59: 7.078524074 | K59: 5.87897782 | M59: 50.92238095 | O59: =O54+O42 -> 53.05371523
A60: ='Hist Opex Cat Yr1 New'!A60 -> 0
A61: ='Hist Opex Cat Yr1 New'!A61 -> 0 | B61: Other Opex
A62: ='Hist Opex Cat Yr1 New'!A62 -> -2 | B62: Network Support | J62: 4.8416048 | M62: =SUM(D62:K62) -> 4.8416048 | O62: 5.135190219
B63: Debt Raising | M63: 0
B64: Self Insurance | K64: 1.790808214 | M64: 1.790808214 | O64: =M64 -> 1.790808214
A65: ='Hist Opex Cat Yr1 New'!A65 -> 0 | B65: TOTAL OTHER OPEX | D65: =SUM(D62:D64) -> 0 | E65: 0 | F65: 0 | G65: 0 | H65: 0 | I65: 0 | J65: =SUM(J62:J64) -> 4.8416048 | K65: =SUM(K62:K64) -> 1.790808214 | M65: =SUM(M62:M64) -> 6.632413014 | O65: =SUM(O62:O64) -> 6.925998433
B68: Grand Total | D68: =D65+D59 -> 8.594043 | E68: =E65+E59 -> 0 | F68: 6.98 | G68: 7.54 | H68: 8.158547855 | I68: 6.692288201 | J68: 11.92012887 | K68: 7.669786034 | M68: 57.55479396 | O68: =O65+O59 -> 59.97971366
B70: Revenue Cap Allowance | D70: 9.251209041 | E70: 0.1356837014 | F70: 5.314252012 | G70: 7.392935975 | H70: =O37 -> 8.808597251 | I70: =O41 -> 2.14907282 | J70: =O45+O46+O48+O62 -> 9.958798165 | K70: =O53+O47+O64 -> 16.96916469 | M70: =SUM(D70:K70) -> 59.97971366
B72: Revenue Cap Allowance excludes debt raising cost
B74: 1 Total Maintenance Labour is the total combination of all Field Maintenance items
B75: 2Total Maintenance Non Labour is total combination of all Field Maintenance items
B76: 3The Total Other are all costs sourced from the opex line items including and below Field Support
B77: Labour includes the labour component of both in-house and external maintenance service providers

Sheet Hist Opex Cat Yr3 New
D1: Current Reporting Format 2008/09 to 2012/13
D2: Home | F2: Link to Opex instructions - Table 6.1
B3: 1.5 HISTORIC OPEX by expenditure category
B4: for the year ended 30 June 2011 | D4: ='Hist Opex Cat Yr1 New'!D4 -> -1 | E4: ='Hist Opex Cat Yr1 New'!E4 -> -1 | F4: ='Hist Opex Cat Yr1 New'!F4 -> -1 | G4: ='Hist Opex Cat Yr1 New'!G4 -> 0 | H4: ='Hist Opex Cat Yr1 New'!H4 -> 0 | I4: ='Hist Opex Cat Yr1 New'!I4 -> 0 | J4: ='Hist Opex Cat Yr1 New'!J4 -> 0 | K4: ='Hist Opex Cat Yr1 New'!K4 -> 0
B5: ($m, nominal) | D5: Full Year Ended 30 June 2011
D6: Field Maintenance | G6: Operational Refurbishment | I6: Network Monitoring & Control | J6: Support / Corporate
D7: Routine | E7: Condition-Based | F7: Corrective | H7: Maintenance Support | J7: Network | K7: Non-Network | M7: TOTAL | O7: Revenue Cap Allowance
B8: Direct Operations & Maintenance
B9: Maintenance
B10: Communications
A11: ='Hist Opex Cat Yr1 New'!A11 -> 0 | B11: Labour | D11: 0.6196332944 | E11: 0 | F11: 0 | G11: 0.2417533271 | M11: =SUM(D11:K11) -> 0.8613866215
A12: ='Hist Opex Cat Yr1 New'!A12 -> 0 | B12: Non Labour | D12: =0.313303836876439+0.969608+0.050327-0.9329 -> 0.4003388369 | E12: 0 | F12: 0 | G12: 0.2172466729 | M12: =SUM(D12:K12) -> 0.6175855098
A13: ='Hist Opex Cat Yr1 New'!A13 -> 0 | B13: Sub-Totals | D13: =SUM(D11:D12) -> 1.019972131 | E13: =SUM(E11:E12) -> 0 | F13: 0 | G13: 0.459 | H13: 0 | I13: 0 | J13: 0 | K13: 0 | M13: 1.478972131 | O13: 2.244598792
A14: ='Hist Opex Cat Yr1 New'!A14 -> 0 | B14: Lines
A15: ='Hist Opex Cat Yr1 New'!A15 -> 0 | B15: Labour | D15: 1.185530352 | E15: 0 | F15: 1.040594263 | G15: 2.136762822 | M15: 4.362887437
A16: ='Hist Opex Cat Yr1 New'!A16 -> 0 | B16: Non Labour | D16: 1.311469648 | E16: 0 | F16: 0.9454057367 | G16: 2.880237178 | M16: 5.137112563
A17: ='Hist Opex Cat Yr1 New'!A17 -> 0 | B17: Sub-Totals | D17: =SUM(D15:D16) -> 2.497 | E17: =SUM(E15:E16) -> 0 | F17: 1.986 | G17: 5.017 | H17: 0 | I17: 0 | J17: 0 | K17: 0 | M17: 9.5 | O17: 6.053279408
A18: ='Hist Opex Cat Yr1 New'!A18 -> 0 | B18: Secondary Systems
A19: ='Hist Opex Cat Yr1 New'!A19 -> 0 | B19: Labour | D19: 0.406275026 | E19: 0 | F19: 0.8867748265 | G19: 0.01938607021 | M19: 1.312435923
A20: ='Hist Opex Cat Yr1 New'!A20 -> 0 | B20: Non Labour | D20: 0.229724974 | E20: 0 | F20: 0.0972251735 | G20: 0.01161392979 | M20: 0.3385640773
A21: ='Hist Opex Cat Yr1 New'!A21 -> 0 | B21: Sub-Totals | D21: =SUM(D19:D20) -> 0.636 | E21: =SUM(E19:E20) -> 0 | F21: 0.984 | G21: 0.031 | H21: 0 | I21: 0 | J21: 0 | K21: 0 | M21: 1.651 | O21: 2.629004967
A22: ='Hist Opex Cat Yr1 New'!A22 -> 0 | B22: Substations
A23: ='Hist Opex Cat Yr1 New'!A23 -> 0 | B23: Labour | D23: =3.46803005715744+0.342086-0.009517 -> 3.800599057 | E23: 0 | F23: 3.42016993 | G23: 1.377047449 | M23: 8.597816436
A24: ='Hist Opex Cat Yr1 New'!A24 -> 0 | B24: Non Labour | D24: 1.960969943 | E24: 0 | F24: 0.5978300701 | G24: 0.9509525505 | M24: 3.509752564
A25: ='Hist Opex Cat Yr1 New'!A25 -> 0 | B25: Sub-Totals | D25: =SUM(D23:D24) -> 5.761569 | E25: =SUM(E23:E24) -> 0 | F25: 4.018 | G25: 2.328 | H25: 0 | I25: 0 | J25: 0 | K25: 0 | M25: 12.107569 | O25: 11.13518244
A26: ='Hist Opex Cat Yr1 New'!A26 -> 0 | B26: Easements
A27: ='Hist Opex Cat Yr1 New'!A27 -> 0 | B27: Labour | D27: 1.186665845 | E27: 0 | F27: 0 | G27: 0 | M27: 1.186665845
A28: ='Hist Opex Cat Yr1 New'!A28 -> 0 | B28: Non Labour | D28: 0.3603341554 | E28: 0 | F28: 0.048 | G28: 0 | M28: 0.4083341554
A29: ='Hist Opex Cat Yr1 New'!A29 -> 0 | B29: Sub-Totals | D29: =SUM(D27:D28) -> 1.547 | E29: =SUM(E27:E28) -> 0 | F29: 0.048 | G29: 0 | H29: 0 | I29: 0 | J29: 0 | K29: 0 | M29: 1.595 | O29: 1.181814629
A30: ='Hist Opex Cat Yr1 New'!A30 -> 0 | B30: Summary
A31: ='Hist Opex Cat Yr1 New'!A31 -> 0 | B31: Sub-Total Labour | D31: =D11+D15+D19+D23+D27 -> 7.198703574 | E31: =E11+E15+E19+E23+E27 -> 0 | F31: 5.34753902 | G31: 3.774949669 | H31: 0 | I31: 0 | J31: 0 | K31: 0 | M31: 16.32119226
A32: ='Hist Opex Cat Yr1 New'!A32 -> 0 | B32: Sub-Total Non Labour | D32: =D12+D16+D20+D24+D28 -> 4.262837557 | E32: 0 | F32: 1.68846098 | G32: 4.060050331 | H32: 0 | I32: 0 | J32: 0 | K32: 0 | M32: 10.01134887
A33: ='Hist Opex Cat Yr1 New'!A33 -> 0 | B33: Total Maintenance | D33: =D32+D31 -> 11.46154113 | E33: =E32+E31 -> 0 | F33: 7.036 | G33: 7.835 | H33: 0 | I33: 0 | J33: 0 | K33: 0 | M33: 26.33254113 | O33: =SUM(O13:O29) -> 23.24388024
A34: ='Hist Opex Cat Yr1 New'!A34 -> 0 | B34: Field Support
A35: ='Hist Opex Cat Yr1 New'!A35 -> 0 | B35: Field Support | H35: 4.72050843 | M35: 4.72050843 | O35: 7.333494812
A36: ='Hist Opex Cat Yr1 New'!A36 -> 0 | B36: Direct Charges | H36: 3.71573743 | M36: 3.71573743 | O36: 2.107917381
A37: ='Hist Opex Cat Yr1 New'!A37 -> 0 | B37: Total Field Support | D37: =SUM(D35:D36) -> 0 | E37: =SUM(E35:E36) -> 0 | F37: 0 | G37: 0 | H37: 8.43624586 | I37: 0 | J37: 0 | K37: 0 | M37: 8.43624586 | O37: =SUM(O35:O36) -> 9.441412194
A38: ='Hist Opex Cat Yr1 New'!A38 -> 0 | B38: Operations
A39: ='Hist Opex Cat Yr1 New'!A39 -> 0 | B39: Network Switching | I39: 5.321306 | M39: 5.321306 | O39: 1.565622377
A40: ='Hist Opex Cat Yr1 New'!A40 -> 0 | B40: Asset Monitoring | I40: 1.60251142 | M40: 1.60251142 | O40: 0.7427411924
A41: ='Hist Opex Cat Yr1 New'!A41 -> 0 | B41: Total Operations | D41: =SUM(D39:D40) -> 0 | E41: =SUM(E39:E40) -> 0 | F41: 0 | G41: 0 | H41: 0 | I41: 6.92381742 | J41: 0 | K41: 0 | M41: 6.92381742 | O41: =SUM(O39:O40) -> 2.308363569
A42: ='Hist Opex Cat Yr1 New'!A42 -> 0 | B42: Total Direct Operations & Maintenance | D42: =D41+D33+D37 -> 11.46154113 | E42: =E41+E33+E37 -> 0 | F42: 7.036 | G42: 7.835 | H42: 8.43624586 | I42: 6.92381742 | J42: 0 | K42: 0 | M42: 41.69260441 | O42: =O41+O37+O33 -> 34.993656
A43: ='Hist Opex Cat Yr1 New'!A43 -> 0 | B43: Other Controllable
A44: ='Hist Opex Cat Yr1 New'!A44 -> 0 | B44: Asset Manager Support
A45: ='Hist Opex Cat Yr1 New'!A45 -> 0 | B45: Grid Planning | J45: 3.31270807 | K45: 0 | M45: 3.31270807 | O45: 1.158592372
A46: ='Hist Opex Cat Yr1 New'!A46 -> 0 | B46: Project Support | J46: 4.14723285 | K46: 0 | M46: 4.14723285 | O46: 3.272851597
A47: ='Hist Opex Cat Yr1 New'!A47 -> 0 | B47: IT Support | K47: 0.50018863 | M47: 0.50018863 | O47: 1.905268524
A48: ='Hist Opex Cat Yr1 New'!A48 -> 0 | B48: Customer & Regulatory Support | J48: 0.56678326 | K48: 0 | M48: 0.56678326 | O48: 0.6817519576
A49: ='Hist Opex Cat Yr1 New'!A49 -> 0 | B49: Sub-Totals | D49: =SUM(D45:D48) -> 0 | E49: =SUM(E45:E48) -> 0 | F49: 0 | G49: 0 | H49: 0 | I49: 0 | J49: 8.02672418 | K49: 0.50018863 | M49: 8.52691281 | O49: =SUM(O45:O48) -> 7.018464451
A50: ='Hist Opex Cat Yr1 New'!A50 -> 0 | B50: Corporate Support
A51: ='Hist Opex Cat Yr1 New'!A51 -> -1 | B51: Insurance | J51: 0 | K51: 2.13992658 | M51: 2.13992658 | O51: =4.95610925570808-K64 -> 3.082599991
A52: ='Hist Opex Cat Yr1 New'!A52 -> -1 | B52: Corporate Support | J52: 0 | K52: =3.42847654+0.08 -> 3.50847654 | M52: 3.50847654 | O52: 11.59661263
A53: ='Hist Opex Cat Yr1 New'!A53 -> 0 | B53: Sub-Totals | D53: =SUM(D51:D52) -> 0 | E53: =SUM(E51:E52) -> 0 | F53: 0 | G53: 0 | H53: 0 | I53: 0 | J53: 0 | K53: 5.64840312 | M53: 5.64840312 | O53: =SUM(O51:O52) -> 14.67921262
A54: ='Hist Opex Cat Yr1 New'!A54 -> 0 | B54: Total Other Controllable | D54: =D53+D49 -> 0 | E54: =E53+E49 -> 0 | F54: 0 | G54: 0 | H54: 0 | I54: 0 | J54: 8.02672418 | K54: 6.14859175 | M54: 14.17531593 | O54: =O53+O49 -> 21.69767707
A55: ='Hist Opex Cat Yr1 New'!A55 -> 0 | B55: Summary | M55: 0
A56: ='Hist Opex Cat Yr1 New'!A56 -> 0 | B56: Total Maintenance Labour1 | D56: =D31 -> 7.198703574 | E56: =E31 -> 0 | F56: 5.34753902 | G56: 3.774949669 | H56: 0 | I56: 0 | J56: 0 | K56: 0 | M56: 16.32119226
A57: ='Hist Opex Cat Yr1 New'!A57 -> 0 | B57: Total Maintenance Non labour2 | D57: =D32 -> 4.262837557 | E57: =E32 -> 0 | F57: 1.68846098 | G57: 4.060050331 | H57: 0 | I57: 0 | J57: 0 | K57: 0 | M57: 10.01134887
A58: ='Hist Opex Cat Yr1 New'!A58 -> 0 | B58: Total Other3 | D58: =D54+D41+D37 -> 0 | E58: =E54+E41+E37 -> 0 | F58: 0 | G58: 0 | H58: 8.43624586 | I58: 6.92381742 | J58: 8.02672418 | K58: 6.14859175 | M58: 29.53537921
A59: ='Hist Opex Cat Yr1 New'!A59 -> 0 | B59: TOTAL CONTROLLABLE OPEX | D59: =SUM(D56:D58) -> 11.46154113 | E59: =SUM(E56:E58) -> 0 | F59: 7.036 | G59: 7.835 | H59: 8.43624586 | I59: 6.92381742 | J59: 8.02672418 | K59: 6.14859175 | M59: 55.86792034 | O59: =O54+O42 -> 56.69133307
A60: ='Hist Opex Cat Yr1 New'!A60 -> 0
A61: ='Hist Opex Cat Yr1 New'!A61 -> 0 | B61: Other Opex
A62: ='Hist Opex Cat Yr1 New'!A62 -> -2 | B62: Network Support | J62: 6.6184656 | M62: =SUM(D62:K62) -> 6.6184656 | O62: 5.523172328
B63: Debt Raising | M63: 0
B64: Self Insurance | K64: 1.873509265 | M64: 1.873509265 | O64: =K64 -> 1.873509265
A65: ='Hist Opex Cat Yr1 New'!A65 -> 0 | B65: TOTAL OTHER OPEX | D65: =SUM(D62:D64) -> 0 | E65: 0 | F65: 0 | G65: 0 | H65: 0 | I65: 0 | J65: =SUM(J62:J64) -> 6.6184656 | K65: =SUM(K62:K64) -> 1.873509265 | M65: =SUM(M62:M64) -> 8.491974865 | O65: =SUM(O62:O64) -> 7.396681593
B68: Grand Total | D68: =D65+D59 -> 11.46154113 | E68: =E65+E59 -> 0 | F68: 7.036 | G68: 7.835 | H68: 8.43624586 | I68: 6.92381742 | J68: 14.64518978 | K68: 8.022101015 | M68: 64.35989521 | O68: =O65+O59 -> 64.08801467
B70: Revenue Cap Allowance | D70: 9.556 | E70: 0.15 | F70: 5.85 | G70: 7.68 | H70: =O37 -> 9.441412194 | I70: =O41 -> 2.308363569 | J70: =O45+O46+O48+O62 -> 10.63636825 | K70: =O53+O47+O64 -> 18.45799041 | M70: =SUM(D70:K70) -> 64.08013443
B72: Revenue Cap Allowance excludes debt raising cost
B74: 1 Total Maintenance Labour is the total combination of all Field Maintenance items
B75: 2Total Maintenance Non Labour is total combination of all Field Maintenance items
B76: 3The Total Other are all costs sourced from the opex line items including and below Field Support
B77: Labour includes the labour component of both in-house and external maintenance service providers

Sheet Hist Opex Cat Yr4 New
D1: Current Reporting Format 2008/09 to 2012/13
D2: Home | F2: Link to Opex instructions - Table 6.1
B3: 1.6 HISTORIC OPEX by expenditure category
B4: for the year ended 30 June 2012 | D4: ='Hist Opex Cat Yr1 New'!D4 -> -1 | E4: ='Hist Opex Cat Yr1 New'!E4 -> -1 | F4: ='Hist Opex Cat Yr1 New'!F4 -> -1 | G4: ='Hist Opex Cat Yr1 New'!G4 -> 0 | H4: ='Hist Opex Cat Yr1 New'!H4 -> 0 | I4: ='Hist Opex Cat Yr1 New'!I4 -> 0 | J4: ='Hist Opex Cat Yr1 New'!J4 -> 0 | K4: ='Hist Opex Cat Yr1 New'!K4 -> 0
B5: ($m, nominal) | D5: Full Year Ended 30 June 2012
D6: Field Maintenance | G6: Operational Refurbishment | I6: Network Monitoring & Control | J6: Support / Corporate
D7: Routine | E7: Condition-Based | F7: Corrective | H7: Maintenance Support | J7: Network | K7: Non-Network | M7: TOTAL | O7: Revenue Cap Allowance
B8: Direct Operations & Maintenance
B9: Maintenance
B10: Communications
A11: ='Hist Opex Cat Yr1 New'!A11 -> 0 | B11: Labour | D11: 0.4335817544 | F11: 0.08472108623 | G11: 0.1493314062 | M11: =SUM(D11:K11) -> 0.6676342468
A12: ='Hist Opex Cat Yr1 New'!A12 -> 0 | B12: Non Labour | D12: =1.22-D11 -> 0.7864182456 | F12: =0.22-F11 -> 0.1352789138 | G12: =0.67-G11 -> 0.5206685938 | M12: =SUM(D12:K12) -> 1.442365753
A13: ='Hist Opex Cat Yr1 New'!A13 -> 0 | B13: Sub-Totals | D13: =SUM(D11:D12) -> 1.22 | E13: 0 | F13: 0.22 | G13: 0.67 | H13: 0 | I13: 0 | J13: 0 | K13: 0 | M13: 2.11 | O13: 2.44
A14: ='Hist Opex Cat Yr1 New'!A14 -> 0 | B14: Lines
A15: ='Hist Opex Cat Yr1 New'!A15 -> 0 | B15: Labour | D15: 0.710785117 | F15: 1.256311087 | G15: 0.8559816961 | M15: 2.8230779
A16: ='Hist Opex Cat Yr1 New'!A16 -> 0 | B16: Non Labour | D16: 2.61 | F16: =5.72-F15 -> 4.463688913 | G16: =4.72-G15 -> 3.864018304 | M16: 10.93770722
A17: ='Hist Opex Cat Yr1 New'!A17 -> 0 | B17: Sub-Totals | D17: =SUM(D15:D16) -> 3.320785117 | E17: 0 | F17: 5.72 | G17: 4.72 | H17: 0 | I17: 0 | J17: 0 | K17: 0 | M17: 13.76078512 | O17: 5.87
A18: ='Hist Opex Cat Yr1 New'!A18 -> 0 | B18: Secondary Systems
A19: ='Hist Opex Cat Yr1 New'!A19 -> 0 | B19: Labour | D19: 0.4376558614 | F19: 0.5337757661 | G19: 0.2342711906 | M19: 1.205702818
A20: ='Hist Opex Cat Yr1 New'!A20 -> 0 | B20: Non Labour | D20: =0.71-D19 -> 0.2723441386 | F20: =0.96-F19 -> 0.4262242339 | G20: =0.35-G19 -> 0.1157288094 | M20: 0.8142971819
A21: ='Hist Opex Cat Yr1 New'!A21 -> 0 | B21: Sub-Totals | D21: =SUM(D19:D20) -> 0.71 | E21: 0 | F21: 0.96 | G21: 0.35 | H21: 0 | I21: 0 | J21: 0 | K21: 0 | M21: 2.02 | O21: 3.06
A22: ='Hist Opex Cat Yr1 New'!A22 -> 0 | B22: Substations
A23: ='Hist Opex Cat Yr1 New'!A23 -> 0 | B23: Labour | D23: 2.764186799 | F23: 2.096271984 | G23: 0.8538745989 | M23: 5.714333382
A24: ='Hist Opex Cat Yr1 New'!A24 -> 0 | B24: Non Labour | D24: =6.39-D23-0.12 -> 3.505813201 | F24: =4.21-F23 -> 2.113728016 | G24: =1.32-G23 -> 0.4661254011 | M24: 6.085666618
A25: ='Hist Opex Cat Yr1 New'!A25 -> 0 | B25: Sub-Totals | D25: =SUM(D23:D24) -> 6.27 | E25: 0 | F25: 4.21 | G25: 1.32 | H25: 0 | I25: 0 | J25: 0 | K25: 0 | M25: 11.8 | O25: 11.89
A26: ='Hist Opex Cat Yr1 New'!A26 -> 0 | B26: Easements
A27: ='Hist Opex Cat Yr1 New'!A27 -> 0 | B27: Labour | D27: 0.8070146303 | F27: 0 | G27: 0 | M27: 0.8070146303
A28: ='Hist Opex Cat Yr1 New'!A28 -> 0 | B28: Non Labour | D28: =1.54-D27 -> 0.7329853697 | F28: 0 | G28: 0 | M28: 0.7329853697
A29: ='Hist Opex Cat Yr1 New'!A29 -> 0 | B29: Sub-Totals | D29: =SUM(D27:D28) -> 1.54 | E29: 0 | F29: 0 | G29: 0 | H29: 0 | I29: 0 | J29: 0 | K29: 0 | M29: 1.54 | O29: 1.21
A30: ='Hist Opex Cat Yr1 New'!A30 -> 0 | B30: Summary
A31: ='Hist Opex Cat Yr1 New'!A31 -> 0 | B31: Sub-Total Labour | D31: =D11+D15+D19+D23+D27 -> 5.153224162 | E31: =E11+E15+E19+E23+E27 -> 0 | F31: 3.971079923 | G31: 2.093458892 | H31: 0 | I31: 0 | J31: 0 | K31: 0 | M31: 11.21776298
A32: ='Hist Opex Cat Yr1 New'!A32 -> 0 | B32: Sub-Total Non Labour | D32: =D12+D16+D20+D24+D28 -> 7.907560955 | E32: 0 | F32: 7.138920077 | G32: 4.966541108 | H32: 0 | I32: 0 | J32: 0 | K32: 0 | M32: 20.01302214
A33: ='Hist Opex Cat Yr1 New'!A33 -> 0 | B33: Total Maintenance | D33: =D32+D31 -> 13.06078512 | E33: =E32+E31 -> 0 | F33: 11.11 | G33: 7.06 | H33: 0 | I33: 0 | J33: 0 | K33: 0 | M33: 31.23078512 | O33: =SUM(O13:O29) -> 24.47
A34: ='Hist Opex Cat Yr1 New'!A34 -> 0 | B34: Field Support
A35: ='Hist Opex Cat Yr1 New'!A35 -> 0 | B35: Field Support | H35: 10.36 | M35: 10.36 | O35: 7.71
A36: ='Hist Opex Cat Yr1 New'!A36 -> 0 | B36: Direct Charges | H36: =2.26+0.19+1.21 -> 3.66 | M36: 3.66 | O36: 2.32
A37: ='Hist Opex Cat Yr1 New'!A37 -> 0 | B37: Total Field Support | D37: =SUM(D35:D36) -> 0 | E37: =SUM(E35:E36) -> 0 | F37: 0 | G37: 0 | H37: 14.02 | I37: 0 | J37: 0 | K37: 0 | M37: 14.02 | O37: =SUM(O35:O36) -> 10.03
A38: ='Hist Opex Cat Yr1 New'!A38 -> 0 | B38: Operations
A39: ='Hist Opex Cat Yr1 New'!A39 -> 0 | B39: Network Switching | I39: 3.255 | M39: 3.255 | O39: 1.65
A40: ='Hist Opex Cat Yr1 New'!A40 -> 0 | B40: Asset Monitoring | I40: 1.417 | M40: 1.417 | O40: 0.78
A41: ='Hist Opex Cat Yr1 New'!A41 -> 0 | B41: Total Operations | D41: =SUM(D39:D40) -> 0 | E41: =SUM(E39:E40) -> 0 | F41: 0 | G41: 0 | H41: 0 | I41: 4.672 | J41: 0 | K41: 0 | M41: 4.672 | O41: =SUM(O39:O40) -> 2.43
A42: ='Hist Opex Cat Yr1 New'!A42 -> 0 | B42: Total Direct Operations & Maintenance | D42: =D41+D33+D37 -> 13.06078512 | E42: =E41+E33+E37 -> 0 | F42: 11.11 | G42: 7.06 | H42: 14.02 | I42: 4.672 | J42: 0 | K42: 0 | M42: 49.92278512 | O42: =O41+O37+O33 -> 36.93
A43: ='Hist Opex Cat Yr1 New'!A43 -> 0 | B43: Other Controllable
A44: ='Hist Opex Cat Yr1 New'!A44 -> 0 | B44: Asset Manager Support
A45: ='Hist Opex Cat Yr1 New'!A45 -> 0 | B45: Grid Planning | J45: =2.93+0.01 -> 2.94 | K45: 0 | M45: 2.94 | O45: 1.2
A46: ='Hist Opex Cat Yr1 New'!A46 -> 0 | B46: Project Support | J46: 3.01 | K46: 0 | M46: 3.01 | O46: 3.41
A47: ='Hist Opex Cat Yr1 New'!A47 -> 0 | B47: IT Support | K47: 0.55 | M47: 0.55 | O47: 1.96
A48: ='Hist Opex Cat Yr1 New'!A48 -> 0 | B48: Customer & Regulatory Support | J48: 2.93 | K48: 0 | M48: 2.93 | O48: 0.71
A49: ='Hist Opex Cat Yr1 New'!A49 -> 0 | B49: Sub-Totals | D49: =SUM(D45:D48) -> 0 | E49: =SUM(E45:E48) -> 0 | F49: 0 | G49: 0 | H49: 0 | I49: 0 | J49: 8.88 | K49: 0.55 | M49: 9.43 | O49: =SUM(O45:O48) -> 7.28
A50: ='Hist Opex Cat Yr1 New'!A50 -> 0 | B50: Corporate Support
A51: ='Hist Opex Cat Yr1 New'!A51 -> -1 | B51: Insurance | J51: 0 | K51: =2.67-0.175-0.017 -> 2.478 | M51: 2.478 | O51: =5.36-K64 -> 3.437
A52: ='Hist Opex Cat Yr1 New'!A52 -> -1 | B52: Corporate Support | J52: 0 | K52: =2.34+0.01 -> 2.35 | M52: 2.35 | O52: 12.59
A53: ='Hist Opex Cat Yr1 New'!A53 -> 0 | B53: Sub-Totals | D53: =SUM(D51:D52) -> 0 | E53: =SUM(E51:E52) -> 0 | F53: 0 | G53: 0 | H53: 0 | I53: 0 | J53: 0 | K53: 4.828 | M53: 4.828 | O53: =SUM(O51:O52) -> 16.027
A54: ='Hist Opex Cat Yr1 New'!A54 -> 0 | B54: Total Other Controllable | D54: =D53+D49 -> 0 | E54: =E53+E49 -> 0 | F54: 0 | G54: 0 | H54: 0 | I54: 0 | J54: 8.88 | K54: 5.378 | M54: 14.258 | O54: =O53+O49 -> 23.307
A55: ='Hist Opex Cat Yr1 New'!A55 -> 0 | B55: Summary | M55: 0
A56: ='Hist Opex Cat Yr1 New'!A56 -> 0 | B56: Total Maintenance Labour1 | D56: =D31 -> 5.153224162 | E56: =E31 -> 0 | F56: 3.971079923 | G56: 2.093458892 | H56: 0 | I56: 0 | J56: 0 | K56: 0 | M56: 11.21776298
A57: ='Hist Opex Cat Yr1 New'!A57 -> 0 | B57: Total Maintenance Non labour2 | D57: =D32 -> 7.907560955 | E57: =E32 -> 0 | F57: 7.138920077 | G57: 4.966541108 | H57: 0 | I57: 0 | J57: 0 | K57: 0 | M57: 20.01302214
A58: ='Hist Opex Cat Yr1 New'!A58 -> 0 | B58: Total Other3 | D58: =D54+D41+D37 -> 0 | E58: =E54+E41+E37 -> 0 | F58: 0 | G58: 0 | H58: 14.02 | I58: 4.672 | J58: 8.88 | K58: 5.378 | M58: 32.95
A59: ='Hist Opex Cat Yr1 New'!A59 -> 0 | B59: TOTAL CONTROLLABLE OPEX | D59: =SUM(D56:D58) -> 13.06078512 | E59: =SUM(E56:E58) -> 0 | F59: 11.11 | G59: 7.06 | H59: 14.02 | I59: 4.672 | J59: 8.88 | K59: 5.378 | M59: 64.18078512 | O59: =O54+O42 -> 60.237
A60: ='Hist Opex Cat Yr1 New'!A60 -> 0
A61: ='Hist Opex Cat Yr1 New'!A61 -> 0 | B61: Other Opex
A62: ='Hist Opex Cat Yr1 New'!A62 -> -2 | B62: Network Support | J62: 6.48 | M62: =SUM(D62:K62) -> 6.48 | O62: 5.97
B63: Debt Raising | M63: 0
B64: Self Insurance | K64: 1.923 | M64: 1.923 | O64: =K64 -> 1.923
A65: ='Hist Opex Cat Yr1 New'!A65 -> 0 | B65: TOTAL OTHER OPEX | D65: =SUM(D62:D64) -> 0 | E65: 0 | F65: 0 | G65: 0 | H65: 0 | I65: 0 | J65: =SUM(J62:J64) -> 6.48 | K65: =SUM(K62:K64) -> 1.923 | M65: =SUM(M62:M64) -> 8.403 | O65: =SUM(O62:O64) -> 7.893
B68: Grand Total | D68: =D65+D59 -> 13.06078512 | E68: =E65+E59 -> 0 | F68: 11.11 | G68: 7.06 | H68: 14.02 | I68: 4.672 | J68: 15.36 | K68: 7.301 | M68: 72.58378512 | O68: =O65+O59 -> 68.13
B70: Revenue Cap Allowance | D70: 10.28 | E70: 0.16 | F70: 6.33 | G70: 7.7 | H70: =O37 -> 10.03 | I70: =O41 -> 2.43 | J70: =O45+O46+O48+O62 -> 11.29 | K70: =O53+O47+O64 -> 19.91 | M70: =SUM(D70:K70) -> 68.13
B72: Revenue Cap Allowance excludes debt raising cost
B74: 1 Total Maintenance Labour is the total combination of all Field Maintenance items
B75: 2Total Maintenance Non Labour is total combination of all Field Maintenance items
B76: 3The Total Other are all costs sourced from the opex line items including and below Field Support
B77: Labour includes the labour component of both in-house and external maintenance service providers

Sheet Hist Opex Cat Yr5 New
D1: Current Reporting Format 2008/09 to 2012/13
D2: Home | F2: Link to Opex instructions - Table 6.1
B3: 1.7 HISTORIC OPEX by expenditure category
B4: for the year ended 30 June 2013 | D4: ='Hist Opex Cat Yr1 New'!D4 -> -1 | E4: ='Hist Opex Cat Yr1 New'!E4 -> -1 | F4: ='Hist Opex Cat Yr1 New'!F4 -> -1 | G4: ='Hist Opex Cat Yr1 New'!G4 -> 0 | H4: ='Hist Opex Cat Yr1 New'!H4 -> 0 | I4: ='Hist Opex Cat Yr1 New'!I4 -> 0 | J4: ='Hist Opex Cat Yr1 New'!J4 -> 0 | K4: ='Hist Opex Cat Yr1 New'!K4 -> 0
B5: ($m, nominal) | D5: Full Year Ended 30 June 2013
D6: Field Maintenance | G6: Operational Refurbishment | I6: Network Monitoring & Control | J6: Support / Corporate
D7: Routine | E7: Condition-Based | F7: Corrective | H7: Maintenance Support | J7: Network | K7: Non-Network | M7: TOTAL | O7: Revenue Cap Allowance
B8: Direct Operations & Maintenance
B9: Maintenance
B10: Communications
A11: ='Hist Opex Cat Yr1 New'!A11 -> 0 | B11: Labour | D11: 0.3774124809 | F11: 0.0718754417 | G11: 0.1651610709 | M11: =SUM(D11:K11) -> 0.6144489935
A12: ='Hist Opex Cat Yr1 New'!A12 -> 0 | B12: Non Labour | D12: 0.9936581191 | F12: 0.1892349083 | G12: 0.4348389291 | M12: =SUM(D12:K12) -> 1.617731957
A13: ='Hist Opex Cat Yr1 New'!A13 -> 0 | B13: Sub-Totals | D13: =SUM(D11:D12) -> 1.3710706 | E13: 0 | F13: 0.26111035 | G13: 0.6 | H13: 0 | I13: 0 | J13: 0 | K13: 0 | M13: 2.23218095 | O13: 2.72
A14: ='Hist Opex Cat Yr1 New'!A14 -> 0 | B14: Lines
A15: ='Hist Opex Cat Yr1 New'!A15 -> 0 | B15: Labour | D15: 0.7291217686 | F15: 0.6953017619 | G15: 0.4342684779 | M15: 1.858692008
A16: ='Hist Opex Cat Yr1 New'!A16 -> 0 | B16: Non Labour | D16: 2.700333051 | F16: 2.575079238 | G16: 1.608331522 | M16: 6.883743812
A17: ='Hist Opex Cat Yr1 New'!A17 -> 0 | B17: Sub-Totals | D17: =SUM(D15:D16) -> 3.42945482 | E17: 0 | F17: 3.270381 | G17: 2.0426 | H17: 0 | I17: 0 | J17: 0 | K17: 0 | M17: 8.74243582 | O17: 5.8
A18: ='Hist Opex Cat Yr1 New'!A18 -> 0 | B18: Secondary Systems
A19: ='Hist Opex Cat Yr1 New'!A19 -> 0 | B19: Labour | D19: 0.427685992 | F19: 0.474596026 | G19: 0.07292280868 | M19: 0.9752048267
A20: ='Hist Opex Cat Yr1 New'!A20 -> 0 | B20: Non Labour | D20: 0.374934978 | F20: 0.416059104 | G20: 0.06392847132 | M20: 0.8549225533
A21: ='Hist Opex Cat Yr1 New'!A21 -> 0 | B21: Sub-Totals | D21: =SUM(D19:D20) -> 0.80262097 | E21: 0 | F21: 0.89065513 | G21: 0.13685128 | H21: 0 | I21: 0 | J21: 0 | K21: 0 | M21: 1.83012738 | O21: 3.81
A22: ='Hist Opex Cat Yr1 New'!A22 -> 0 | B22: Substations
A23: ='Hist Opex Cat Yr1 New'!A23 -> 0 | B23: Labour | D23: 3.053899712 | F23: 2.282726387 | G23: 1.529252589 | M23: 6.865878687
A24: ='Hist Opex Cat Yr1 New'!A24 -> 0 | B24: Non Labour | D24: 3.306508408 | F24: 2.471546123 | G24: 1.655747411 | M24: 7.433801943
A25: ='Hist Opex Cat Yr1 New'!A25 -> 0 | B25: Sub-Totals | D25: =SUM(D23:D24) -> 6.36040812 | E25: 0 | F25: 4.75427251 | G25: 3.185 | H25: 0 | I25: 0 | J25: 0 | K25: 0 | M25: 14.29968063 | O25: 11.8
A26: ='Hist Opex Cat Yr1 New'!A26 -> 0 | B26: Easements
A27: ='Hist Opex Cat Yr1 New'!A27 -> 0 | B27: Labour | D27: 0.785432499 | F27: 0 | M27: 0.785432499
A28: ='Hist Opex Cat Yr1 New'!A28 -> 0 | B28: Non Labour | D28: 0.690338221 | F28: 0 | M28: 0.690338221
A29: ='Hist Opex Cat Yr1 New'!A29 -> 0 | B29: Sub-Totals | D29: =SUM(D27:D28) -> 1.47577072 | E29: 0 | F29: 0 | G29: 0 | H29: 0 | I29: 0 | J29: 0 | K29: 0 | M29: 1.47577072 | O29: 1.26
A30: ='Hist Opex Cat Yr1 New'!A30 -> 0 | B30: Summary
A31: ='Hist Opex Cat Yr1 New'!A31 -> 0 | B31: Sub-Total Labour | D31: =D11+D15+D19+D23+D27 -> 5.373552452 | E31: =E11+E15+E19+E23+E27 -> 0 | F31: 3.524499617 | G31: 2.201604946 | H31: 0 | I31: 0 | J31: 0 | K31: 0 | M31: 11.09965701
A32: ='Hist Opex Cat Yr1 New'!A32 -> 0 | B32: Sub-Total Non Labour | D32: =D12+D16+D20+D24+D28 -> 8.065772778 | E32: 0 | F32: 5.651919373 | G32: 3.762846334 | H32: 0 | I32: 0 | J32: 0 | K32: 0 | M32: 17.48053849
A33: ='Hist Opex Cat Yr1 New'!A33 -> 0 | B33: Total Maintenance | D33: =D32+D31 -> 13.43932523 | E33: =E32+E31 -> 0 | F33: 9.17641899 | G33: 5.96445128 | H33: 0 | I33: 0 | J33: 0 | K33: 0 | M33: 28.5801955 | O33: =SUM(O13:O29) -> 25.39
A34: ='Hist Opex Cat Yr1 New'!A34 -> 0 | B34: Field Support
A35: ='Hist Opex Cat Yr1 New'!A35 -> 0 | B35: Field Support | H35: 7.07520283 | M35: 7.07520283 | O35: 8.29
A36: ='Hist Opex Cat Yr1 New'!A36 -> 0 | B36: Direct Charges | H36: 3.85836036 | M36: 3.85836036 | O36: 2.54
A37: ='Hist Opex Cat Yr1 New'!A37 -> 0 | B37: Total Field Support | D37: =SUM(D35:D36) -> 0 | E37: =SUM(E35:E36) -> 0 | F37: 0 | G37: 0 | H37: 10.93356319 | I37: 0 | J37: 0 | K37: 0 | M37: 10.93356319 | O37: =SUM(O35:O36) -> 10.83
A38: ='Hist Opex Cat Yr1 New'!A38 -> 0 | B38: Operations
A39: ='Hist Opex Cat Yr1 New'!A39 -> 0 | B39: Network Switching | I39: 7.05392881 | M39: 7.05392881 | O39: 1.78
A40: ='Hist Opex Cat Yr1 New'!A40 -> 0 | B40: Asset Monitoring | I40: 1.87759711 | M40: 1.87759711 | O40: 0.84
A41: ='Hist Opex Cat Yr1 New'!A41 -> 0 | B41: Total Operations | D41: =SUM(D39:D40) -> 0 | E41: =SUM(E39:E40) -> 0 | F41: 0 | G41: 0 | H41: 0 | I41: 8.93152592 | J41: 0 | K41: 0 | M41: 8.93152592 | O41: =SUM(O39:O40) -> 2.62
A42: ='Hist Opex Cat Yr1 New'!A42 -> 0 | B42: Total Direct Operations & Maintenance | D42: =D41+D33+D37 -> 13.43932523 | E42: =E41+E33+E37 -> 0 | F42: 9.17641899 | G42: 5.96445128 | H42: 10.93356319 | I42: 8.93152592 | J42: 0 | K42: 0 | M42: 48.44528461 | O42: =O41+O37+O33 -> 38.84
A43: ='Hist Opex Cat Yr1 New'!A43 -> 0 | B43: Other Controllable
A44: ='Hist Opex Cat Yr1 New'!A44 -> 0 | B44: Asset Manager Support
A45: ='Hist Opex Cat Yr1 New'!A45 -> 0 | B45: Grid Planning | J45: 4.25039698 | K45: 0 | M45: 4.25039698 | O45: 1.27
A46: ='Hist Opex Cat Yr1 New'!A46 -> 0 | B46: Project Support | J46: 3.43375627 | K46: 0 | M46: 3.43375627 | O46: 3.6
A47: ='Hist Opex Cat Yr1 New'!A47 -> 0 | B47: IT Support | K47: 0.5161669 | M47: 0.5161669 | O47: 2.05
A48: ='Hist Opex Cat Yr1 New'!A48 -> 0 | B48: Customer & Regulatory Support | J48: =1.96477026+0.15 -> 2.11477026 | K48: 0 | M48: 2.11477026 | O48: 0.74
A49: ='Hist Opex Cat Yr1 New'!A49 -> 0 | B49: Sub-Totals | D49: =SUM(D45:D48) -> 0 | E49: =SUM(E45:E48) -> 0 | F49: 0 | G49: 0 | H49: 0 | I49: 0 | J49: 9.79892351 | K49: 0.5161669 | M49: 10.31509041 | O49: =SUM(O45:O48) -> 7.66
A50: ='Hist Opex Cat Yr1 New'!A50 -> 0 | B50: Corporate Support
A51: ='Hist Opex Cat Yr1 New'!A51 -> -1 | B51: Insurance | J51: 0 | K51: 2.818556 | M51: 2.818556 | O51: =5.91-K64 -> 3.877343628
A52: ='Hist Opex Cat Yr1 New'!A52 -> -1 | B52: Corporate Support | J52: 0 | K52: =3.87106935-0.15 -> 3.72106935 | M52: 3.72106935 | O52: 13.17
A53: ='Hist Opex Cat Yr1 New'!A53 -> 0 | B53: Sub-Totals | D53: =SUM(D51:D52) -> 0 | E53: =SUM(E51:E52) -> 0 | F53: 0 | G53: 0 | H53: 0 | I53: 0 | J53: 0 | K53: 6.53962535 | M53: 6.53962535 | O53: =SUM(O51:O52) -> 17.04734363
A54: ='Hist Opex Cat Yr1 New'!A54 -> 0 | B54: Total Other Controllable | D54: =D53+D49 -> 0 | E54: =E53+E49 -> 0 | F54: 0 | G54: 0 | H54: 0 | I54: 0 | J54: 9.79892351 | K54: 7.05579225 | M54: 16.85471576 | O54: =O53+O49 -> 24.70734363
A55: ='Hist Opex Cat Yr1 New'!A55 -> 0 | B55: Summary | M55: 0
A56: ='Hist Opex Cat Yr1 New'!A56 -> 0 | B56: Total Maintenance Labour1 | D56: =D31 -> 5.373552452 | E56: =E31 -> 0 | F56: 3.524499617 | G56: 2.201604946 | H56: 0 | I56: 0 | J56: 0 | K56: 0 | M56: 11.09965701
A57: ='Hist Opex Cat Yr1 New'!A57 -> 0 | B57: Total Maintenance Non labour2 | D57: =D32 -> 8.065772778 | E57: =E32 -> 0 | F57: 5.651919373 | G57: 3.762846334 | H57: 0 | I57: 0 | J57: 0 | K57: 0 | M57: 17.48053849
A58: ='Hist Opex Cat Yr1 New'!A58 -> 0 | B58: Total Other3 | D58: =D54+D41+D37 -> 0 | E58: =E54+E41+E37 -> 0 | F58: 0 | G58: 0 | H58: =H54+H41+H37 -> 10.93356319 | I58: 8.93152592 | J58: 9.79892351 | K58: 7.05579225 | M58: 36.71980487
A59: ='Hist Opex Cat Yr1 New'!A59 -> 0 | B59: TOTAL CONTROLLABLE OPEX | D59: =SUM(D56:D58) -> 13.43932523 | E59: =SUM(E56:E58) -> 0 | F59: 9.17641899 | G59: 5.96445128 | H59: 10.93356319 | I59: 8.93152592 | J59: 9.79892351 | K59: 7.05579225 | M59: 65.30000037 | O59: =O54+O42 -> 63.54734363
A60: ='Hist Opex Cat Yr1 New'!A60 -> 0
A61: ='Hist Opex Cat Yr1 New'!A61 -> 0 | B61: Other Opex
A62: ='Hist Opex Cat Yr1 New'!A62 -> -2 | B62: Network Support | J62: 6.74 | M62: =SUM(D62:K62) -> 6.74 | O62: 7.23
B63: Debt Raising | M63: 0
B64: Self Insurance | K64: 2.032656372 | M64: 2.032656372 | O64: =K64 -> 2.032656372
A65: ='Hist Opex Cat Yr1 New'!A65 -> 0 | B65: TOTAL OTHER OPEX | D65: =SUM(D62:D64) -> 0 | E65: 0 | F65: 0 | G65: 0 | H65: 0 | I65: 0 | J65: =SUM(J62:J64) -> 6.74 | K65: =SUM(K62:K64) -> 2.032656372 | M65: =SUM(M62:M64) -> 8.772656372 | O65: =SUM(O62:O64) -> 9.262656372
B68: Grand Total | D68: =D65+D59 -> 13.43932523 | E68: =E65+E59 -> 0 | F68: 9.17641899 | G68: 5.96445128 | H68: 10.93356319 | I68: 8.93152592 | J68: 16.53892351 | K68: 9.088448622 | M68: 74.07265674 | O68: =O65+O59 -> 72.81
B70: Revenue Cap Allowance | D70: 11.27 | E70: 0.19 | F70: 7.32 | G70: 6.61 | H70: =O37 -> 10.83 | I70: =O41 -> 2.62 | J70: =O45+O46+O48+O62 -> 12.84 | K70: =O53+O47+O64 -> 21.13 | M70: =SUM(D70:K70) -> 72.81
B72: Revenue Cap Allowance excludes debt raising cost
B74: 1 Total Maintenance Labour is the total combination of all Field Maintenance items
B75: 2Total Maintenance Non Labour is total combination of all Field Maintenance items
B76: 3The Total Other are all costs sourced from the opex line items including and below Field Support
B77: Labour includes the labour component of both in-house and external maintenance service providers

Sheet Fcast Opex Summary
B3: 1.1 FORECAST OPEX by expenditure category
B4: for the period 1 July 2013 to 30 June 2018
B5: ($m, real 2012/13)
D7: 2013-14 | E7: 2014-15 | F7: 2015-16 | G7: 2016-17 | H7: 2017-18 | I7: Total | J7: Revenue Cap Allowance | K7: Key cost drivers and explanation for material differences over time
B8: Direct Operations & Maintenance
B9: Maintenance
B10: Communications
B11: Labour | D11: ='Fcast Opex Cat Yr6'!O11 -> 1.64336123 | E11: ='Fcast Opex Cat Yr7'!O11 -> 2.0992985 | F11: ='Fcast Opex Cat Yr8'!O11 -> 2.030620556 | G11: ='Fcast Opex Cat Yr9'!O11 -> 1.937887274 | H11: ='Fcast Opex Cat Yr10'!O11 -> 1.874238193 | I11: =SUM(D11:H11) -> 9.585405753
B12: Non Labour | D12: ='Fcast Opex Cat Yr6'!O12 -> 0.2067053275 | E12: ='Fcast Opex Cat Yr7'!O12 -> 0.19211845 | F12: ='Fcast Opex Cat Yr8'!O12 -> 0.1821960423 | G12: ='Fcast Opex Cat Yr9'!O12 -> 0.2035096483 | H12: ='Fcast Opex Cat Yr10'!O12 -> 0.19403967 | I12: =SUM(D12:H12) -> 0.978569138
B13: Sub-Totals | D13: =D12+D11 -> 1.850066558 | E13: =E12+E11 -> 2.29141695 | F13: =F12+F11 -> 2.212816598 | G13: =G12+G11 -> 2.141396922 | H13: =H12+H11 -> 2.068277863 | I13: =SUM(D13:H13) -> 10.56397489
B14: Lines
B15: Labour | D15: ='Fcast Opex Cat Yr6'!O15 -> 14.95541969 | E15: ='Fcast Opex Cat Yr7'!O15 -> 16.57290609 | F15: ='Fcast Opex Cat Yr8'!O15 -> 16.48358364 | G15: ='Fcast Opex Cat Yr9'!O15 -> 13.14107242 | H15: ='Fcast Opex Cat Yr10'!O15 -> 10.90160407 | I15: =SUM(D15:H15) -> 72.05458591
B16: Non Labour | D16: ='Fcast Opex Cat Yr6'!O16 -> 3.516794452 | E16: ='Fcast Opex Cat Yr7'!O16 -> 3.563917163 | F16: ='Fcast Opex Cat Yr8'!O16 -> 3.476386065 | G16: ='Fcast Opex Cat Yr9'!O16 -> 4.108222914 | H16: ='Fcast Opex Cat Yr10'!O16 -> 4.141024693 | I16: =SUM(D16:H16) -> 18.80634529
B17: Sub-Totals | D17: =D16+D15 -> 18.47221414 | E17: =E16+E15 -> 20.13682325 | F17: =F16+F15 -> 19.95996971 | G17: =G16+G15 -> 17.24929533 | H17: =H16+H15 -> 15.04262877 | I17: =SUM(D17:H17) -> 90.86093119
B18: Secondary Systems
B19: Labour | D19: ='Fcast Opex Cat Yr6'!O19 -> 2.122676759 | E19: ='Fcast Opex Cat Yr7'!O19 -> 2.066566672 | F19: ='Fcast Opex Cat Yr8'!O19 -> 2.227756002 | G19: ='Fcast Opex Cat Yr9'!O19 -> 2.128059307 | H19: ='Fcast Opex Cat Yr10'!O19 -> 2.534176548 | I19: =SUM(D19:H19) -> 11.07923529
B20: Non Labour | D20: ='Fcast Opex Cat Yr6'!O20 -> 0.2787411291 | E20: ='Fcast Opex Cat Yr7'!O20 -> 0.2606182286 | F20: ='Fcast Opex Cat Yr8'!O20 -> 0.2640006389 | G20: ='Fcast Opex Cat Yr9'!O20 -> 0.239396359 | H20: ='Fcast Opex Cat Yr10'!O20 -> 0.2636128015 | I20: =SUM(D20:H20) -> 1.306369157
B21: Sub-Totals | D21: =D20+D19 -> 2.401417888 | E21: =E20+E19 -> 2.3271849 | F21: =F20+F19 -> 2.491756641 | G21: =G20+G19 -> 2.367455666 | H21: =H20+H19 -> 2.797789349 | I21: =SUM(D21:H21) -> 12.38560444
B22: Substations
B23: Labour | D23: ='Fcast Opex Cat Yr6'!O23 -> 14.61511005 | E23: ='Fcast Opex Cat Yr7'!O23 -> 16.35424203 | F23: ='Fcast Opex Cat Yr8'!O23 -> 16.15234442 | G23: ='Fcast Opex Cat Yr9'!O23 -> 15.97232891 | H23: ='Fcast Opex Cat Yr10'!O23 -> 17.55996614 | I23: =SUM(D23:H23) -> 80.65399154
B24: Non Labour | D24: ='Fcast Opex Cat Yr6'!O24 -> 3.240625101 | E24: ='Fcast Opex Cat Yr7'!O24 -> 3.199055285 | F24: ='Fcast Opex Cat Yr8'!O24 -> 2.683921433 | G24: ='Fcast Opex Cat Yr9'!O24 -> 2.434954026 | H24: ='Fcast Opex Cat Yr10'!O24 -> 2.55009524 | I24: =SUM(D24:H24) -> 14.10865108
B25: Sub-Totals | D25: =D24+D23 -> 17.85573515 | E25: =E24+E23 -> 19.55329731 | F25: =F24+F23 -> 18.83626585 | G25: =G24+G23 -> 18.40728293 | H25: =H24+H23 -> 20.11006138 | I25: =SUM(D25:H25) -> 94.76264263
B26: Easements
B27: Labour | D27: ='Fcast Opex Cat Yr6'!O27 -> 1.148170724 | E27: ='Fcast Opex Cat Yr7'!O27 -> 1.148916373 | F27: ='Fcast Opex Cat Yr8'!O27 -> 1.149695571 | G27: ='Fcast Opex Cat Yr9'!O27 -> 1.150567857 | H27: ='Fcast Opex Cat Yr10'!O27 -> 1.151518763 | I27: =SUM(D27:H27) -> 5.748869289
B28: Non Labour | D28: ='Fcast Opex Cat Yr6'!O28 -> 0.4661119734 | E28: ='Fcast Opex Cat Yr7'!O28 -> 0.5258071357 | F28: ='Fcast Opex Cat Yr8'!O28 -> 0.28161905 | G28: ='Fcast Opex Cat Yr9'!O28 -> 0.28161906 | H28: ='Fcast Opex Cat Yr10'!O28 -> 0.28161906 | I28: =SUM(D28:H28) -> 1.836776279
B29: Sub-Totals | D29: =D28+D27 -> 1.614282698 | E29: =E28+E27 -> 1.674723509 | F29: =F28+F27 -> 1.431314621 | G29: =G28+G27 -> 1.432186917 | H29: =H28+H27 -> 1.433137823 | I29: =SUM(D29:H29) -> 7.585645568
B30: Summary
B31: Sub-Total Labour | D31: =D11+D15+D19+D23+D27 -> 34.48473845 | E31: 38.24192966 | F31: 38.04400019 | G31: 34.32991576 | H31: 34.02150372 | I31: =SUM(D31:H31) -> 179.1220878
B32: Sub-Total Non Labour | D32: 7.708977984 | E32: 7.741516262 | F32: 6.888123229 | G32: 7.267702007 | H32: 7.430391465 | I32: =SUM(D32:H32) -> 37.03671095
B33: Total Maintenance | D33: =D32+D31 -> 42.19371644 | E33: =E32+E31 -> 45.98344592 | F33: =F32+F31 -> 44.93212342 | G33: =G32+G31 -> 41.59761777 | H33: =H32+H31 -> 41.45189518 | I33: =SUM(D33:H33) -> 216.1587987
B34: Network Optimisation
B35: Network Optimisation | D35: ='Fcast Opex Cat Yr6'!O35 -> 0.7822596637 | E35: ='Fcast Opex Cat Yr7'!O35 -> 1.166631196 | F35: ='Fcast Opex Cat Yr8'!O35 -> 1.18571398 | G35: ='Fcast Opex Cat Yr9'!O35 -> 1.205872963 | H35: ='Fcast Opex Cat Yr10'!O35 -> 0.5404633751 | I35: =SUM(D35:H35) -> 4.880941177
B36: Total Network Optimisation | D36: =D35 -> 0.7822596637 | E36: 1.166631196 | F36: 1.18571398 | G36: 1.205872963 | H36: 0.5404633751 | I36: 4.880941177
B37: Field Support
B38: Field Support | D38: ='Fcast Opex Cat Yr6'!O38 -> 5.799137239 | E38: ='Fcast Opex Cat Yr7'!O38 -> 5.850997808 | F38: ='Fcast Opex Cat Yr8'!O38 -> 5.928294041 | G38: ='Fcast Opex Cat Yr9'!O38 -> 6.046028837 | H38: ='Fcast Opex Cat Yr10'!O38 -> 6.016092737 | I38: =SUM(D38:H38) -> 29.64055066
B39: Direct Charges | D39: ='Fcast Opex Cat Yr6'!O39 -> 4.34687836 | E39: ='Fcast Opex Cat Yr7'!O39 -> 4.536010344 | F39: ='Fcast Opex Cat Yr8'!O39 -> 4.755687603 | G39: ='Fcast Opex Cat Yr9'!O39 -> 4.965840345 | H39: ='Fcast Opex Cat Yr10'!O39 -> 5.187360358 | I39: =SUM(D39:H39) -> 23.79177701
B40: Total Field Support | D40: =D39+D38 -> 10.1460156 | E40: =E39+E38 -> 10.38700815 | F40: =F39+F38 -> 10.68398164 | G40: =G39+G38 -> 11.01186918 | H40: =H39+H38 -> 11.20345309 | I40: =SUM(D40:H40) -> 53.43232767
B41: Operations
B42: Network Switching | D42: ='Fcast Opex Cat Yr6'!O42 -> 6.395412294 | E42: ='Fcast Opex Cat Yr7'!O42 -> 6.543534336 | F42: ='Fcast Opex Cat Yr8'!O42 -> 6.777533937 | G42: ='Fcast Opex Cat Yr9'!O42 -> 6.970809657 | H42: ='Fcast Opex Cat Yr10'!O42 -> 7.077660875 | I42: =SUM(D42:H42) -> 33.7649511
B43: Asset Monitoring | D43: ='Fcast Opex Cat Yr6'!O43 -> 1.87181065 | E43: ='Fcast Opex Cat Yr7'!O43 -> 1.927394266 | F43: ='Fcast Opex Cat Yr8'!O43 -> 2.01438035 | G43: ='Fcast Opex Cat Yr9'!O43 -> 2.072664705 | H43: ='Fcast Opex Cat Yr10'!O43 -> 2.13143773 | I43: =SUM(D43:H43) -> 10.0176877
B44: Total Operations | D44: =D43+D42 -> 8.267222943 | E44: =E43+E42 -> 8.470928601 | F44: =F43+F42 -> 8.791914287 | G44: =G43+G42 -> 9.043474362 | H44: =H43+H42 -> 9.209098605 | I44: =SUM(D44:H44) -> 43.7826388
B45: Total Direct Operations & Maintenance | D45: =D44+D40+D33+D36 -> 61.38921464 | E45: =E44+E40+E33+E36 -> 66.00801387 | F45: =F44+F40+F33+F36 -> 65.59373333 | G45: =G44+G40+G33+G36 -> 62.85883427 | H45: =H44+H40+H33+H36 -> 62.40491026 | I45: =SUM(D45:H45) -> 318.2547064
B46: Other Controllable
B47: Asset Manager Support
B48: Grid Planning | D48: ='Fcast Opex Cat Yr6'!O48 -> 3.875042 | E48: ='Fcast Opex Cat Yr7'!O48 -> 3.980727996 | F48: ='Fcast Opex Cat Yr8'!O48 -> 4.126938429 | G48: ='Fcast Opex Cat Yr9'!O48 -> 4.237930275 | H48: ='Fcast Opex Cat Yr10'!O48 -> 4.352843395 | I48: =SUM(D48:H48) -> 20.57348209
B49: Project Support | D49: ='Fcast Opex Cat Yr6'!O49 -> 5.112731257 | E49: ='Fcast Opex Cat Yr7'!O49 -> 5.19204984 | F49: ='Fcast Opex Cat Yr8'!O49 -> 5.295354341 | G49: ='Fcast Opex Cat Yr9'!O49 -> 5.433923672 | H49: ='Fcast Opex Cat Yr10'!O49 -> 5.449395098 | I49: =SUM(D49:H49) -> 26.48345421
B50: IT Support | D50: ='Fcast Opex Cat Yr6'!O50 -> 0.5850959119 | E50: ='Fcast Opex Cat Yr7'!O50 -> 0.601053531 | F50: ='Fcast Opex Cat Yr8'!O50 -> 0.6231299695 | G50: ='Fcast Opex Cat Yr9'!O50 -> 0.6398887235 | H50: ='Fcast Opex Cat Yr10'!O50 -> 0.657239554 | I50: =SUM(D50:H50) -> 3.10640769
B51: Customer & Regulatory Support | D51: ='Fcast Opex Cat Yr6'!O51 -> 0.6629950153 | E51: ='Fcast Opex Cat Yr7'!O51 -> 0.6810772163 | F51: ='Fcast Opex Cat Yr8'!O51 -> 0.7060928905 | G51: ='Fcast Opex Cat Yr9'!O51 -> 2.229921506 | H51: ='Fcast Opex Cat Yr10'!O51 -> 2.290386691 | I51: =SUM(D51:H51) -> 6.570473318
B52: Sub-Totals | D52: =SUM(D48:D51) -> 10.23586418 | E52: =SUM(E48:E51) -> 10.45490858 | F52: =SUM(F48:F51) -> 10.75151563 | G52: =SUM(G48:G51) -> 12.54166418 | H52: =SUM(H48:H51) -> 12.74986474 | I52: =SUM(D52:H52) -> 56.73381731
B53: Corporate Support
B54: Insurance | D54: ='Fcast Opex Cat Yr6'!O54 -> 2.584855648 | E54: ='Fcast Opex Cat Yr7'!O54 -> 2.767309215 | F54: ='Fcast Opex Cat Yr8'!O54 -> 3.024906067 | G54: ='Fcast Opex Cat Yr9'!O54 -> 3.2512173 | H54: ='Fcast Opex Cat Yr10'!O54 -> 3.392855396 | I54: =SUM(D54:H54) -> 15.02114363
B55: Corporate Support | D55: ='Fcast Opex Cat Yr6'!O55 -> 4.337983378 | E55: ='Fcast Opex Cat Yr7'!O55 -> 4.340488575 | F55: ='Fcast Opex Cat Yr8'!O55 -> 4.341984966 | G55: ='Fcast Opex Cat Yr9'!O55 -> 4.380407617 | H55: ='Fcast Opex Cat Yr10'!O55 -> 4.33458404 | I55: =SUM(D55:H55) -> 21.73544858
B56: Sub-Totals | D56: =D55+D54 -> 6.922839026 | E56: =E55+E54 -> 7.10779779 | F56: =F55+F54 -> 7.366891033 | G56: =G55+G54 -> 7.631624917 | H56: =H55+H54 -> 7.727439436 | I56: =SUM(D56:H56) -> 36.7565922
B57: Total Other Controllable | D57: =D56+D52 -> 17.15870321 | E57: =E56+E52 -> 17.56270637 | F57: =F56+F52 -> 18.11840666 | G57: =G56+G52 -> 20.17328909 | H57: =H56+H52 -> 20.47730417 | I57: =SUM(D57:H57) -> 93.49040951
B58: Summary
B59: Total Maintenance Labour1 | D59: =D31 -> 34.48473845 | E59: =E31 -> 38.24192966 | F59: =F31 -> 38.04400019 | G59: =G31 -> 34.32991576 | H59: =H31 -> 34.02150372 | I59: =SUM(D59:H59) -> 179.1220878
B60: Total Maintenance Non labour2 | D60: =D32 -> 7.708977984 | E60: 4.702860685 | F60: 8.191662599 | G60: 9.707 | H60: 11.64 | I60: =SUM(D60:H60) -> 41.95050127
B61: Total Other3 | D61: =D57+D40+D44+D36 -> 36.35420142 | E61: =E57+E40+E44+E36 -> 37.58727432 | F61: =F57+F40+F44+F36 -> 38.78001657 | G61: =G57+G40+G44+G36 -> 41.4345056 | H61: =H57+H40+H44+H36 -> 41.43031925 | I61: =SUM(D61:H61) -> 195.5863172
B62: TOTAL CONTROLLABLE OPEX | D62: =D57+D45 -> 78.54791785 | E62: =E57+E45 -> 83.57072024 | F62: =F57+F45 -> 83.71213999 | G62: =G57+G45 -> 83.03212337 | H62: =H57+H45 -> 82.88221443 | I62: =SUM(D62:H62) -> 411.7451159
B64: Other Opex
B65: Network Support | D65: ='Fcast Opex Cat Yr6'!O65 -> 8.11644532 | E65: ='Fcast Opex Cat Yr7'!O65 -> 8.18269492 | F65: ='Fcast Opex Cat Yr8'!O65 -> 8.23446684 | G65: ='Fcast Opex Cat Yr9'!O65 -> 8.49143021 | H65: ='Fcast Opex Cat Yr10'!O65 -> 8.5753783 | I65: =SUM(D65:H65) -> 41.60041559
B66: Debt Raising | D66: ='Fcast Opex Cat Yr6'!O66 -> 0 | E66: ='Fcast Opex Cat Yr7'!O66 -> 0 | F66: ='Fcast Opex Cat Yr8'!O66 -> 0 | G66: ='Fcast Opex Cat Yr9'!O66 -> 0 | H66: ='Fcast Opex Cat Yr10'!O66 -> 0 | I66: =SUM(D66:H66) -> 0
B67: Self Insurance | D67: ='Fcast Opex Cat Yr6'!O68 -> 1.300378536 | E67: ='Fcast Opex Cat Yr7'!O68 -> 1.330276367 | F67: ='Fcast Opex Cat Yr8'!O68 -> 1.362543867 | G67: ='Fcast Opex Cat Yr9'!O68 -> 1.393927456 | H67: ='Fcast Opex Cat Yr10'!O68 -> 1.426799126 | I67: =SUM(D67:H67) -> 6.813925351
B68: TOTAL OTHER OPEX | D68: =SUM(D65:D67) -> 9.416823856 | E68: =SUM(E65:E67) -> 9.512971287 | F68: =SUM(F65:F67) -> 9.597010707 | G68: =SUM(G65:G67) -> 9.885357666 | H68: =SUM(H65:H67) -> 10.00217743 | I68: =SUM(D68:H68) -> 48.41434094
B71: Grand Total | D71: =D68+D62 -> 87.96474171 | E71: =E68+E62 -> 93.08369153 | F71: =F68+F62 -> 93.3091507 | G71: =G68+G62 -> 92.91748103 | H71: =H68+H62 -> 92.88439186 | I71: =SUM(D71:H71) -> 460.1594568
B73: Revenue Cap Allowance
B77: 1 Total Maintenance Labour is the total combination of all Field Maintenance items
B78: 2Total Maintenance Non Labour is total combination of all Field Maintenance items
B79: 3The Total Other are all costs sourced from the opex line items including and below Field Support
B80: Labour includes the labour component of both in-house and external maintenance service providers

Sheet Fcast Opex Cat Yr6
B3: 2.2 Future by expenditure category
B4: Cat 2013-14
B5: ($m, real 2012/13) | D5: For the year ended 30 June 2014
D6: Field Maintenance | F6: Field Maintenance | G6: Operational Refurbishment | H6: Network Optimisation | I6: Maintenance Support | J6: Network Monitoring & Control | K6: Support / Corporate | M6: Corporate Support
D7: Routine | E7: Corrective | K7: Network | L7: Non-Network | O7: TOTAL | Q7: Revenue Cap Allowance
B8: Direct Operations & Maintenance
B9: Field Maintenance
B10: Communications
B11: Labour | D11: 1.37333681 | E11: 0.2388405904 | F11: =E11+D11 -> 1.6121774 | G11: 0.03118382981 | H11: 0 | I11: 0 | J11: 0 | K11: 0 | L11: 0 | M11: 0 | O11: =SUM(F11:J11,M11) -> 1.64336123
B12: Non Labour | D12: 0.15056314 | E12: 0.0258125 | F12: =E12+D12 -> 0.17637564 | G12: 0.0303296875 | H12: 0 | I12: 0 | J12: 0 | K12: 0 | L12: 0 | M12: 0 | O12: =SUM(F12:J12,M12) -> 0.2067053275
B13: Sub-Totals | D13: =D12+D11 -> 1.52389995 | E13: =E12+E11 -> 0.2646530904 | F13: =F12+F11 -> 1.78855304 | G13: 0.06151351731 | H13: 0 | I13: 0 | J13: 0 | K13: 0 | L13: 0 | M13: 0 | O13: =O12+O11 -> 1.850066558
B14: Lines
B15: Labour | D15: 1.69915595 | E15: 7.642898894 | F15: =E15+D15 -> 9.342054844 | G15: 5.613364845 | H15: 0 | I15: 0 | J15: 0 | K15: 0 | L15: 0 | M15: 0 | O15: =SUM(F15:J15,M15) -> 14.95541969
B16: Non Labour | D16: 2.4520188 | E16: 0.826 | F16: =E16+D16 -> 3.2780188 | G16: 0.2387756525 | H16: 0 | I16: 0 | J16: 0 | K16: 0 | L16: 0 | M16: 0 | O16: =SUM(F16:J16,M16) -> 3.516794452
B17: Sub-Totals | D17: =D16+D15 -> 4.15117475 | E17: =E16+E15 -> 8.468898894 | F17: =F16+F15 -> 12.62007364 | G17: =G16+G15 -> 5.852140497 | H17: 0 | I17: 0 | J17: 0 | K17: 0 | L17: 0 | M17: 0 | O17: =O16+O15 -> 18.47221414
B18: Secondary Systems
B19: Labour | D19: 1.16076617 | E19: 0.8279807135 | F19: =E19+D19 -> 1.988746884 | G19: 0.1339298752 | H19: 0 | I19: 0 | J19: 0 | K19: 0 | L19: 0 | M19: 0 | O19: =SUM(F19:J19,M19) -> 2.122676759
B20: Non Labour | D20: 0.11089392 | E20: 0.0980875 | F20: =E20+D20 -> 0.20898142 | G20: 0.06975970913 | H20: 0 | I20: 0 | J20: 0 | K20: 0 | L20: 0 | M20: 0 | O20: =SUM(F20:J20,M20) -> 0.2787411291
B21: Sub-Totals | D21: =D20+D19 -> 1.27166009 | E21: =E20+E19 -> 0.9260682135 | F21: =F20+F19 -> 2.197728304 | G21: =G20+G19 -> 0.2036895843 | H21: 0 | I21: 0 | J21: 0 | K21: 0 | L21: 0 | M21: 0 | O21: =O20+O19 -> 2.401417888
B22: SubStations
B23: Labour | D23: 5.9781079 | E23: 4.665352867 | F23: =E23+D23 -> 10.64346077 | G23: 3.971649283 | H23: 0 | I23: 0 | J23: 0 | K23: 0 | L23: 0 | M23: 0 | O23: =SUM(F23:J23,M23) -> 14.61511005
B24: Non Labour | D24: 0.64448194 | E24: 0.4956 | F24: =E24+D24 -> 1.14008194 | G24: 2.100543161 | H24: 0 | I24: 0 | J24: 0 | K24: 0 | L24: 0 | M24: 0 | O24: =SUM(F24:J24,M24) -> 3.240625101
B25: Sub-Totals | D25: =D24+D23 -> 6.62258984 | E25: 5.160952867 | F25: 11.78354271 | G25: 6.072192444 | H25: 0 | I25: 0 | J25: 0 | K25: 0 | L25: 0 | M25: 0 | O25: =O24+O23 -> 17.85573515
B26: Easements
B27: Labour | D27: 1.10995623 | E27: 0.03821449447 | F27: =E27+D27 -> 1.148170724 | G27: 0 | H27: 0 | I27: 0 | J27: 0 | K27: 0 | L27: 0 | M27: 0 | O27: =SUM(F27:J27,M27) -> 1.148170724
B28: Non Labour | D28: 0.27748905 | E28: 0.00413 | F28: =E28+D28 -> 0.28161905 | G28: 0.1844929234 | H28: 0 | I28: 0 | J28: 0 | K28: 0 | L28: 0 | M28: 0 | O28: =SUM(F28:J28,M28) -> 0.4661119734
B29: Sub-Totals | D29: =D28+D27 -> 1.38744528 | E29: 0.04234449447 | F29: 1.429789774 | G29: 0.1844929234 | H29: 0 | I29: 0 | J29: 0 | K29: 0 | L29: 0 | M29: 0 | O29: =O28+O27 -> 1.614282698
B30: Summary
B31: Sub-Total Labour | D31: =D11+D15+D19+D23+D27 -> 11.32132306 | E31: 13.41328756 | F31: 24.73461062 | G31: 9.750127833 | H31: 0 | I31: 0 | J31: 0 | K31: 0 | L31: 0 | M31: 0 | O31: =O11+O15+O19+O23+O27 -> 34.48473845
B32: Sub-Total Non Labour | D32: 3.63544685 | E32: 1.44963 | F32: 5.08507685 | G32: 2.623901134 | H32: 0 | I32: 0 | J32: 0 | K32: 0 | L32: 0 | M32: 0 | O32: =O12+O16+O20+O24+O28 -> 7.708977984
B33: Total Maintenance | D33: =D32+D31 -> 14.95676991 | E33: 14.86291756 | F33: 29.81968747 | G33: 12.37402897 | H33: 0 | I33: 0 | J33: 0 | K33: 0 | L33: 0 | M33: 0 | O33: =O32+O31 -> 42.19371644
B34: Network Optimisation
B35: Network Optimisation | H35: 0.7822596637 | I35: 0 | J35: 0 | K35: 0 | L35: 0 | M35: 0 | O35: =SUM(F35:J35,M35) -> 0.7822596637
B36: Total Network Optimisation | D36: =D35 -> 0 | E36: 0 | F36: 0 | G36: 0 | H36: 0.7822596637 | I36: 0 | J36: 0 | K36: 0 | L36: 0 | M36: 0 | O36: =O35 -> 0.7822596637
B37: Field Support
B38: Field Support | D38: 0 | E38: 0 | F38: 0 | G38: 0 | H38: 0 | I38: 5.799137239 | J38: 0 | K38: 0 | L38: 0 | M38: 0 | O38: =SUM(F38:J38,M38) -> 5.799137239
B39: Direct Charges | D39: 0 | E39: 0 | F39: 0 | G39: 0 | H39: 0 | I39: 4.34687836 | J39: 0 | K39: 0 | L39: 0 | M39: 0 | O39: =SUM(F39:J39,M39) -> 4.34687836
B40: Total Field Support | D40: =D39+D38 -> 0 | E40: 0 | F40: 0 | G40: 0 | H40: 0 | I40: 10.1460156 | J40: 0 | K40: 0 | L40: 0 | M40: 0 | O40: =O39+O38 -> 10.1460156
B41: Operations
B42: Network Switching | D42: 0 | E42: 0 | F42: 0 | G42: 0 | H42: 0 | I42: 0 | J42: 6.395412294 | K42: 0 | L42: 0 | M42: 0 | O42: =SUM(F42:J42,M42) -> 6.395412294
B43: Asset Monitoring | D43: 0 | E43: 0 | F43: 0 | G43: 0 | H43: 0 | I43: 0 | J43: 1.87181065 | K43: 0 | L43: 0 | M43: 0 | O43: =SUM(F43:J43,M43) -> 1.87181065
B44: Total Operations | D44: =D43+D42 -> 0 | E44: 0 | F44: 0 | G44: 0 | H44: 0 | I44: 0 | J44: 8.267222943 | K44: 0 | L44: 0 | M44: 0 | O44: =O43+O42 -> 8.267222943
B45: Total Direct Operations & Maintenance | C45: =C33+C40+C44+C36 -> 0 | D45: 14.95676991 | E45: 14.86291756 | F45: 29.81968747 | G45: 12.37402897 | H45: 0.7822596637 | I45: 10.1460156 | J45: 8.267222943 | K45: 0 | L45: 0 | M45: 0 | O45: =O33+O40+O44+O36 -> 61.38921464
B46: Other Controllable
B47: Asset Manager Support
B48: Grid Planning | D48: 0 | E48: 0 | F48: 0 | G48: 0 | H48: 0 | I48: 0 | J48: 0 | K48: 3.875042 | L48: 0 | M48: =SUM(K48:L48) -> 3.875042 | O48: =SUM(F48:J48,M48) -> 3.875042
B49: Project Support | D49: 0 | E49: 0 | F49: 0 | G49: 0 | H49: 0 | I49: 0 | J49: 0 | K49: 5.112731257 | L49: 0 | M49: =SUM(K49:L49) -> 5.112731257 | O49: =SUM(F49:J49,M49) -> 5.112731257
B50: IT Support | D50: 0 | E50: 0 | F50: 0 | G50: 0 | H50: 0 | I50: 0 | J50: 0 | K50: 0 | L50: 0.5850959119 | M50: =SUM(K50:L50) -> 0.5850959119 | O50: =SUM(F50:J50,M50) -> 0.5850959119
B51: Customer & Regulatory Support | D51: 0 | E51: 0 | F51: 0 | G51: 0 | H51: 0 | I51: 0 | J51: 0 | K51: 0.6629950153 | L51: 0 | M51: 0.6629950153 | O51: =SUM(F51:J51,M51) -> 0.6629950153
B52: Sub-Totals | D52: =SUM(D48:D51) -> 0 | E52: 0 | F52: 0 | G52: 0 | H52: 0 | I52: 0 | J52: 0 | K52: 9.650768272 | L52: 0.5850959119 | M52: 10.23586418 | O52: =SUM(O48:O51) -> 10.23586418
B53: Corporate Support
B54: Insurance | D54: 0 | E54: 0 | F54: 0 | G54: 0 | H54: 0 | I54: 0 | J54: 0 | K54: 0 | L54: 2.584855648 | M54: =SUM(K54:L54) -> 2.584855648 | O54: =SUM(F54:J54,M54) -> 2.584855648
B55: Corporate Support | D55: 0 | E55: 0 | F55: 0 | G55: 0 | H55: 0 | I55: 0 | J55: 0 | K55: 0 | L55: 4.337983378 | M55: 4.337983378 | O55: =SUM(F55:J55,M55) -> 4.337983378
B56: Sub-Totals | D56: =D55+D54 -> 0 | E56: 0 | F56: 0 | G56: 0 | H56: 0 | I56: 0 | J56: 0 | K56: 0 | L56: 6.922839026 | M56: 6.922839026 | O56: =O55+O54 -> 6.922839026
B57: Total Other Controllable | D57: =D56+D52 -> 0 | E57: 0 | F57: 0 | G57: 0 | H57: 0 | I57: 0 | J57: 0 | K57: 9.650768272 | L57: 7.507934938 | M57: 17.15870321 | O57: =O56+O52 -> 17.15870321
B58: Summary
B59: Total Maintenance Labour1 | D59: =D31 -> 11.32132306 | E59: 13.41328756 | F59: 24.73461062 | G59: 9.750127833 | H59: 0 | I59: 0 | J59: 0 | K59: 0 | L59: 0 | M59: 0 | O59: =O31 -> 34.48473845
B60: Total Maintenance Non labour2 | D60: 3.63544685 | E60: 1.44963 | F60: 5.08507685 | G60: 2.623901134 | H60: 0 | I60: 0 | J60: 0 | K60: 0 | L60: 0 | M60: 0 | O60: =O32 -> 7.708977984
B61: Total Other3 | D61: =D40+D44+D36+D52+D56 -> 0 | E61: 0 | F61: 0 | G61: 0 | H61: 0.7822596637 | I61: 10.1460156 | J61: 8.267222943 | K61: 9.650768272 | L61: 7.507934938 | M61: 17.15870321 | O61: =O40+O44+O36+O52+O56 -> 36.35420142
B62: TOTAL CONTROLLABLE OPEX | D62: =D57+D45 -> 14.95676991 | E62: 14.86291756 | F62: 29.81968747 | G62: 12.37402897 | H62: 0.7822596637 | I62: 10.1460156 | J62: 8.267222943 | K62: 9.650768272 | L62: 7.507934938 | M62: 17.15870321 | O62: =O57+O45 -> 78.54791785
B64: Other Opex
B65: Network Support | D65: 0 | E65: 0 | F65: 0 | G65: 0 | H65: 0 | I65: 0 | J65: 0 | K65: 8.11644532 | L65: 0 | M65: =SUM(K65:L65) -> 8.11644532 | O65: =SUM(F65:J65,M65) -> 8.11644532
B66: Debt Raising | D66: 0 | E66: 0 | F66: 0 | G66: 0 | H66: 0 | I66: 0 | J66: 0 | K66: 0 | L66: 0 | M66: =SUM(K66:L66) -> 0 | O66: =SUM(F66:J66,M66) -> 0
B67: Equity Raising | D67: 0 | E67: 0 | F67: 0 | G67: 0 | H67: 0 | I67: 0 | J67: 0 | K67: 0 | L67: 0 | M67: =SUM(K67:L67) -> 0 | O67: =SUM(F67:J67,M67) -> 0
B68: Self Insurance | D68: 0 | E68: 0 | F68: 0 | G68: 0 | H68: 0 | I68: 0 | J68: 0 | K68: 0 | L68: 1.300378536 | M68: =SUM(K68:L68) -> 1.300378536 | O68: =SUM(F68:J68,M68) -> 1.300378536
B69: TOTAL OTHER OPEX | D69: =SUM(D65:D68) -> 0 | E69: 0 | F69: 0 | G69: 0 | H69: 0 | I69: 0 | J69: 0 | K69: 8.11644532 | L69: 1.300378536 | M69: 9.416823856 | O69: =SUM(O65:O68) -> 9.416823856
B72: Grand Total | D72: =D69+D62 -> 14.95676991 | E72: 14.86291756 | F72: 29.81968747 | G72: 12.37402897 | H72: 0.7822596637 | I72: 10.1460156 | J72: 8.267222943 | K72: 17.76721359 | L72: 8.808313474 | M72: 26.57552707 | O72: =O69+O62 -> 87.96474171
B74: Revenue Cap Allowance
B78: 1 Total Maintenance Labour is the total combination of all Field Maintenance items
B79: 2Total Maintenance Non Labour is total combination of all Field Maintenance items
B80: 3The Total Other are all costs sourced from the opex line items including and below Field Support
B81: Labour includes the labour component of both in-house and external maintenance service providers

Sheet Fcast Opex Cat Yr7
B3: 2.4 Future by expenditure category
B4: Cat 2014-15
B5: ($m, real 2012/13) | D5: For the year ended 30 June 2015
D6: Field Maintenance | F6: Field Maintenance | G6: Operational Refurbishment | H6: Network Optimisation | I6: Maintenance Support | J6: Network Monitoring & Control | K6: Support / Corporate | M6: Corporate Support
D7: Routine | E7: Corrective | K7: Network | L7: Non-Network | O7: TOTAL | Q7: Revenue Cap Allowance
B8: Direct Operations & Maintenance
B9: Field Maintenance
B10: Communications
B11: Labour | D11: 1.53648356 | E11: 0.2435008946 | F11: =E11+D11 -> 1.779984455 | G11: 0.3193140457 | H11: 0 | I11: 0 | J11: 0 | K11: 0 | L11: 0 | M11: 0 | O11: =SUM(F11:J11,M11) -> 2.0992985
B12: Non Labour | D12: 0.16630595 | E12: 0.0258125 | F12: =E12+D12 -> 0.19211845 | G12: 0 | H12: 0 | I12: 0 | J12: 0 | K12: 0 | L12: 0 | M12: 0 | O12: =SUM(F12:J12,M12) -> 0.19211845
B13: Sub-Totals | D13: =D12+D11 -> 1.70278951 | E13: =E12+E11 -> 0.2693133946 | F13: =F12+F11 -> 1.972102905 | G13: 0.3193140457 | H13: 0 | I13: 0 | J13: 0 | K13: 0 | L13: 0 | M13: 0 | O13: =O12+O11 -> 2.29141695
B14: Lines
B15: Labour | D15: 1.7902682 | E15: 7.792028629 | F15: =E15+D15 -> 9.582296829 | G15: 6.990609256 | H15: 0 | I15: 0 | J15: 0 | K15: 0 | L15: 0 | M15: 0 | O15: =SUM(F15:J15,M15) -> 16.57290609
B16: Non Labour | D16: 2.46214181 | E16: 0.826 | F16: =E16+D16 -> 3.28814181 | G16: 0.2757753533 | H16: 0 | I16: 0 | J16: 0 | K16: 0 | L16: 0 | M16: 0 | O16: =SUM(F16:J16,M16) -> 3.563917163
B17: Sub-Totals | D17: =D16+D15 -> 4.25241001 | E17: =E16+E15 -> 8.618028629 | F17: =F16+F15 -> 12.87043864 | G17: =G16+G15 -> 7.26638461 | H17: 0 | I17: 0 | J17: 0 | K17: 0 | L17: 0 | M17: 0 | O17: =O16+O15 -> 20.13682325
B18: Secondary Systems
B19: Labour | D19: 1.07895742 | E19: 0.8441364348 | F19: =E19+D19 -> 1.923093855 | G19: 0.1434728168 | H19: 0 | I19: 0 | J19: 0 | K19: 0 | L19: 0 | M19: 0 | O19: =SUM(F19:J19,M19) -> 2.066566672
B20: Non Labour | D20: 0.0998878 | E20: 0.0980875 | F20: =E20+D20 -> 0.1979753 | G20: 0.06264292865 | H20: 0 | I20: 0 | J20: 0 | K20: 0 | L20: 0 | M20: 0 | O20: =SUM(F20:J20,M20) -> 0.2606182286
B21: Sub-Totals | D21: =D20+D19 -> 1.17884522 | E21: =E20+E19 -> 0.9422239348 | F21: =F20+F19 -> 2.121069155 | G21: =G20+G19 -> 0.2061157455 | H21: 0 | I21: 0 | J21: 0 | K21: 0 | L21: 0 | M21: 0 | O21: =O20+O19 -> 2.3271849
B22: Substations
B23: Labour | D23: 6.31918012 | E23: 4.756384142 | F23: =E23+D23 -> 11.07556426 | G23: 5.278677765 | H23: 0 | I23: 0 | J23: 0 | K23: 0 | L23: 0 | M23: 0 | O23: =SUM(F23:J23,M23) -> 16.35424203
B24: Non Labour | D24: 0.6694169 | E24: 0.4956 | F24: =E24+D24 -> 1.1650169 | G24: 2.034038385 | H24: 0 | I24: 0 | J24: 0 | K24: 0 | L24: 0 | M24: 0 | O24: =SUM(F24:J24,M24) -> 3.199055285
B25: Sub-Totals | D25: =D24+D23 -> 6.98859702 | E25: 5.251984142 | F25: 12.24058116 | G25: 7.31271615 | H25: 0 | I25: 0 | J25: 0 | K25: 0 | L25: 0 | M25: 0 | O25: =O24+O23 -> 19.55329731
B26: Easements
B27: Labour | D27: 1.10995623 | E27: 0.03896014314 | F27: =E27+D27 -> 1.148916373 | G27: 0 | H27: 0 | I27: 0 | J27: 0 | K27: 0 | L27: 0 | M27: 0 | O27: =SUM(F27:J27,M27) -> 1.148916373
B28: Non Labour | D28: 0.27748906 | E28: 0.00413 | F28: =E28+D28 -> 0.28161906 | G28: 0.2441880757 | H28: 0 | I28: 0 | J28: 0 | K28: 0 | L28: 0 | M28: 0 | O28: =SUM(F28:J28,M28) -> 0.5258071357
B29: Sub-Totals | D29: =D28+D27 -> 1.38744529 | E29: 0.04309014314 | F29: 1.430535433 | G29: 0.2441880757 | H29: 0 | I29: 0 | J29: 0 | K29: 0 | L29: 0 | M29: 0 | O29: =O28+O27 -> 1.674723509
B30: Summary
B31: Sub-Total Labour | D31: =D11+D15+D19+D23+D27 -> 11.83484553 | E31: 13.67501024 | F31: 25.50985577 | G31: 12.73207388 | H31: 0 | I31: 0 | J31: 0 | K31: 0 | L31: 0 | M31: 0 | O31: =O11+O15+O19+O23+O27 -> 38.24192966
B32: Sub-Total Non Labour | D32: 3.67524152 | E32: 1.44963 | F32: 5.12487152 | G32: 2.616644742 | H32: 0 | I32: 0 | J32: 0 | K32: 0 | L32: 0 | M32: 0 | O32: =O12+O16+O20+O24+O28 -> 7.741516262
B33: Total Maintenance | D33: =D32+D31 -> 15.51008705 | E33: 15.12464024 | F33: 30.63472729 | G33: 15.34871863 | H33: 0 | I33: 0 | J33: 0 | K33: 0 | L33: 0 | M33: 0 | O33: =O32+O31 -> 45.98344592
B35: Network Optimisation | H35: 1.166631196 | I35: 0 | J35: 0 | K35: 0 | L35: 0 | M35: 0 | O35: =SUM(F35:J35,M35) -> 1.166631196
D36: =D35 -> 0 | E36: 0 | F36: 0 | G36: 0 | H36: 1.166631196 | I36: 0 | J36: 0 | K36: 0 | L36: 0 | M36: 0 | O36: =O35 -> 1.166631196
B37: Field Support
B38: Field Support | D38: 0 | E38: 0 | F38: 0 | G38: 0 | H38: 0 | I38: 5.850997808 | J38: 0 | K38: 0 | L38: 0 | M38: 0 | O38: =SUM(F38:J38,M38) -> 5.850997808
B39: Direct Charges | D39: 0 | E39: 0 | F39: 0 | G39: 0 | H39: 0 | I39: 4.536010344 | J39: 0 | K39: 0 | L39: 0 | M39: 0 | O39: =SUM(F39:J39,M39) -> 4.536010344
B40: Total Field Support | D40: =D39+D38 -> 0 | E40: 0 | F40: 0 | G40: 0 | H40: 0 | I40: 10.38700815 | J40: 0 | K40: 0 | L40: 0 | M40: 0 | O40: =O39+O38 -> 10.38700815
B41: Operations
B42: Network Switching | D42: 0 | E42: 0 | F42: 0 | G42: 0 | H42: 0 | I42: 0 | J42: 6.543534336 | K42: 0 | L42: 0 | M42: 0 | O42: =SUM(F42:J42,M42) -> 6.543534336
B43: Asset Monitoring | D43: 0 | E43: 0 | F43: 0 | G43: 0 | H43: 0 | I43: 0 | J43: 1.927394266 | K43: 0 | L43: 0 | M43: 0 | O43: =SUM(F43:J43,M43) -> 1.927394266
B44: Total Operations | D44: =D43+D42 -> 0 | E44: 0 | F44: 0 | G44: 0 | H44: 0 | I44: 0 | J44: 8.470928601 | K44: 0 | L44: 0 | M44: 0 | O44: =O43+O42 -> 8.470928601
B45: Total Direct Operations & Maintenance | D45: =D33+D40+D44+D36 -> 15.51008705 | E45: 15.12464024 | F45: 30.63472729 | G45: 15.34871863 | H45: 1.166631196 | I45: 10.38700815 | J45: 8.470928601 | K45: 0 | L45: 0 | M45: 0 | O45: =O33+O40+O44+O36 -> 66.00801387
B46: Other Controllable
B47: Asset Manager Support
B48: Grid Planning | D48: 0 | E48: 0 | F48: 0 | G48: 0 | H48: 0 | I48: 0 | J48: 0 | K48: 3.980727996 | L48: 0 | M48: =SUM(K48:L48) -> 3.980727996 | O48: =SUM(F48:J48,M48) -> 3.980727996
B49: Project Support | D49: 0 | E49: 0 | F49: 0 | G49: 0 | H49: 0 | I49: 0 | J49: 0 | K49: 5.19204984 | L49: 0 | M49: =SUM(K49:L49) -> 5.19204984 | O49: =SUM(F49:J49,M49) -> 5.19204984
B50: IT Support | D50: 0 | E50: 0 | F50: 0 | G50: 0 | H50: 0 | I50: 0 | J50: 0 | L50: 0.601053531 | M50: =SUM(K50:L50) -> 0.601053531 | O50: =SUM(F50:J50,M50) -> 0.601053531
B51: Customer & Regulatory Support | D51: 0 | E51: 0 | F51: 0 | G51: 0 | H51: 0 | I51: 0 | J51: 0 | K51: 0.6810772163 | L51: 0 | M51: 0.6810772163 | O51: =SUM(F51:J51,M51) -> 0.6810772163
B52: Sub-Totals | D52: =SUM(D48:D51) -> 0 | E52: 0 | F52: 0 | G52: 0 | H52: 0 | I52: 0 | J52: 0 | K52: 9.853855052 | L52: 0.601053531 | M52: 10.45490858 | O52: =SUM(O48:O51) -> 10.45490858
B53: Corporate Support
B54: Insurance | D54: 0 | E54: 0 | F54: 0 | G54: 0 | H54: 0 | I54: 0 | J54: 0 | K54: 0 | L54: 2.767309215 | M54: =SUM(K54:L54) -> 2.767309215 | O54: =SUM(F54:J54,M54) -> 2.767309215
B55: Corporate Support | D55: 0 | E55: 0 | F55: 0 | G55: 0 | H55: 0 | I55: 0 | J55: 0 | K55: 0 | L55: 4.340488575 | M55: 4.340488575 | O55: =SUM(F55:J55,M55) -> 4.340488575
B56: Sub-Totals | D56: =D55+D54 -> 0 | E56: 0 | F56: 0 | G56: 0 | H56: 0 | I56: 0 | J56: 0 | K56: 0 | L56: 7.10779779 | M56: 7.10779779 | O56: =O55+O54 -> 7.10779779
B57: Total Other Controllable | D57: =D56+D52 -> 0 | E57: 0 | F57: 0 | G57: 0 | H57: 0 | I57: 0 | J57: 0 | K57: 9.853855052 | L57: 7.708851321 | M57: 17.56270637 | O57: =O56+O52 -> 17.56270637
B58: Summary
B59: Total Maintenance Labour1 | D59: =D31 -> 11.83484553 | E59: 13.67501024 | F59: 25.50985577 | G59: 12.73207388 | H59: 0 | I59: 0 | J59: 0 | K59: 0 | L59: 0 | M59: 0 | O59: =O31 -> 38.24192966
B60: Total Maintenance Non labour2 | D60: 3.67524152 | E60: 1.44963 | F60: 5.12487152 | G60: 2.616644742 | H60: 0 | I60: 0 | J60: 0 | K60: 0 | L60: 0 | M60: 0 | O60: =O32 -> 7.741516262
B61: Total Other3 | D61: =D40+D44+D36+D52+D56 -> 0 | E61: 0 | F61: 0 | G61: 0 | H61: 1.166631196 | I61: 10.38700815 | J61: 8.470928601 | K61: 9.853855052 | L61: 7.708851321 | M61: 17.56270637 | O61: =O40+O44+O36+O52+O56 -> 37.58727432
B62: TOTAL CONTROLLABLE OPEX | D62: =D57+D45 -> 15.51008705 | E62: 15.12464024 | F62: 30.63472729 | G62: 15.34871863 | H62: 1.166631196 | I62: 10.38700815 | J62: 8.470928601 | K62: 9.853855052 | L62: 7.708851321 | M62: 17.56270637 | O62: =O57+O45 -> 83.57072024
B64: Other Opex
B65: Network Support | D65: 0 | E65: 0 | F65: 0 | G65: 0 | H65: 0 | I65: 0 | J65: 0 | K65: 8.18269492 | L65: 0 | M65: =SUM(K65:L65) -> 8.18269492 | O65: =SUM(F65:J65,M65) -> 8.18269492
B66: Debt Raising | D66: 0 | E66: 0 | F66: 0 | G66: 0 | H66: 0 | I66: 0 | J66: 0 | K66: 0 | L66: 0 | M66: =SUM(K66:L66) -> 0 | O66: =SUM(F66:J66,M66) -> 0
B67: Equity Raising | D67: 0 | E67: 0 | F67: 0 | G67: 0 | H67: 0 | I67: 0 | J67: 0 | K67: 0 | L67: 0 | M67: =SUM(K67:L67) -> 0 | O67: =SUM(F67:J67,M67) -> 0
B68: Self Insurance | D68: 0 | E68: 0 | F68: 0 | G68: 0 | H68: 0 | I68: 0 | J68: 0 | K68: 0 | L68: 1.330276367 | M68: =SUM(K68:L68) -> 1.330276367 | O68: =SUM(F68:J68,M68) -> 1.330276367
B69: TOTAL OTHER OPEX | D69: =SUM(D65:D68) -> 0 | E69: 0 | F69: 0 | G69: 0 | H69: 0 | I69: 0 | J69: 0 | K69: 8.18269492 | L69: 1.330276367 | M69: 9.512971287 | O69: =SUM(O65:O68) -> 9.512971287
B72: Grand Total | D72: =D69+D62 -> 15.51008705 | E72: 15.12464024 | F72: 30.63472729 | G72: 15.34871863 | H72: 1.166631196 | I72: 10.38700815 | J72: 8.470928601 | K72: 18.03654997 | L72: 9.039127687 | M72: 27.07567766 | O72: =O69+O62 -> 93.08369153
B74: Revenue Cap Allowance
B78: 1 Total Maintenance Labour is the total combination of all Field Maintenance items
B79: 2Total Maintenance Non Labour is total combination of all Field Maintenance items
B80: 3The Total Other are all costs sourced from the opex line items including and below Field Support
B81: Labour includes the labour component of both in-house and external maintenance service providers

Sheet Fcast Opex Cat Yr8
A1: 1.34011629
B3: 2.4 Future by expenditure category
B4: Cat 2015-16
B5: ($m, real 2012/13) | D5: For the year ended 30 June 2016
D6: Field Maintenance | F6: Field Maintenance | G6: Operational Refurbishment | H6: Network Optimisation | I6: Maintenance Support | J6: Network Monitoring & Control | K6: Support / Corporate | M6: Corporate Support
D7: Routine | E7: Corrective | K7: Network | L7: Non-Network | O7: TOTAL | Q7: Revenue Cap Allowance
B8: Direct Operations & Maintenance
B9: Field Maintenance
B10: Communications
B11: Labour | D11: 1.34011629 | E11: 0.2483708841 | F11: =E11+D11 -> 1.588487174 | G11: 0.4421333818 | H11: 0 | I11: 0 | J11: 0 | K11: 0 | L11: 0 | M11: 0 | O11: =SUM(F11:J11,M11) -> 2.030620556
B12: Non Labour | D12: 0.14429369 | E12: 0.0258125 | F12: =E12+D12 -> 0.17010619 | G12: 0.01208985225 | H12: 0 | I12: 0 | J12: 0 | K12: 0 | L12: 0 | M12: 0 | O12: =SUM(F12:J12,M12) -> 0.1821960423
B13: Sub-Totals | D13: =D12+D11 -> 1.48440998 | E13: =E12+E11 -> 0.2741833841 | F13: =F12+F11 -> 1.758593364 | G13: 0.4542232341 | H13: 0 | I13: 0 | J13: 0 | K13: 0 | L13: 0 | M13: 0 | O13: =O12+O11 -> 2.212816598
B14: Lines
B15: Labour | D15: 2.01858025 | E15: 7.947868292 | F15: =E15+D15 -> 9.966448542 | G15: 6.517135099 | H15: 0 | I15: 0 | J15: 0 | K15: 0 | L15: 0 | M15: 0 | O15: =SUM(F15:J15,M15) -> 16.48358364
B16: Non Labour | D16: 2.48751005 | E16: 0.826 | F16: =E16+D16 -> 3.31351005 | G16: 0.1628760151 | H16: 0 | I16: 0 | J16: 0 | K16: 0 | L16: 0 | M16: 0 | O16: =SUM(F16:J16,M16) -> 3.476386065
B17: Sub-Totals | D17: =D16+D15 -> 4.5060903 | E17: =E16+E15 -> 8.773868292 | F17: =F16+F15 -> 13.27995859 | G17: =G16+G15 -> 6.680011114 | H17: 0 | I17: 0 | J17: 0 | K17: 0 | L17: 0 | M17: 0 | O17: =O16+O15 -> 19.95996971
B18: Secondary Systems
B19: Labour | D19: 1.41167359 | E19: 0.6623223577 | F19: =E19+D19 -> 2.073995948 | G19: 0.1537600546 | H19: 0 | I19: 0 | J19: 0 | K19: 0 | L19: 0 | M19: 0 | O19: =SUM(F19:J19,M19) -> 2.227756002
B20: Non Labour | D20: 0.13167988 | E20: 0.0774375 | F20: =E20+D20 -> 0.20911738 | G20: 0.05488325888 | H20: 0 | I20: 0 | J20: 0 | K20: 0 | L20: 0 | M20: 0 | O20: =SUM(F20:J20,M20) -> 0.2640006389
B21: Sub-Totals | D21: =D20+D19 -> 1.54335347 | E21: =E20+E19 -> 0.7397598577 | F21: =F20+F19 -> 2.283113328 | G21: =G20+G19 -> 0.2086433135 | H21: 0 | I21: 0 | J21: 0 | K21: 0 | L21: 0 | M21: 0 | O21: =O20+O19 -> 2.491756641
B22: Substations
B23: Labour | D23: 6.11916994 | E23: 3.808353557 | F23: =E23+D23 -> 9.927523497 | G23: 6.224820924 | H23: 0 | I23: 0 | J23: 0 | K23: 0 | L23: 0 | M23: 0 | O23: =SUM(F23:J23,M23) -> 16.15234442
B24: Non Labour | D24: 0.63564229 | E24: 0.3871875 | F24: =E24+D24 -> 1.02282979 | G24: 1.661091643 | H24: 0 | I24: 0 | J24: 0 | K24: 0 | L24: 0 | M24: 0 | O24: =SUM(F24:J24,M24) -> 2.683921433
B25: Sub-Totals | D25: =D24+D23 -> 6.75481223 | E25: 4.195541057 | F25: 10.95035329 | G25: 7.885912567 | H25: 0 | I25: 0 | J25: 0 | K25: 0 | L25: 0 | M25: 0 | O25: =O24+O23 -> 18.83626585
B26: Easements
B27: Labour | D27: 1.10995623 | E27: 0.03973934146 | F27: =E27+D27 -> 1.149695571 | G27: 0 | H27: 0 | I27: 0 | J27: 0 | K27: 0 | L27: 0 | M27: 0 | O27: =SUM(F27:J27,M27) -> 1.149695571
B28: Non Labour | D28: 0.27748905 | E28: 0.00413 | F28: =E28+D28 -> 0.28161905 | G28: 0 | H28: 0 | I28: 0 | J28: 0 | K28: 0 | L28: 0 | M28: 0 | O28: =SUM(F28:J28,M28) -> 0.28161905
B29: Sub-Totals | D29: =D28+D27 -> 1.38744528 | E29: 0.04386934146 | F29: 1.431314621 | G29: 0 | H29: 0 | I29: 0 | J29: 0 | K29: 0 | L29: 0 | M29: 0 | O29: =O28+O27 -> 1.431314621
B30: Summary
B31: Sub-Total Labour | D31: =D11+D15+D19+D23+D27 -> 11.9994963 | E31: 12.70665443 | F31: 24.70615073 | G31: 13.33784946 | H31: 0 | I31: 0 | J31: 0 | K31: 0 | L31: 0 | M31: 0 | O31: =O11+O15+O19+O23+O27 -> 38.04400019
B32: Sub-Total Non Labour | D32: 3.67661496 | E32: 1.3205675 | F32: 4.99718246 | G32: 1.890940769 | H32: 0 | I32: 0 | J32: 0 | K32: 0 | L32: 0 | M32: 0 | O32: =O12+O16+O20+O24+O28 -> 6.888123229
B33: Total Maintenance | D33: =D32+D31 -> 15.67611126 | E33: 14.02722193 | F33: 29.70333319 | G33: 15.22879023 | H33: 0 | I33: 0 | J33: 0 | K33: 0 | L33: 0 | M33: 0 | O33: =O32+O31 -> 44.93212342
B35: Network Optimisation | H35: 1.18571398 | I35: 0 | J35: 0 | K35: 0 | L35: 0 | M35: 0 | O35: =SUM(F35:J35,M35) -> 1.18571398
D36: =D35 -> 0 | E36: 0 | F36: 0 | G36: 0 | H36: 1.18571398 | I36: 0 | J36: 0 | K36: 0 | L36: 0 | M36: 0 | O36: =O35 -> 1.18571398
B37: Field Support
B38: Field Support | D38: 0 | E38: 0 | F38: 0 | G38: 0 | H38: 0 | I38: 5.928294041 | J38: 0 | K38: 0 | L38: 0 | M38: 0 | O38: =SUM(F38:J38,M38) -> 5.928294041
B39: Direct Charges | D39: 0 | E39: 0 | F39: 0 | G39: 0 | H39: 0 | I39: 4.755687603 | J39: 0 | K39: 0 | L39: 0 | M39: 0 | O39: =SUM(F39:J39,M39) -> 4.755687603
B40: Total Field Support | D40: =D39+D38 -> 0 | E40: 0 | F40: 0 | G40: 0 | H40: 0 | I40: 10.68398164 | J40: 0 | K40: 0 | L40: 0 | M40: 0 | O40: =O39+O38 -> 10.68398164
B41: Operations
B42: Network Switching | D42: 0 | E42: 0 | F42: 0 | G42: 0 | H42: 0 | I42: 0 | J42: 6.777533937 | K42: 0 | L42: 0 | M42: 0 | O42: =SUM(F42:J42,M42) -> 6.777533937
B43: Asset Monitoring | D43: 0 | E43: 0 | F43: 0 | G43: 0 | H43: 0 | I43: 0 | J43: 2.01438035 | K43: 0 | L43: 0 | M43: 0 | O43: =SUM(F43:J43,M43) -> 2.01438035
B44: Total Operations | D44: =D43+D42 -> 0 | E44: 0 | F44: 0 | G44: 0 | H44: 0 | I44: 0 | J44: 8.791914287 | K44: 0 | L44: 0 | M44: 0 | O44: =O43+O42 -> 8.791914287
B45: Total Direct Operations & Maintenance | D45: =D33+D40+D44+D36 -> 15.67611126 | E45: 14.02722193 | F45: 29.70333319 | G45: 15.22879023 | H45: 1.18571398 | I45: 10.68398164 | J45: 8.791914287 | K45: 0 | L45: 0 | M45: 0 | O45: =O33+O40+O44+O36 -> 65.59373333
B46: Other Controllable
B47: Asset Manager Support
B48: Grid Planning | D48: 0 | E48: 0 | F48: 0 | G48: 0 | H48: 0 | I48: 0 | J48: 0 | K48: 4.126938429 | L48: 0 | M48: =SUM(K48:L48) -> 4.126938429 | O48: =SUM(F48:J48,M48) -> 4.126938429
B49: Project Support | D49: 0 | E49: 0 | F49: 0 | G49: 0 | H49: 0 | I49: 0 | J49: 0 | K49: 5.295354341 | L49: 0 | M49: =SUM(K49:L49) -> 5.295354341 | O49: =SUM(F49:J49,M49) -> 5.295354341
B50: IT Support | D50: 0 | E50: 0 | F50: 0 | G50: 0 | H50: 0 | I50: 0 | J50: 0 | K50: 0 | L50: 0.6231299695 | M50: =SUM(K50:L50) -> 0.6231299695 | O50: =SUM(F50:J50,M50) -> 0.6231299695
B51: Customer & Regulatory Support | D51: 0 | E51: 0 | F51: 0 | G51: 0 | H51: 0 | I51: 0 | J51: 0 | K51: 0.7060928905 | L51: 0 | M51: 0.7060928905 | O51: =SUM(F51:J51,M51) -> 0.7060928905
B52: Sub-Totals | D52: =SUM(D48:D51) -> 0 | E52: 0 | F52: 0 | G52: 0 | H52: 0 | I52: 0 | J52: 0 | K52: 10.12838566 | L52: 0.6231299695 | M52: 10.75151563 | O52: =SUM(O48:O51) -> 10.75151563
B53: Corporate Support
B54: Insurance | D54: 0 | E54: 0 | F54: 0 | G54: 0 | H54: 0 | I54: 0 | J54: 0 | K54: 0 | L54: 3.024906067 | M54: =SUM(K54:L54) -> 3.024906067 | O54: =SUM(F54:J54,M54) -> 3.024906067
B55: Corporate Support | D55: 0 | E55: 0 | F55: 0 | G55: 0 | H55: 0 | I55: 0 | J55: 0 | K55: 0 | L55: 4.341984966 | M55: 4.341984966 | O55: =SUM(F55:J55,M55) -> 4.341984966
B56: Sub-Totals | D56: =D55+D54 -> 0 | E56: 0 | F56: 0 | G56: 0 | H56: 0 | I56: 0 | J56: 0 | K56: 0 | L56: 7.366891033 | M56: 7.366891033 | O56: =O55+O54 -> 7.366891033
B57: Total Other Controllable | D57: =D56+D52 -> 0 | E57: 0 | F57: 0 | G57: 0 | H57: 0 | I57: 0 | J57: 0 | K57: 10.12838566 | L57: 7.990021003 | M57: 18.11840666 | O57: =O56+O52 -> 18.11840666
B58: Summary
B59: Total Maintenance Labour1 | D59: =D31 -> 11.9994963 | E59: 12.70665443 | F59: 24.70615073 | G59: 13.33784946 | H59: 0 | I59: 0 | J59: 0 | K59: 0 | L59: 0 | M59: 0 | O59: =O31 -> 38.04400019
B60: Total Maintenance Non labour2 | D60: 3.67661496 | E60: 1.3205675 | F60: 4.99718246 | G60: 1.890940769 | H60: 0 | I60: 0 | J60: 0 | K60: 0 | L60: 0 | M60: 0 | O60: =O32 -> 6.888123229
B61: Total Other3 | D61: =D40+D44+D36+D52+D56 -> 0 | E61: 0 | F61: 0 | G61: 0 | H61: 1.18571398 | I61: 10.68398164 | J61: 8.791914287 | K61: 10.12838566 | L61: 7.990021003 | M61: 18.11840666 | O61: =O40+O44+O36+O52+O56 -> 38.78001657
B62: TOTAL CONTROLLABLE OPEX | D62: =D57+D45 -> 15.67611126 | E62: 14.02722193 | F62: 29.70333319 | G62: 15.22879023 | H62: 1.18571398 | I62: 10.68398164 | J62: 8.791914287 | K62: 10.12838566 | L62: 7.990021003 | M62: 18.11840666 | O62: =O57+O45 -> 83.71213999
B64: Other Opex
B65: Network Support | D65: 0 | E65: 0 | F65: 0 | G65: 0 | H65: 0 | I65: 0 | J65: 0 | K65: 8.23446684 | L65: 0 | M65: =SUM(K65:L65) -> 8.23446684 | O65: =SUM(F65:J65,M65) -> 8.23446684
B66: Debt Raising | D66: 0 | E66: 0 | F66: 0 | G66: 0 | H66: 0 | I66: 0 | J66: 0 | K66: 0 | L66: 0 | M66: =SUM(K66:L66) -> 0 | O66: =SUM(F66:J66,M66) -> 0
B67: Equity Raising | D67: 0 | E67: 0 | F67: 0 | G67: 0 | H67: 0 | I67: 0 | J67: 0 | K67: 0 | L67: 0 | M67: =SUM(K67:L67) -> 0 | O67: =SUM(F67:J67,M67) -> 0
B68: Self Insurance | D68: 0 | E68: 0 | F68: 0 | G68: 0 | H68: 0 | I68: 0 | J68: 0 | K68: 0 | L68: 1.362543867 | M68: =SUM(K68:L68) -> 1.362543867 | O68: =SUM(F68:J68,M68) -> 1.362543867
B69: TOTAL OTHER OPEX | D69: =SUM(D65:D68) -> 0 | E69: 0 | F69: 0 | G69: 0 | H69: 0 | I69: 0 | J69: 0 | K69: 8.23446684 | L69: 1.362543867 | M69: 9.597010707 | O69: =SUM(O65:O68) -> 9.597010707
B72: Grand Total | D72: =D69+D62 -> 15.67611126 | E72: 14.02722193 | F72: 29.70333319 | G72: 15.22879023 | H72: 1.18571398 | I72: 10.68398164 | J72: 8.791914287 | K72: 18.3628525 | L72: 9.352564869 | M72: 27.71541737 | O72: =O69+O62 -> 93.3091507
B74: Revenue Cap Allowance
B78: 1 Total Maintenance Labour is the total combination of all Field Maintenance items
B79: 2Total Maintenance Non Labour is total combination of all Field Maintenance items
B80: 3The Total Other are all costs sourced from the opex line items including and below Field Support
B81: Labour includes the labour component of both in-house and external maintenance service providers

Sheet Fcast Opex Cat Yr9
B3: 2.5 Future by expenditure category
B4: Cat 2016-17
B5: ($m, real 2012/13) | D5: For the year ended 30 June 2017
D6: Field Maintenance | F6: Field Maintenance | G6: Operational Refurbishment | H6: Network Optimisation | I6: Maintenance Support | J6: Network Monitoring & Control | K6: Support / Corporate | M6: Corporate Support
D7: Routine | E7: Corrective | K7: Network | L7: Non-Network | O7: TOTAL | Q7: Revenue Cap Allowance
B8: Direct Operations & Maintenance
B9: Field Maintenance
B10: Communications
B11: Labour | D11: 1.48307447 | E11: 0.2538226677 | F11: =E11+D11 -> 1.736897138 | G11: 0.2009901359 | H11: 0 | I11: 0 | J11: 0 | K11: 0 | L11: 0 | M11: 0 | O11: =SUM(F11:J11,M11) -> 1.937887274
B12: Non Labour | D12: 0.15727213 | E12: 0.0258125 | F12: =E12+D12 -> 0.18308463 | G12: 0.02042501825 | H12: 0 | I12: 0 | J12: 0 | K12: 0 | L12: 0 | M12: 0 | O12: =SUM(F12:J12,M12) -> 0.2035096483
B13: Sub-Totals | D13: =D12+D11 -> 1.6403466 | E13: =E12+E11 -> 0.2796351677 | F13: =F12+F11 -> 1.919981768 | G13: 0.2214151542 | H13: 0 | I13: 0 | J13: 0 | K13: 0 | L13: 0 | M13: 0 | O13: =O12+O11 -> 2.141396922
B14: Lines
B15: Labour | D15: 1.90110975 | E15: 6.091744025 | F15: =E15+D15 -> 7.992853775 | G15: 5.148218643 | H15: 0 | I15: 0 | J15: 0 | K15: 0 | L15: 0 | M15: 0 | O15: =SUM(F15:J15,M15) -> 13.14107242
B16: Non Labour | D16: 2.62386522 | E16: 0.6195 | F16: =E16+D16 -> 3.24336522 | G16: 0.864857694 | H16: 0 | I16: 0 | J16: 0 | K16: 0 | L16: 0 | M16: 0 | O16: =SUM(F16:J16,M16) -> 4.108222914
B17: Sub-Totals | D17: =D16+D15 -> 4.52497497 | E17: =E16+E15 -> 6.711244025 | F17: =F16+F15 -> 11.23621899 | G17: =G16+G15 -> 6.013076337 | H17: 0 | I17: 0 | J17: 0 | K17: 0 | L17: 0 | M17: 0 | O17: =O16+O15 -> 17.24929533
B18: Secondary Systems
B19: Labour | D19: 1.28610878 | E19: 0.6768604472 | F19: =E19+D19 -> 1.962969227 | G19: 0.1650900794 | H19: 0 | I19: 0 | J19: 0 | K19: 0 | L19: 0 | M19: 0 | O19: =SUM(F19:J19,M19) -> 2.128059307
B20: Non Labour | D20: 0.11558456 | E20: 0.0774375 | F20: =E20+D20 -> 0.19302206 | G20: 0.04637429902 | H20: 0 | I20: 0 | J20: 0 | K20: 0 | L20: 0 | M20: 0 | O20: =SUM(F20:J20,M20) -> 0.239396359
B21: Sub-Totals | D21: =D20+D19 -> 1.40169334 | E21: =E20+E19 -> 0.7542979472 | F21: =F20+F19 -> 2.155991287 | G21: =G20+G19 -> 0.2114643784 | H21: 0 | I21: 0 | J21: 0 | K21: 0 | L21: 0 | M21: 0 | O21: =O20+O19 -> 2.367455666
B22: Substations
B23: Labour | D23: 7.31022251 | E23: 3.891947571 | F23: =E23+D23 -> 11.20217008 | G23: 4.770158824 | H23: 0 | I23: 0 | J23: 0 | K23: 0 | L23: 0 | M23: 0 | O23: =SUM(F23:J23,M23) -> 15.97232891
B24: Non Labour | D24: 0.74198378 | E24: 0.3871875 | F24: =E24+D24 -> 1.12917128 | G24: 1.305782746 | H24: 0 | I24: 0 | J24: 0 | K24: 0 | L24: 0 | M24: 0 | O24: =SUM(F24:J24,M24) -> 2.434954026
B25: Sub-Totals | D25: =D24+D23 -> 8.05220629 | E25: 4.279135071 | F25: 12.33134136 | G25: 6.07594157 | H25: 0 | I25: 0 | J25: 0 | K25: 0 | L25: 0 | M25: 0 | O25: =O24+O23 -> 18.40728293
B26: Easements
B27: Labour | D27: 1.10995623 | E27: 0.04061162683 | F27: =E27+D27 -> 1.150567857 | G27: 0 | H27: 0 | I27: 0 | J27: 0 | K27: 0 | L27: 0 | M27: 0 | O27: =SUM(F27:J27,M27) -> 1.150567857
B28: Non Labour | D28: 0.27748906 | E28: 0.00413 | F28: =E28+D28 -> 0.28161906 | G28: 0 | H28: 0 | I28: 0 | J28: 0 | K28: 0 | L28: 0 | M28: 0 | O28: =SUM(F28:J28,M28) -> 0.28161906
B29: Sub-Totals | D29: =D28+D27 -> 1.38744529 | E29: 0.04474162683 | F29: 1.432186917 | G29: 0 | H29: 0 | I29: 0 | J29: 0 | K29: 0 | L29: 0 | M29: 0 | O29: =O28+O27 -> 1.432186917
B30: Summary
B31: Sub-Total Labour | D31: =D11+D15+D19+D23+D27 -> 13.09047174 | E31: 10.95498634 | F31: 24.04545808 | G31: 10.28445768 | H31: 0 | I31: 0 | J31: 0 | K31: 0 | L31: 0 | M31: 0 | O31: =O11+O15+O19+O23+O27 -> 34.32991576
B32: Sub-Total Non Labour | D32: 3.91619475 | E32: 1.1140675 | F32: 5.03026225 | G32: 2.237439757 | H32: 0 | I32: 0 | J32: 0 | K32: 0 | L32: 0 | M32: 0 | O32: =O12+O16+O20+O24+O28 -> 7.267702007
B33: Total Maintenance | D33: =D32+D31 -> 17.00666649 | E33: 12.06905384 | F33: 29.07572033 | G33: 12.52189744 | H33: 0 | I33: 0 | J33: 0 | K33: 0 | L33: 0 | M33: 0 | O33: =O32+O31 -> 41.59761777
B34: Network Optimisation
B35: Network Optimisation | H35: 1.205872963 | I35: 0 | J35: 0 | K35: 0 | L35: 0 | M35: 0 | O35: =SUM(F35:J35,M35) -> 1.205872963
B36: Total Network Optimisation | D36: =D35 -> 0 | E36: 0 | F36: 0 | G36: 0 | H36: 1.205872963 | I36: 0 | J36: 0 | K36: 0 | L36: 0 | M36: 0 | O36: =O35 -> 1.205872963
B37: Field Support
B38: Field Support | D38: 0 | E38: 0 | F38: 0 | G38: 0 | H38: 0 | I38: 6.046028837 | J38: 0 | K38: 0 | L38: 0 | M38: 0 | O38: =SUM(F38:J38,M38) -> 6.046028837
B39: Direct Charges | D39: 0 | E39: 0 | F39: 0 | G39: 0 | H39: 0 | I39: 4.965840345 | J39: 0 | K39: 0 | L39: 0 | M39: 0 | O39: =SUM(F39:J39,M39) -> 4.965840345
B40: Total Field Support | D40: =D39+D38 -> 0 | E40: 0 | F40: 0 | G40: 0 | H40: 0 | I40: 11.01186918 | J40: 0 | K40: 0 | L40: 0 | M40: 0 | O40: =O39+O38 -> 11.01186918
B41: Operations
B42: Network Switching | D42: 0 | E42: 0 | F42: 0 | G42: 0 | H42: 0 | I42: 0 | J42: 6.970809657 | K42: 0 | L42: 0 | M42: 0 | O42: =SUM(F42:J42,M42) -> 6.970809657
B43: Asset Monitoring | D43: 0 | E43: 0 | F43: 0 | G43: 0 | H43: 0 | I43: 0 | J43: 2.072664705 | K43: 0 | L43: 0 | M43: 0 | O43: =SUM(F43:J43,M43) -> 2.072664705
B44: Total Operations | D44: =D43+D42 -> 0 | E44: 0 | F44: 0 | G44: 0 | H44: 0 | I44: 0 | J44: 9.043474362 | K44: 0 | L44: 0 | M44: 0 | O44: =O43+O42 -> 9.043474362
B45: Total Direct Operations & Maintenance | D45: =D33+D40+D44+D36 -> 17.00666649 | E45: 12.06905384 | F45: 29.07572033 | G45: 12.52189744 | H45: 1.205872963 | I45: 11.01186918 | J45: 9.043474362 | K45: 0 | L45: 0 | M45: 0 | O45: =O33+O40+O44+O36 -> 62.85883427
B46: Other Controllable
B47: Asset Manager Support
B48: Grid Planning | D48: 0 | E48: 0 | F48: 0 | G48: 0 | H48: 0 | I48: 0 | J48: 0 | K48: 4.237930275 | L48: 0 | M48: =SUM(K48:L48) -> 4.237930275 | O48: =SUM(F48:J48,M48) -> 4.237930275
B49: Project Support | D49: 0 | E49: 0 | F49: 0 | G49: 0 | H49: 0 | I49: 0 | J49: 0 | K49: 5.433923672 | L49: 0 | M49: =SUM(K49:L49) -> 5.433923672 | O49: =SUM(F49:J49,M49) -> 5.433923672
B50: IT Support | D50: 0 | E50: 0 | F50: 0 | G50: 0 | H50: 0 | I50: 0 | J50: 0 | K50: 0 | L50: 0.6398887235 | M50: =SUM(K50:L50) -> 0.6398887235 | O50: =SUM(F50:J50,M50) -> 0.6398887235
B51: Customer & Regulatory Support | D51: 0 | E51: 0 | F51: 0 | G51: 0 | H51: 0 | I51: 0 | J51: 0 | K51: 2.229921506 | L51: 0 | M51: 2.229921506 | O51: =SUM(F51:J51,M51) -> 2.229921506
B52: Sub-Totals | D52: =SUM(D48:D51) -> 0 | E52: 0 | F52: 0 | G52: 0 | H52: 0 | I52: 0 | J52: 0 | K52: 11.90177545 | L52: 0.6398887235 | M52: 12.54166418 | O52: =SUM(O48:O51) -> 12.54166418
B53: Corporate Support
B54: Insurance | D54: 0 | E54: 0 | F54: 0 | G54: 0 | H54: 0 | I54: 0 | J54: 0 | K54: 0 | L54: 3.2512173 | M54: =SUM(K54:L54) -> 3.2512173 | O54: =SUM(F54:J54,M54) -> 3.2512173
B55: Corporate Support | D55: 0 | E55: 0 | F55: 0 | G55: 0 | H55: 0 | I55: 0 | J55: 0 | K55: 0 | L55: 4.380407617 | M55: 4.380407617 | O55: =SUM(F55:J55,M55) -> 4.380407617
B56: Sub-Totals | D56: =D55+D54 -> 0 | E56: 0 | F56: 0 | G56: 0 | H56: 0 | I56: 0 | J56: 0 | K56: 0 | L56: 7.631624917 | M56: 7.631624917 | O56: =O55+O54 -> 7.631624917
B57: Total Other Controllable | D57: =D56+D52 -> 0 | E57: 0 | F57: 0 | G57: 0 | H57: 0 | I57: 0 | J57: 0 | K57: 11.90177545 | L57: 8.27151364 | M57: 20.17328909 | O57: =O56+O52 -> 20.17328909
B58: Summary
B59: Total Maintenance Labour1 | D59: =D31 -> 13.09047174 | E59: 10.95498634 | F59: 24.04545808 | G59: 10.28445768 | H59: 0 | I59: 0 | J59: 0 | K59: 0 | L59: 0 | M59: 0 | O59: =O31 -> 34.32991576
B60: Total Maintenance Non labour2 | D60: 3.91619475 | E60: 1.1140675 | F60: 5.03026225 | G60: 2.237439757 | H60: 0 | I60: 0 | J60: 0 | K60: 0 | L60: 0 | M60: 0 | O60: =O32 -> 7.267702007
B61: Total Other3 | D61: =D40+D44+D36+D52+D56 -> 0 | E61: 0 | F61: 0 | G61: 0 | H61: 1.205872963 | I61: 11.01186918 | J61: 9.043474362 | K61: 11.90177545 | L61: 8.27151364 | M61: 20.17328909 | O61: =O40+O44+O36+O52+O56 -> 41.4345056
B62: TOTAL CONTROLLABLE OPEX | D62: =D57+D45 -> 17.00666649 | E62: 12.06905384 | F62: 29.07572033 | G62: 12.52189744 | H62: 1.205872963 | I62: 11.01186918 | J62: 9.043474362 | K62: 11.90177545 | L62: 8.27151364 | M62: 20.17328909 | O62: =O57+O45 -> 83.03212337
B64: Other Opex
B65: Network Support | D65: 0 | E65: 0 | F65: 0 | G65: 0 | H65: 0 | I65: 0 | J65: 0 | K65: 8.49143021 | L65: 0 | M65: =SUM(K65:L65) -> 8.49143021 | O65: =SUM(F65:J65,M65) -> 8.49143021
B66: Debt Raising | D66: 0 | E66: 0 | F66: 0 | G66: 0 | H66: 0 | I66: 0 | J66: 0 | K66: 0 | L66: 0 | M66: =SUM(K66:L66) -> 0 | O66: =SUM(F66:J66,M66) -> 0
B67: Equity Raising | D67: 0 | E67: 0 | F67: 0 | G67: 0 | H67: 0 | I67: 0 | J67: 0 | K67: 0 | L67: 0 | M67: =SUM(K67:L67) -> 0 | O67: =SUM(F67:J67,M67) -> 0
B68: Self Insurance | D68: 0 | E68: 0 | F68: 0 | G68: 0 | H68: 0 | I68: 0 | J68: 0 | K68: 0 | L68: 1.393927456 | M68: =SUM(K68:L68) -> 1.393927456 | O68: =SUM(F68:J68,M68) -> 1.393927456
B69: TOTAL OTHER OPEX | D69: =SUM(D65:D68) -> 0 | E69: 0 | F69: 0 | G69: 0 | H69: 0 | I69: 0 | J69: 0 | K69: 8.49143021 | L69: 1.393927456 | M69: 9.885357666 | O69: =SUM(O65:O68) -> 9.885357666
B72: Grand Total | D72: =D69+D62 -> 17.00666649 | E72: 12.06905384 | F72: 29.07572033 | G72: 12.52189744 | H72: 1.205872963 | I72: 11.01186918 | J72: 9.043474362 | K72: 20.39320566 | L72: 9.665441096 | M72: 30.05864676 | O72: =O69+O62 -> 92.91748103
B74: Revenue Cap Allowance
B78: 1 Total Maintenance Labour is the total combination of all Field Maintenance items
B79: 2Total Maintenance Non Labour is total combination of all Field Maintenance items
B80: 3The Total Other are all costs sourced from the opex line items including and below Field Support
B81: Labour includes the labour component of both in-house and external maintenance service providers

Sheet Fcast Opex Cat Yr10
B3: 2.6 Future by expenditure category
B4: Cat 2017-18
B5: ($m, real 2012/13) | D5: For the year ended 30 June 2018
D6: Field Maintenance | F6: Field Maintenance | G6: Operational Refurbishment | H6: Network Optimisation | I6: Maintenance Support | J6: Network Monitoring & Control | K6: Support / Corporate | M6: Corporate Support
D7: Routine | E7: Corrective | K7: Network | L7: Non-Network | O7: TOTAL | Q7: Revenue Cap Allowance
B8: Direct Operations & Maintenance
B9: Field Maintenance
B10: Communications
B11: Labour | D11: 1.61447236 | E11: 0.2597658326 | F11: =E11+D11 -> 1.874238193 | G11: 0 | H11: 0 | I11: 0 | J11: 0 | K11: 0 | L11: 0 | M11: 0 | O11: =SUM(F11:J11,M11) -> 1.874238193
B12: Non Labour | D12: 0.16822717 | E12: 0.0258125 | F12: =E12+D12 -> 0.19403967 | G12: 0 | H12: 0 | I12: 0 | J12: 0 | K12: 0 | L12: 0 | M12: 0 | O12: =SUM(F12:J12,M12) -> 0.19403967
B13: Sub-Totals | D13: =D12+D11 -> 1.78269953 | E13: =E12+E11 -> 0.2855783326 | F13: =F12+F11 -> 2.068277863 | G13: 0 | H13: 0 | I13: 0 | J13: 0 | K13: 0 | L13: 0 | M13: 0 | O13: =O12+O11 -> 2.068277863
B14: Lines
B15: Labour | D15: 1.97355073 | E15: 6.234379982 | F15: =E15+D15 -> 8.207930712 | G15: 2.693673361 | H15: 0 | I15: 0 | J15: 0 | K15: 0 | L15: 0 | M15: 0 | O15: =SUM(F15:J15,M15) -> 10.90160407
B16: Non Labour | D16: 2.63191501 | E16: 0.6195 | F16: =E16+D16 -> 3.25141501 | G16: 0.8896096831 | H16: 0 | I16: 0 | J16: 0 | K16: 0 | L16: 0 | M16: 0 | O16: =SUM(F16:J16,M16) -> 4.141024693
B17: Sub-Totals | D17: =D16+D15 -> 4.60546574 | E17: =E16+E15 -> 6.853879982 | F17: =F16+F15 -> 11.45934572 | G17: =G16+G15 -> 3.583283044 | H17: 0 | I17: 0 | J17: 0 | K17: 0 | L17: 0 | M17: 0 | O17: =O16+O15 -> 15.04262877
B18: Secondary Systems
B19: Labour | D19: 1.66395868 | E19: 0.6927088869 | F19: =E19+D19 -> 2.356667567 | G19: 0.1775089806 | H19: 0 | I19: 0 | J19: 0 | K19: 0 | L19: 0 | M19: 0 | O19: =SUM(F19:J19,M19) -> 2.534176548
B20: Non Labour | D20: 0.14914457 | E20: 0.0774375 | F20: =E20+D20 -> 0.22658207 | G20: 0.03703073153 | H20: 0 | I20: 0 | J20: 0 | K20: 0 | L20: 0 | M20: 0 | O20: =SUM(F20:J20,M20) -> 0.2636128015
B21: Sub-Totals | D21: =D20+D19 -> 1.81310325 | E21: =E20+E19 -> 0.7701463869 | F21: =F20+F19 -> 2.583249637 | G21: =G20+G19 -> 0.2145397122 | H21: 0 | I21: 0 | J21: 0 | K21: 0 | L21: 0 | M21: 0 | O21: =O20+O19 -> 2.797789349
B22: Substations
B23: Labour | D23: 7.46190599 | E23: 3.9830761 | F23: =E23+D23 -> 11.44498209 | G23: 6.114984051 | H23: 0 | I23: 0 | J23: 0 | K23: 0 | L23: 0 | M23: 0 | O23: =SUM(F23:J23,M23) -> 17.55996614
B24: Non Labour | D24: 0.73895889 | E24: 0.3871875 | F24: =E24+D24 -> 1.12614639 | G24: 1.42394885 | H24: 0 | I24: 0 | J24: 0 | K24: 0 | L24: 0 | M24: 0 | O24: =SUM(F24:J24,M24) -> 2.55009524
B25: Sub-Totals | D25: =D24+D23 -> 8.20086488 | E25: 4.3702636 | F25: 12.57112848 | G25: 7.538932902 | H25: 0 | I25: 0 | J25: 0 | K25: 0 | L25: 0 | M25: 0 | O25: =O24+O23 -> 20.11006138
B26: Easements
B27: Labour | D27: 1.10995623 | E27: 0.04156253322 | F27: =E27+D27 -> 1.151518763 | G27: 0 | H27: 0 | I27: 0 | J27: 0 | K27: 0 | L27: 0 | M27: 0 | O27: =SUM(F27:J27,M27) -> 1.151518763
B28: Non Labour | D28: 0.27748906 | E28: 0.00413 | F28: =E28+D28 -> 0.28161906 | G28: 0 | H28: 0 | I28: 0 | J28: 0 | K28: 0 | L28: 0 | M28: 0 | O28: =SUM(F28:J28,M28) -> 0.28161906
B29: Sub-Totals | D29: =D28+D27 -> 1.38744529 | E29: 0.04569253322 | F29: 1.433137823 | G29: 0 | H29: 0 | I29: 0 | J29: 0 | K29: 0 | L29: 0 | M29: 0 | O29: =O28+O27 -> 1.433137823
B30: Summary
B31: Sub-Total Labour | D31: =D11+D15+D19+D23+D27 -> 13.82384399 | E31: 11.21149333 | F31: 25.03533732 | G31: 8.986166393 | H31: 0 | I31: 0 | J31: 0 | K31: 0 | L31: 0 | M31: 0 | O31: =O11+O15+O19+O23+O27 -> 34.02150372
B32: Sub-Total Non Labour | D32: 3.9657347 | E32: 1.1140675 | F32: 5.0798022 | G32: 2.350589265 | H32: 0 | I32: 0 | J32: 0 | K32: 0 | L32: 0 | M32: 0 | O32: =O12+O16+O20+O24+O28 -> 7.430391465
B33: Total Maintenance | D33: =D32+D31 -> 17.78957869 | E33: 12.32556083 | F33: 30.11513952 | G33: 11.33675566 | H33: 0 | I33: 0 | J33: 0 | K33: 0 | L33: 0 | M33: 0 | O33: =O32+O31 -> 41.45189518
B35: Network Optimisation | H35: 0.5404633751 | I35: 0 | J35: 0 | K35: 0 | L35: 0 | M35: 0 | O35: =SUM(F35:J35,M35) -> 0.5404633751
D36: =D35 -> 0 | E36: 0 | F36: 0 | G36: 0 | H36: 0.5404633751 | I36: 0 | J36: 0 | K36: 0 | L36: 0 | M36: 0 | O36: =O35 -> 0.5404633751
B37: Field Support
B38: Field Support | D38: 0 | E38: 0 | F38: 0 | G38: 0 | H38: 0 | I38: 6.016092737 | J38: 0 | K38: 0 | L38: 0 | M38: 0 | O38: =SUM(F38:J38,M38) -> 6.016092737
B39: Direct Charges | D39: 0 | E39: 0 | F39: 0 | G39: 0 | H39: 0 | I39: 5.187360358 | J39: 0 | K39: 0 | L39: 0 | M39: 0 | O39: =SUM(F39:J39,M39) -> 5.187360358
B40: Total Field Support | D40: =D39+D38 -> 0 | E40: 0 | F40: 0 | G40: 0 | H40: 0 | I40: 11.20345309 | J40: 0 | K40: 0 | L40: 0 | M40: 0 | O40: =O39+O38 -> 11.20345309
B41: Operations
B42: Network Switching | D42: 0 | E42: 0 | F42: 0 | G42: 0 | H42: 0 | I42: 0 | J42: 7.077660875 | K42: 0 | L42: 0 | M42: 0 | O42: =SUM(F42:J42,M42) -> 7.077660875
B43: Asset Monitoring | D43: 0 | E43: 0 | F43: 0 | G43: 0 | H43: 0 | I43: 0 | J43: 2.13143773 | K43: 0 | L43: 0 | M43: 0 | O43: =SUM(F43:J43,M43) -> 2.13143773
B44: Total Operations | D44: =D43+D42 -> 0 | E44: 0 | F44: 0 | G44: 0 | H44: 0 | I44: 0 | J44: 9.209098605 | K44: 0 | L44: 0 | M44: 0 | O44: =O43+O42 -> 9.209098605
B45: Total Direct Operations & Maintenance | D45: =D33+D40+D44+D36 -> 17.78957869 | E45: 12.32556083 | F45: 30.11513952 | G45: 11.33675566 | H45: 0.5404633751 | I45: 11.20345309 | J45: 9.209098605 | K45: 0 | L45: 0 | M45: 0 | O45: =O33+O40+O44+O36 -> 62.40491026
B46: Other Controllable
B47: Asset Manager Support
B48: Grid Planning | D48: 0 | E48: 0 | F48: 0 | G48: 0 | H48: 0 | I48: 0 | J48: 0 | K48: 4.352843395 | L48: 0 | M48: =SUM(K48:L48) -> 4.352843395 | O48: =SUM(F48:J48,M48) -> 4.352843395
B49: Project Support | D49: 0 | E49: 0 | F49: 0 | G49: 0 | H49: 0 | I49: 0 | J49: 0 | K49: 5.449395098 | L49: 0 | M49: =SUM(K49:L49) -> 5.449395098 | O49: =SUM(F49:J49,M49) -> 5.449395098
B50: IT Support | D50: 0 | E50: 0 | F50: 0 | G50: 0 | H50: 0 | I50: 0 | J50: 0 | K50: 0 | L50: 0.657239554 | M50: =SUM(K50:L50) -> 0.657239554 | O50: =SUM(F50:J50,M50) -> 0.657239554
B51: Customer & Regulatory Support | D51: 0 | E51: 0 | F51: 0 | G51: 0 | H51: 0 | I51: 0 | J51: 0 | K51: 2.290386691 | L51: 0 | M51: 2.290386691 | O51: =SUM(F51:J51,M51) -> 2.290386691
B52: Sub-Totals | D52: =SUM(D48:D51) -> 0 | E52: 0 | F52: 0 | G52: 0 | H52: 0 | I52: 0 | J52: 0 | K52: 12.09262518 | L52: 0.657239554 | M52: 12.74986474 | O52: =SUM(O48:O51) -> 12.74986474
B53: Corporate Support
B54: Insurance | D54: 0 | E54: 0 | F54: 0 | G54: 0 | H54: 0 | I54: 0 | J54: 0 | K54: 0 | L54: 3.392855396 | M54: =SUM(K54:L54) -> 3.392855396 | O54: =SUM(F54:J54,M54) -> 3.392855396
B55: Corporate Support | D55: 0 | E55: 0 | F55: 0 | G55: 0 | H55: 0 | I55: 0 | J55: 0 | K55: 0 | L55: 4.33458404 | M55: 4.33458404 | O55: =SUM(F55:J55,M55) -> 4.33458404
B56: Sub-Totals | D56: =D55+D54 -> 0 | E56: 0 | F56: 0 | G56: 0 | H56: 0 | I56: 0 | J56: 0 | K56: 0 | L56: 7.727439436 | M56: 7.727439436 | O56: =O55+O54 -> 7.727439436
B57: Total Other Controllable | D57: =D56+D52 -> 0 | E57: 0 | F57: 0 | G57: 0 | H57: 0 | I57: 0 | J57: 0 | K57: 12.09262518 | L57: 8.38467899 | M57: 20.47730417 | O57: =O56+O52 -> 20.47730417
B58: Summary
B59: Total Maintenance Labour1 | D59: =D31 -> 13.82384399 | E59: 11.21149333 | F59: 25.03533732 | G59: 8.986166393 | H59: 0 | I59: 0 | J59: 0 | K59: 0 | L59: 0 | M59: 0 | O59: =O31 -> 34.02150372
B60: Total Maintenance Non labour2 | D60: 3.9657347 | E60: 1.1140675 | F60: 5.0798022 | G60: 2.350589265 | H60: 0 | I60: 0 | J60: 0 | K60: 0 | L60: 0 | M60: 0 | O60: =O32 -> 7.430391465
B61: Total Other3 | D61: =D40+D44+D36+D52+D56 -> 0 | E61: 0 | F61: 0 | G61: 0 | H61: 0.5404633751 | I61: 11.20345309 | J61: 9.209098605 | K61: 12.09262518 | L61: 8.38467899 | M61: 20.47730417 | O61: =O40+O44+O36+O52+O56 -> 41.43031925
B62: TOTAL CONTROLLABLE OPEX | D62: =D57+D45 -> 17.78957869 | E62: 12.32556083 | F62: 30.11513952 | G62: 11.33675566 | H62: 0.5404633751 | I62: 11.20345309 | J62: 9.209098605 | K62: 12.09262518 | L62: 8.38467899 | M62: 20.47730417 | O62: =O57+O45 -> 82.88221443
B64: Other Opex
B65: Network Support | D65: 0 | E65: 0 | F65: 0 | G65: 0 | H65: 0 | I65: 0 | J65: 0 | K65: 8.5753783 | L65: 0 | M65: =SUM(K65:L65) -> 8.5753783 | O65: =SUM(F65:J65,M65) -> 8.5753783
B66: Debt Raising | D66: 0 | E66: 0 | F66: 0 | G66: 0 | H66: 0 | I66: 0 | J66: 0 | K66: 0 | L66: 0 | M66: =SUM(K66:L66) -> 0 | O66: =SUM(F66:J66,M66) -> 0
B67: Equity Raising | D67: 0 | E67: 0 | F67: 0 | G67: 0 | H67: 0 | I67: 0 | J67: 0 | K67: 0 | L67: 0 | M67: =SUM(K67:L67) -> 0 | O67: =SUM(F67:J67,M67) -> 0
B68: Self Insurance | D68: 0 | E68: 0 | F68: 0 | G68: 0 | H68: 0 | I68: 0 | J68: 0 | K68: 0 | L68: 1.426799126 | M68: =SUM(K68:L68) -> 1.426799126 | O68: =SUM(F68:J68,M68) -> 1.426799126
B69: TOTAL OTHER OPEX | D69: =SUM(D65:D68) -> 0 | E69: 0 | F69: 0 | G69: 0 | H69: 0 | I69: 0 | J69: 0 | K69: 8.5753783 | L69: 1.426799126 | M69: 10.00217743 | O69: =SUM(O65:O68) -> 10.00217743
B72: Grand Total | D72: =D69+D62 -> 17.78957869 | E72: 12.32556083 | F72: 30.11513952 | G72: 11.33675566 | H72: 0.5404633751 | I72: 11.20345309 | J72: 9.209098605 | K72: 20.66800348 | L72: 9.811478116 | M72: 30.4794816 | O72: =O69+O62 -> 92.88439186
B74: Revenue Cap Allowance
B78: 1 Total Maintenance Labour is the total combination of all Field Maintenance items
B79: 2Total Maintenance Non Labour is total combination of all Field Maintenance items
B80: 3The Total Other are all costs sourced from the opex line items including and below Field Support
B81: Labour includes the labour component of both in-house and external maintenance service providers

Sheet Historic Capex by Category
A1: 3.1 HISTORIC CAPEX by project category | E1: Home | I1: Link to Historic Capex Instructions - Table 6.2 | M1: Link to Historic Capex Commentary - Table 5.2
A5: $M nominal
A7: Project Category | F7: Any Part Year | G7: Year 1 | H7: Year 2 | I7: Year 3 | J7: Year 4 | K7: Year 5 | L7: TOTAL
A9: NETWORK
A10: LOAD DRIVEN | B10: Augmentation | G10: 14.25568104 | H10: 42.48187734 | I10: 161.7782315 | J10: 74.75132967 | K10: 57.46765317 | L10: 350.7347727
B12: Connection | G12: 11.84955998 | H12: 20.8293076 | I12: 28.88113288 | J12: 14.95922906 | K12: 22.50986359 | L12: 99.02909311
B14: Easements | G14: 1.20790972 | H14: 0.19355849 | I14: 1.18204808 | J14: 12.0655521 | K14: 14.90985591 | L14: 29.5589243
A17: NON-LOAD DRIVEN | B17: Replacement | G17: 55.27264018 | H17: 34.97628743 | I17: 19.17799685 | J17: 49.99679104 | K17: 93.0658871 | L17: 252.4896026
B19: Security/Compliance | G19: 3.72180307 | H19: 8.02194488 | I19: 10.99650985 | J19: 14.16685088 | K19: 18.35137962 | L19: 55.2584883
B21: Other | G21: 0 | H21: 0 | I21: 0 | J21: 0 | K21: 0 | L21: 0
B23: Inventory/Spares | G23: 3.83997704 | H23: 2.43854657 | I23: 2.22844317 | J23: 0.50028569 | K23: 3.52662612 | L23: 12.53387859
A25: NON NETWORK
A26: BUSINESS IT | B26: Information Technology | G26: 6.39527559 | H26: 5.78969239 | I26: 7.27778203 | J26: 6.71321047 | K26: 13.74686618 | L26: 39.92282666
A28: SUPPORT THE BUSINESS | B28: Facilities | G28: 0.86482247 | H28: 2.83049528 | I28: 0.71746148 | J28: 1.13673377 | K28: 2.33572604 | L28: 7.88523904
A31: TOTAL HISTORIC CAPEX | G31: 97.40766909 | H31: 117.56171 | I31: 232.2396059 | J31: 174.2899827 | K31: 225.9138577 | L31: 847.4128254

Sheet Hist Capex by Asset Class
A1: 3.2 HISTORIC CAPEX by asset class | E1: Home | G1: Link to Capex Instructions - Table 6.2
A5: $M, Nominal | E5: Any Part Year | F5: Year 1 | G5: Year 2 | H5: Year 3 | I5: Year 4 | J5: Year 5 | K5: TOTAL
A6: Asset class
E7: Cost | F7: Cost | G7: Cost | H7: Cost | I7: Cost | J7: Cost | K7: Cost
A8: Transmission Lines | F8: 22.28 | G8: 6.33 | H8: 11.46745153 | I8: 6.07 | J8: 11.10348689 | K8: 57.25093841
A9: Transmission Lines (underground) | F9: 3.14 | G9: 12.54 | H9: 60.07316961 | I9: 19.86 | J9: 1.885943158 | K9: 97.49911277
A10: Substations Primary Plant | F10: 36.8 | G10: 52.05 | H10: 72.43260307 | I10: 51.44 | J10: 79.20306962 | K10: 291.9256727
A11: Substation Establishment | F11: 6.28 | G11: 4.99 | H11: 10.29478215 | I11: 5.1 | J11: 10.35469278 | K11: 37.01947492
A12: Substation Demountable Buildings | F12: 0.72 | G12: 0.88 | H12: 2.10319759 | I12: 1.4 | J12: 3.338209179 | K12: 8.441406769
A13: Substation Fences | F13: 2.41 | G13: 3.29 | H13: 4.341909406 | I13: 2.76 | J13: 8.092003043 | K13: 20.89391245
A14: Refurbishment 2008 - 2013 | F14: 0 | G14: 0 | H14: 0 | I14: 6.31 | J14: 4.314861 | K14: 10.624861
A15: Substations Secondary Systems - Electronic | F15: 10.2 | G15: 15.32 | H15: 32.34146087 | I15: 36.5 | J15: 49.1801741 | K15: 143.541635
A16: Communications (buildings, towers and site infrastructure) | F16: 6.06 | G16: 11.54 | H16: 21.11003944 | I16: 0.03 | J16: 14.11920654 | K16: 52.85924599
A17: Communications (other assets) | F17: 0 | G17: 0 | H17: 0 | I17: 16.41 | J17: 9.116668337 | K17: 25.52666834
A18: Network Switching | F18: 2.15 | G18: 0.52 | H18: 0.02572051 | I18: 0.22 | J18: 1.44446987 | K18: 4.36019038
A19: Easements | F19: 0.09 | G19: 0.55 | H19: 1.154306869 | I19: 9.82 | J19: 10.95501666 | K19: 22.56932353
A20: Land | F20: 1.53 | G20: 1.21 | H20: 5.05673443 | I20: 4.07 | J20: 4.900238367 | K20: 16.7669728
A21: Commercial Buildings | F21: 0.59 | G21: 1.56 | H21: 0.5980361597 | I21: 0.34 | J21: 1.971165911 | K21: 5.059202071
A22: houses | F22: 0 | G22: 0 | H22: 0 | I22: 0 | J22: 0 | K22: 0
A23: Computers, Software and Office Machines | F23: 4.62 | G23: 5.47 | H23: 11.11826414 | I23: 9.67 | J23: 14.09992124 | K23: 44.97818538
A24: Office furniture, movable plant, and misc | F24: 0.54 | G24: 1.31 | H24: 0.1202833203 | I24: 4.29 | J24: 1.446707099 | K24: 7.706990419
A25: Vechicles | F25: 0 | G25: 0 | H25: 0 | I25: 0 | J25: 0.38512 | K25: 0.38512
A28: TOTAL CAPEX | F28: 97.41 | G28: 117.56 | H28: 232.2379591 | I28: 174.29 | J28: 225.9109538 | K28: 847.4089129

Sheet Hist Capex - Network
A1: 3.3 HISTORIC CAPEX - NETWORK - by project
F3: Home | I3: Link to Historic Capex Instructions - Table 6.2 | L3: Link to Historic Capex Commentary - Table 5.2
A7: $M nominal
F8: Yearly expenditure by project (inclusive of FDC)
A10: Project ID | B10: Project Description | C10: Commissioning Date | D10: Category^ | F10: Any Part Year | G10: Year 1 | H10: Year 2 | I10: Year 3 | J10: Year 4* | K10: Year 5* | L10: TOTAL | N10: REASON FOR PROJECT | O10: Reg Test / Business Case (Y/N) | P10: Reg Test / Business Case Cost Estimate | Q10: Reason for Variance from Cost Estimate / Expected Commissioning Date
A12: 10161 | B12: CBD Reinforcement City West Kilburn Cable Option 1x300/360MV.A 275/66kV Transformer (Contingent) | C12: 2012 | D12: Augmentation | G12: 0 | H12: 13.92042417 | I12: 97.90447248 | J12: 32.8622745 | K12: 0 | L12: 144.6871711 | N12: ETC compliance | O12: Y | P12: 216.5 | Q12: Efficiencies in cable contract.
A13: 85007 | B13: 132kV Playford Replacement - Relocation to Davenport | C13: 2011 | D13: Replacement | G13: 34.985 | H13: 12.22647933 | I13: 9.61289502 | J13: 0.33626673 | K13: 0 | L13: 57.16064108 | N13: Replacement | O13: Y | P13: 64.8
A14: 11101 | B14: Cultana 275/132kV Augmentation | C14: 2015 | D14: Augmentation | G14: 0 | H14: 0.45345313 | I14: 1.35990397 | J14: 14.87772873 | K14: 30.78983863 | L14: 47.48092446 | N14: Reliability | O14: Y | P14: 65.4
A15: 11108 | B15: Mount Barker 275/66kV Injection | C15: 2011 | D15: Augmentation | G15: 2.27 | H15: 9.4289898 | I15: 25.12007842 | J15: 0.8791347 | K15: 0.04033897 | L15: 37.73854189 | N15: ETC compliance | O15: Y | P15: 37.6
A16: 10509 | B16: Whyalla Terminal Rebuild (Reduced Brownfield at Whyalla + Cultana diameter) and 2x120MV.A Transformer Capacity Increase | C16: 2013 | D16: Replacement | G16: 0 | H16: 0.4174967695 | I16: 1.79294053 | J16: 13.92537863 | K16: 17.6321963 | L16: 33.76801223 | N16: ETC compliance | O16: N
A17: 11204 | B17: Templers 275kV substation and 275/132kV transformation - Stage 1 | C17: 2012 | D17: Augmentation | G17: 0.82 | H17: 2.91132821 | I17: 20.89205806 | J17: 4.0243569 | K17: 0.78472611 | L17: 29.43246928 | N17: ETC compliance | O17: Y | P17: 35.9 | Q17: Project savings achieved
A18: 10503 | B18: Waterloo Substation Rebuild and 2x60MV.A Transformer Capacity Increase | C18: 2014 | D18: Replacement | G18: 0.0465390792 | H18: 0 | I18: 0.0442568448 | J18: 2.53364694 | K18: 20.65748619 | L18: 23.28192905 | N18: ETC compliance | O18: N
A19: 10370 | B19: Clare North 132/33kV Substation | C19: 2010 | D19: Connection | G19: 1.7 | H19: 14.05626111 | I19: 5.21631503 | J19: 0.228703 | K19: 0.47015182 | L19: 21.67143096 | N19: Customer Connection | O19: Y | P19: 21.712302
A20: 10716 | B20: Strategic Land Purchase RY 2 Medium Priority | C20: 2013 | D20: Easements | G20: 0.00867275 | H20: 0.14688314 | I20: 0.59377308 | J20: 9.50734287 | K20: 10.47301099 | L20: 20.72968283 | N20: Strategic Land Purchase | O20: N
A21: 11302 | B21: Para 275kV Sec Systems Replacement + some primary | C21: 2016 | D21: Replacement | G21: 0 | H21: 0.02967864 | I21: 0.73230374 | J21: 3.90192303 | K21: 14.68548884 | L21: 19.34939425 | N21: Replacement | O21: N
A22: 11351 | B22: Substation Security Fencing | C22: 2013 | D22: Security/Compliance | G22: 2.24 | H22: 3.03174619 | I22: 3.5290626 | J22: 2.51047058 | K22: 7.70054728 | L22: 19.01182665 | N22: Security | O22: Y | P22: 3.323139
A23: 11401 | B23: Kadina East 2x60MV.A Transformer Capacity Increase | C23: 2011 | D23: Connection | G23: 0.55 | H23: 1.38722971 | I23: 15.15290494 | J23: 0.75283087 | K23: 0.23210779 | L23: 18.07507331 | N23: ETC compliance | O23: Y | P23: 18.42
A24: 10615 | B24: Ardrossan West 132kV Substation Rebuild and 2x25MV.A Transformer Capacity Increase (Existing Site) | C24: 2014 | D24: Augmentation | G24: 0.177947352 | H24: 0.4851763704 | I24: 4.68960373 | J24: 9.83993919 | K24: 0 | L24: 15.19266664 | N24: Reliability | O24: Y | P24: 22.8
A25: 11102 | B25: Wudinna 2x25MV.A 132/66kV Transformer Reinforcement | C25: 2012 | D25: Connection | G25: 0.31829057 | H25: 0.47463148 | I25: 5.58598923 | J25: 8.02499069 | K25: 0.58158094 | L25: 14.98548291 | N25: ETC compliance | O25: Y | P25: 13.8
A26: 11216 | B26: South East Dual Path Telecommunications | C26: 2013 | D26: Security/Compliance | G26: 0.11 | H26: 2.02666021 | I26: 5.82193295 | J26: 5.52600201 | K26: 0.58776223 | L26: 14.0723574 | N26: Security | O26: Y | P26: 14.2
A27: 10467.z | B27: Whyalla to Pt Lincoln 132kV Line Uprating | C27: 2009 | D27: Replacement | G27: 12.775 | H27: 0.28357986 | I27: 0 | J27: 0 | K27: 0 | L27: 13.05857986 | N27: Reliability | O27: Y | P27: 15.640382
A28: 11303 | B28: TIPS 275kV Section A Secondary Systems Replacement only | C28: 2013 | D28: Replacement | G28: 0 | H28: 0.2901785 | I28: 1.54917586 | J28: 4.5639192 | K28: 4.54904523 | L28: 10.95231879 | N28: Replacement | O28: Y | P28: 11.08
A29: 11109 | B29: TIPS 66kV Section Secondary Systems plus minor primary plant | C29: 2014 | D29: Replacement | G29: 0 | H29: 0.02569119 | I29: 0.26335879 | J29: 2.1990976 | K29: 7.49903594 | L29: 9.98718352 | N29: Replacement | O29: Y | P29: 11.26
A30: 11304 | B30: TIPS 275kV Section B Secondary Systems Replacement + some primary | C30: 2013 | D30: Replacement | G30: 0 | H30: 0.34027051 | I30: 2.30816363 | J30: 5.76583422 | K30: 1.36999324 | L30: 9.7842616 | N30: Replacement | O30: Y | P30: 9.83
A31: 11528 | B31: South East Backbone Telecoms Stage 2 | C31: 2015 | D31: Augmentation | G31: 0 | H31: 0 | I31: 0 | J31: 0.4813371 | K31: 7.88755133 | L31: 8.36888843 | N31: Security / Compliance | O31: N
A32: 10615 | B32: Ardrossan West 132kV Substation Rebuild and 2x25MV.A Transformer Capacity Increase (Existing Site) | C32: 2014 | D32: Connection | G32: 0.069201748 | H32: 0.1886796996 | I32: 0 | J32: 0 | K32: 7.42390089 | L32: 7.681782338 | N32: Reliability | O32: Y | P32: 8.44
A33: 10161 | B33: CBD Reinforcement City West Kilburn Cable Option 1x300/360MV.A 275/66kV Transformer | C33: 2012 | D33: Augmentation | G33: 3.05 | H33: 2.832871246 | I33: 1.184020709 | J33: 0 | K33: 0 | L33: 7.066891956 | N33: ETC compliance | O33: Y | P33: 0
A34: 11359 | B34: Transformer Refurbishment Projects | C34: 2013 | D34: Replacement | G34: 0.13 | H34: 1.18683907 | I34: 2.48419153 | J34: 0.64943857 | K34: 2.26188355 | L34: 6.71235272 | N34: Aligning asset replacement projects with augmentation projects | O34: Y | P34: 7.5
A35: 10161 | B35: CBD Reinforcement City West Kilburn Cable Option 1x300/360MV.A 275/66kV Transformer | C35: 2012 | D35: Connection | G35: 2.03 | H35: 1.888580831 | I35: 0.7893471396 | J35: 0 | K35: 1.86381937 | L35: 6.57174734 | N35: ETC compliance | O35: Y | P35: 0
A36: 10673 | B36: Port Lincoln 33kV Capacitor Banks (4 Banks) | C36: 2011 | D36: Augmentation | G36: 0.89 | H36: 4.88247896 | I36: 0.40641296 | J36: 0.09844781 | K36: 0 | L36: 6.27733973 | N36: ETC compliance | O36: Y | P36: 7.41487
A37: 10386 | B37: Hummocks 132/33 kV Transformer Upgrade | C37: 2014 | D37: Connection | G37: 0 | H37: 0.1506291 | I37: 0.54037533 | J37: 0.34122774 | K37: 5.01581593 | L37: 6.0480481 | N37: ETC compliance | O37: N
A38: 10336 | B38: SIM Stage 2 City West - 1x 300/360MV.A 275/66kV Transformer | D38: Connection | G38: 2.38 | H38: 2.206400585 | I38: 0.9221823933 | J38: 0 | K38: 0 | L38: 5.508582978 | N38: Reliability | O38: Y | P38: 24 | Q38: **Project became part of ACR 10161**
A39: 11203 | B39: Dorrien 3rd Transformer | C39: 2013 | D39: Connection | G39: 0 | H39: 0 | I39: 0.14532752 | J39: 3.75263293 | K39: 1.49937948 | L39: 5.39733993 | N39: ETC compliance | O39: Y | P39: 5.49
A40: 11362 | B40: Site Asset Replacements (ETSA Utilities) | C40: 2013 | D40: Replacement | G40: 0 | H40: 0.102565 | I40: 1.235718 | J40: 2.7905026 | K40: 1.12341277 | L40: 5.25219837 | N40: Condition/Obsolescence | O40: Y | P40: 4.77
A41: 11209 | B41: Munno Para 225MV.A 275/66kV Augmentation | C41: 2015 | D41: Connection | G41: 0 | H41: 0 | I41: 0.45929758 | J41: 1.23608537 | K41: 3.53047103 | L41: 5.22585398 | N41: ETC compliance | O41: N
A42: 11350 | B42: Unit Asset Replacements | C42: 2013 | D42: Replacement | G42: 0.03193511 | H42: 0.35792564 | I42: 1.3735168 | J42: 2.47824015 | K42: 0.6143813 | L42: 4.855999 | N42: Condition/Obsolescence | O42: Y | P42: 4.86
A43: 10408 | B43: Penola West 2x25MV.A 132/33kV Substation | C43: 2010 | D43: Connection | G43: 4.46 | H43: 0.16826618 | I43: 0.06939372 | J43: -0.0208195 | K43: 0 | L43: 4.6768404 | N43: Customer Connection | O43: Y | P43: 9.443
A44: 10338 | B44: Tungkillo 275kV 100Mvar Capacitor Bank | C44: 2013 | D44: Augmentation | G44: 0 | H44: 0.05947381 | I44: 0.32754772 | J44: 1.51390513 | K44: 2.3945261 | L44: 4.29545276 | N44: Reliability | O44: Y | P44: 6
A45: 11246 | B45: Network Aerial Laser Survey | C45: 2012 | D45: Security/Compliance | G45: 0 | H45: 0 | I45: 0 | J45: 3.35093628 | K45: 0.93501839 | L45: 4.28595467 | O45: Y | P45: 3.9
A46: 11355 | B46: Davenport 275kV 50Mvar Reactor Stage 2 | C46: 2012 | D46: Replacement | G46: 0 | H46: 0 | I46: 1.79821601 | J46: 2.47553527 | K46: 0.0063138 | L46: 4.28006508 | N46: Reliability | O46: Y | P46: 5.2 | Q46: Project savings achieved
A47: 10549 | B47: Whyalla-Yadnarie Telecommunications Upgrade | C47: 2007 | D47: Augmentation | G47: 0.00517212 | H47: 0 | I47: 3.27171921 | J47: 0.92975946 | K47: 0.00505 | L47: 4.21170079 | N47: Reliability | O47: Y | P47: 4.44
A48: 11543 | B48: Magill Telecoms Bearer | C48: 2015 | D48: Augmentation | G48: 0 | H48: 0 | I48: 0 | J48: 0.01570517 | K48: 4.05241973 | L48: 4.0681249 | N48: Equipment condition | O48: N
A49: 10994 | B49: Inventory Purchases FY Reset 2 | C49: 2009 | D49: Inventory/Spares | G49: 2.16 | H49: -0.02519396 | I49: 0.05386631 | J49: 1.8601254 | K49: 0 | L49: 4.04879775 | N49: Reliability | O49: Y | P49: 2.111
A50: 11363 | B50: Site Asset Replacements (Tenix Alliance) | C50: 2013 | D50: Replacement | G50: 0 | H50: 0.02689055 | I50: 2.12279799 | J50: 1.33114631 | K50: 0.32182264 | L50: 3.80265749 | N50: Condition/Obsolescence | O50: Y | P50: 4.72
A51: 11360 | B51: Auxiliary Supplies Refurbishment Projects | C51: 2013 | D51: Replacement | G51: 0.14951784 | H51: 0.63943501 | I51: 0.42436303 | J51: 0.49173264 | K51: 2.05297745 | L51: 3.75802597 | N51: Aligning asset replacement projects with augmentation projects | O51: Y | P51: 5.1
A52: 11214 | B52: Clare North New SDH Radio Link | C52: 2011 | D52: Augmentation | G52: 0.23 | H52: 2.61817126 | I52: 0.49042402 | J52: 0.25100321 | K52: 0 | L52: 3.58959849 | N52: DNSP Connection Request | O52: Y | P52: 3.739
A53: 11400 | B53: Davenport 275 kV Reactor Replacement Sta | D53: Replacement | G53: 0 | H53: 0 | I53: 0 | J53: 0 | K53: 3.56462948 | L53: 3.56462948
A54: 11307 | B54: Kincraig 132kV Capacitor Bank | C54: 2013 | D54: Augmentation | G54: 0 | H54: 0.00363891 | I54: 0.11183925 | J54: 2.10445047 | K54: 1.2664431 | L54: 3.48637173 | N54: Reliability | O54: Y | P54: 4.09
A55: 11112 | B55: Para-PGW-TIPS SDH Radio Link Replacement | C55: 2012 | D55: Replacement | G55: 0.03486748 | H55: 0.29811736 | I55: 0.81409462 | J55: 2.19317418 | K55: 0.06862722 | L55: 3.40888086 | N55: Obsolescence | O55: Y | P55: 4.26 | Q55: Project savings achieved
A56: 11239 | B56: SAEs for 2013-2018 Capital Projects | C56: 2012 | D56: Augmentation | G56: 0 | H56: 0 | I56: 2.77490531 | J56: 0.38074378 | K56: 0.16622142 | L56: 3.32187051 | N56: Scope and Estimates for the Revenue Reset | O56: Y | P56: 4.17
A57: 11380 | B57: Yadnarie Reactor Replacement | C57: 2013 | D57: Replacement | G57: 0 | H57: 0 | I57: 0 | J57: 0.2810609 | K57: 2.98162768 | L57: 3.26268858 | N57: Replacement | O57: N
A58: 10914 | B58: Whyalla - Mt Karia Radio Bearer | C58: 2009 | D58: Augmentation | G58: 1.11 | H58: 2.1200675 | I58: 0 | J58: 0 | K58: 0 | L58: 3.2300675 | N58: Reliability | O58: Y | P58: 3.823 | Q58: Project savings achieved
A59: 11322 | B59: Barn Hill Radio Links Replace with SDH | C59: 2014 | D59: Replacement | G59: 0 | H59: 0.00551016 | I59: 0 | J59: 0.12540829 | K59: 2.95474714 | L59: 3.08566559 | N59: Obsolescence | O59: N
A60: 11208 | B60: CB to complete mesh at Parafield Gardens West | C60: 2013 | D60: Security/Compliance | G60: 0 | H60: 0.00517029 | I60: 0.16613055 | J60: 0.29118375 | K60: 2.38604196 | L60: 2.84852655 | N60: Reliability | O60: N
A61: 10913 | B61: Munno Para Land and Easement Acquisition | C61: 2013 | D61: Easements | G61: 0.07777975 | H61: 0.02548365 | I61: 0.16008518 | J61: 2.38446007 | K61: 0.00455496 | L61: 2.65236361 | N61: Strategic Land Purchase | O61: N
A62: 11390 | B62: Tailem Bend 132kV Reactive Power Support | C62: 2014 | D62: Augmentation | G62: 0 | H62: 0 | I62: 0 | J62: 0.07217082 | K62: 2.40874268 | L62: 2.4809135 | N62: ETC compliance | O62: N
A63: 11316 | B63: Morgan-Whyalla 1-4 Substations Replacement | C63: 2017 | D63: Replacement | G63: 0 | H63: 0 | I63: 0 | J63: 0.40672376 | K63: 2.03378284 | L63: 2.4405066 | N63: Replacement | O63: N
A64: 11013 | B64: PABX upgrade (IP Convergence) | C64: 2012 | D64: Replacement | G64: 0.09081003 | H64: 0.0883613 | I64: 1.17264568 | J64: 0.5899156 | K64: 0.48272814 | L64: 2.42446075 | N64: New Requirements | O64: Y | P64: 2.02
A65: 11510 | B65: Kadina East Reactive Power Support | C65: 2014 | D65: Augmentation | G65: 0 | H65: 0 | I65: 0 | J65: 0.07709617 | K65: 2.33355357 | L65: 2.41064974 | N65: ETC compliance | O65: N
A66: 10638 | B66: Cherry Gardens - Morphett Vale East 275kV Line Uprate | C66: 2009 | D66: Augmentation | G66: 2.42 | H66: -0.01565832 | I66: 0.006022 | J66: 0 | K66: 0 | L66: 2.41036368 | N66: Reliability | O66: Y | P66: 3.8 | Q66: Decrease in project scope
A67: 10394 | B67: Davenport Voltage Control | C67: 2010 | D67: Replacement | G67: 0.81 | H67: 1.49037614 | I67: 0.06019721 | J67: 0.00061542 | K67: 0 | L67: 2.36118877 | N67: Reliability | O67: Y | P67: 5.2 | Q67: Project savings achieved
A68: 11008 | B68: Building Electronic Security | C68: 2013 | D68: Security/Compliance | G68: 0.04021 | H68: 0.01049431 | I68: 0.09263637 | J68: 0.95361259 | K68: 1.21970535 | L68: 2.31665862 | N68: Security | O68: Y | P68: 2.47
A69: 10519 | B69: RTU Replacement Program | C69: 2012 | D69: Replacement | G69: 0.03148416 | H69: 0.94292303 | I69: 0.78643998 | J69: 0.50649421 | K69: 0.00510949 | L69: 2.27245087 | N69: Replace Obsolete Equipment | O69: Y | P69: 2.680739
A70: 11194 | B70: Inventory Purchases 2010/11 | C70: 2011 | D70: Inventory/Spares | G70: 0 | H70: 0 | I70: 2.27175468 | J70: -8.8e-07 | K70: 0 | L70: 2.2717538 | N70: Purchase of spares | O70: Y | P70: 2.28
A71: 11201 | B71: Eyre Peninsula Reinforcement | C71: 2017 | D71: Augmentation | G71: 0 | H71: 0 | I71: 0 | J71: 1.41375658 | K71: 0.77772176 | L71: 2.19147834 | N71: ETC compliance | O71: N
A72: 11211 | B72: Kilburn 185MVA Transformer Capacity Increase 185 to 225MVA | C72: 2013 | D72: Connection | G72: 0 | H72: 0.00363891 | I72: 0 | J72: 0.47285213 | K72: 1.69486688 | L72: 2.17135792 | N72: ETC compliance | O72: N
A73: 11023 | B73: AREVA EMP - Upgrades and Support Packs 2010 | C73: 2011 | D73: Replacement | G73: 0.32 | H73: 0.86922593 | I73: 0.89642576 | J73: 0.03987322 | K73: 0 | L73: 2.12552491 | N73: Obsolescence | O73: Y | P73: 2.126
A74: 11094 | B74: Inventory Purchases 2009/10 | C74: 2010 | D74: Inventory/Spares | G74: 0 | H74: 2.10494249 | I74: -0.10413526 | J74: 0.11180974 | K74: 0 | L74: 2.11261697 | N74: Purchase of spares | O74: Y | P74: 2.97
A75: 11630 | B75: Eyre Peninsula Reinforcement-Land Acquisition | C75: 2016 | D75: Easements | G75: 0 | H75: 0 | I75: 0 | J75: 0.02527563 | K75: 2.04439507 | L75: 2.0696707 | N75: Strategic Land Purchase | O75: N
A76: 11505 | B76: Mt Gunson Substation Replacement | C76: 2015 | D76: Replacement | G76: 0 | H76: 0 | I76: 0 | J76: 0.01068196 | K76: 2.02745929 | L76: 2.03814125 | N76: Replacement | O76: N
A77: 11504 | B77: Neuroodla Substation Replacement | C77: 2015 | D77: Replacement | G77: 0 | H77: 0 | I77: 0 | J77: 0.00955866 | K77: 1.99199593 | L77: 2.00155459 | N77: Replacement | O77: N
A78: 11232 | B78: OPSWAN Implementation 2010-2012 | C78: 2012 | D78: Augmentation | G78: 0 | H78: 0 | I78: 0.78920722 | J78: 1.17163303 | K78: 0.00078171 | L78: 1.96162196 | N78: New Requirement | O78: Y | P78: 1.95
A79: 10528 | B79: SCC-Crafers SDH Radio Link | C79: 2011 | D79: Augmentation | G79: 0.35 | H79: 1.26916124 | I79: 0.29973968 | J79: 0 | K79: 0 | L79: 1.91890092 | N79: Reliability | O79: Y | P79: 2.126
A80: 11320 | B80: Weather Stations | C80: 2012 | D80: Augmentation | G80: 0.09810487 | H80: 0.31098846 | I80: 1.10334302 | J80: 0.36803017 | K80: -0.00465731 | L80: 1.87580921 | N80: Quality, reliability and security | O80: Y | P80: 1.85
A81: 11423 | B81: Telecommunications Network Optimisation | C81: 2014 | D81: Augmentation | G81: 0 | H81: 0 | I81: 0.38496919 | J81: 0.85934202 | K81: 0.59693388 | L81: 1.84124509 | N81: Reliability | O81: Y | P81: 1
A82: 11012 | B82: Integrated Telecommunications Management Systems | C82: 2012 | D82: Augmentation | G82: 0.2322794 | H82: 0.11843333 | I82: 0.54111464 | J82: 0.87993124 | K82: 0.00407838 | L82: 1.77583699 | N82: Security | O82: Y | P82: 2
A83: 10389 | B83: Cherry Gardens Aged Asset Replacement | C83: 2009 | D83: Replacement | G83: 1.11 | H83: 0.62838117 | I83: 0.01377092 | J83: 0 | K83: 0 | L83: 1.75215209 | N83: Poor Asset Condition | O83: Y | P83: 33.94
A84: 10601 | B84: Canowie-Davenport Radio Network | C84: 2009 | D84: Augmentation | G84: 1.64 | H84: 0.10916589 | I84: 0 | J84: 0 | K84: 0 | L84: 1.74916589 | N84: Reliability | O84: Y | P84: 4.887 | Q84: Project savings achieved
A85: 11126 | B85: Equipment Evaluation Facility | C85: 2014 | D85: Security/Compliance | G85: 0 | H85: 0 | I85: 0 | J85: 0.0361843 | K85: 1.60939653 | L85: 1.64558083 | N85: Security / Compliance | O85: N
A86: 11006 | B86: Diesel Generator Upgrades | C86: 2010 | D86: Replacement | G86: 0.62 | H86: 0.95005882 | I86: 0.04889784 | J86: 0 | K86: 0 | L86: 1.61895666 | N86: Condition | O86: Y | P86: 1.646
A87: 11354 | B87: Substation Perimeter Electronic Security | C87: 2012 | D87: Security/Compliance | G87: 0.08 | H87: 0.92677442 | I87: 0.51831469 | J87: 0.07687453 | K87: 0.00683404 | L87: 1.60879768 | N87: Security, supersedes project 11009 | O87: Y | P87: 1.62
A88: 11218 | B88: Network Configuration Management | C88: 2013 | D88: Replacement | G88: 0 | H88: 0 | I88: 0 | J88: 0.23698166 | K88: 1.33973098 | L88: 1.57671264 | N88: Strategic Objective - Empoly new technology | O88: N
A89: 11041 | B89: SDM and LDM Template & Design Clause Upd | C89: 2011 | D89: Security/Compliance | G89: 0 | H89: 1.2180916 | I89: 0.29851226 | J89: 0.00042618 | K89: 0 | L89: 1.51703004 | N89: New Requirement | O89: Y | P89: 1.532
A90: 10694 | B90: Substations and Telecommunications Spare | C90: 2010 | D90: Inventory/Spares | G90: 1.35 | H90: 0.09692321 | I90: 0 | J90: 0 | K90: 0 | L90: 1.44692321 | N90: ETC spare restoration requirement | O90: Y | P90: 7.95
A91: 10921 | B91: Spare 132/66/33kV 120MVA TF | C91: 2014 | D91: Inventory/Spares | G91: 0 | H91: 0.00517029 | I91: 0 | J91: 0.14068509 | K91: 1.27117116 | L91: 1.41702654 | N91: ETC spare restoration requirement | O91: N
A92: 11383 | B92: Mt Barker Triple Circuit Easement Expansion | C92: 2014 | D92: Easements | G92: 0 | H92: 0 | I92: 0 | J92: 0 | K92: 1.35605693 | L92: 1.35605693 | N92: Strategic Land Purchase | O92: N
A93: 11114 | B93: Operational Data Management | C93: 2012 | D93: Replacement | G93: 0.18709735 | H93: 0.07471559 | I93: 0.72389174 | J93: 0.34348337 | K93: 0 | L93: 1.32918805 | N93: New Requirements | O93: Y | P93: 1.33
A94: 11124 | B94: Outage Management 2009-2011 | C94: 2012 | D94: Replacement | G94: 0.02018136 | H94: 0.18342919 | I94: 0.43058348 | J94: 0.46077489 | K94: 0.22582688 | L94: 1.3207958 | N94: New Requirements, previously part of project 11331 | O94: Y | P94: 1.18
A95: 10453.z | B95: Davenport to Para 275kV Line Uprating | C95: 2009 | D95: Replacement | G95: 1.31 | H95: 0 | I95: 0 | J95: 0 | K95: 0 | L95: 1.31 | N95: Reliability | O95: Y | P95: 7.640224
A96: 10344 | B96: Heywood Interconnector Upgrade | C96: 2016 | D96: Augmentation | G96: 0 | H96: 0 | I96: 0 | J96: 0.79854467 | K96: 0.33522034 | L96: 1.13376501 | N96: Increase the interconnector capacity | O96: N
A97: 11822 | B97: Riverland Telecoms Bearer | C97: 2016 | D97: Replacement | G97: 0 | H97: 0 | I97: 0 | J97: 0.01596264 | K97: 1.08460648 | L97: 1.10056912 | N97: Security / Compliance | O97: N
A98: 11361 | B98: Protection Unit Replacements | C98: 2013 | D98: Replacement | G98: 0.04004756 | H98: 0.06299181 | I98: 0.38351737 | J98: 0.25962297 | K98: 0.33200721 | L98: 1.07818692 | N98: Replacement | O98: Y | P98: 0.995
A99: 11233 | B99: IT OCS Software 2010-2012 | C99: 2012 | D99: Replacement | G99: 0 | H99: 0.0012768 | I99: 0.39746058 | J99: 0.67324042 | K99: 0.00358259 | L99: 1.07556039 | N99: Replacement | O99: Y | P99: 0.77
A100: 11247 | B100: Fire and Security Systems Upgrade to SDM Standard | C100: 2014 | D100: Security/Compliance | G100: 0 | H100: 0 | I100: 0 | J100: 0.05113226 | K100: 0.98312874 | L100: 1.034261 | N100: Security / Compliance | O100: N
A101: 11032 | B101: OPSWAN Implementation 2008/10 | C101: 2010 | D101: Augmentation | G101: 0.59 | H101: 0.43962694 | I101: 0 | J101: 0 | K101: 0 | L101: 1.02962694 | N101: New Requirements, previously part of project 11332 | O101: Y | P101: 1.032
A102: 11912 | B102: TIPS to Kilburn to Northfield 275kV Loop Uprating | C102: 2014 | D102: Augmentation | G102: 0 | H102: 0 | I102: 0 | J102: 0.02915456 | K102: 0.88500067 | L102: 0.91415523 | N102: Condition / Aged Asset | O102: N
A103: 10942 | B103: Clare North Substation Land Acquisition | C103: 2009 | D103: Easements | G103: 0.85749167 | H103: 0.00135 | I103: 0 | J103: 0 | K103: 0 | L103: 0.85884167 | N103: Strategic Land Purchase | O103: Y | P103: 0.86
A104: 11735 | B104: Transmission Line Design | C104: 2017 | D104: Security/Compliance | G104: 0 | H104: 0 | I104: 0 | J104: 0.03113487 | K104: 0.82698649 | L104: 0.85812136 | N104: Security / Compliance | O104: N
A105: 11348 | B105: IT Security - Enterprise Risk Assessment | C105: 2013 | D105: Security/Compliance | G105: 0 | H105: 0 | I105: 0.02402531 | J105: 0.61293892 | K105: 0.22061462 | L105: 0.85757885 | N105: Security | O105: N
A106: 11347 | B106: IT Security - Assess/Remediate Vulnerabilities | C106: 2010 | D106: Security/Compliance | G106: 0.10064466 | H106: 0.71723526 | I106: 0 | J106: 0 | K106: 0 | L106: 0.81787992 | N106: Security | O106: Y | P106: 0.844
A107: 11432 | B107: OPSWAN Implementation 2012-2014 | C107: 2015 | D107: Augmentation | G107: 0 | H107: 0 | I107: 0 | J107: 0 | K107: 0.74590775 | L107: 0.74590775 | N107: New Requirements | O107: N
A108: 10714 | B108: Para Fire Pump System | C108: 2011 | D108: Replacement | G108: 0.30056618 | H108: 0.37836351 | I108: 0.05851173 | J108: 0 | K108: 0 | L108: 0.73744142 | N108: Obsolescence | O108: Y | P108: 0.74
A109: 11130 | B109: Design Standards R&D and Further Optimis | C109: 2013 | D109: Security/Compliance | G109: 0 | H109: 0 | I109: 0.02494987 | J109: 0.34013706 | K109: 0.33837814 | L109: 0.70346507 | N109: Business Efficiency Improvements | O109: N
A110: 11031 | B110: IT OCS Software 2008/10 | C110: 2010 | D110: Replacement | G110: 0.38418658 | H110: 0.30840457 | I110: 0 | J110: 0 | K110: 0 | L110: 0.69259115 | N110: New Requirements, previously part of project 11331 | O110: Y | P110: 0.692
A111: 11132 | B111: Fleurieu Peninsula Strategic Land and Ea | C111: 2015 | D111: Easements | G111: 0 | H111: 0.01501566 | I111: 0.32647192 | J111: 0.13866505 | K111: 0.20237817 | L111: 0.6825308 | N111: Strategic Land Purchase | O111: N
A112: 11217 | B112: Asset Data Capture | C112: 2013 | D112: Replacement | G112: 0 | H112: 0.23851345 | I112: 0.13513138 | J112: 0.09485879 | K112: 0.16330237 | L112: 0.63180599 | N112: New Requirements | O112: Y | P112: 0.63
A113: 11046 | B113: Morphett Vale East Low Rated Plant & Pro | C113: 2011 | D113: Augmentation | G113: 0.00471624 | H113: 0.34758434 | I113: 0.27408739 | J113: 0.00188327 | K113: 0 | L113: 0.62827124 | N113: DNSP Connection Request | O113: Y | P113: 0.63789
A114: 11236 | B114: IEC 61850 Training & Development Facility | C114: 2014 | D114: Security/Compliance | G114: 0 | H114: 0 | I114: 0.03552665 | J114: 0.19749365 | K114: 0.36927301 | L114: 0.60229331 | N114: Strategic Objective - Empoly new technology | O114: N
A115: 11826 | B115: Dalrymple Substation Upgrade | C115: 2012 | D115: Augmentation | G115: 0 | H115: 0 | I115: 0 | J115: 0.06804298 | K115: 0.53101758 | L115: 0.59906056 | N115: ETC Compliance | O115: N
A116: 10501 | B116: CB & CT Replacement Program | C116: 2008 | D116: Replacement | G116: 0.46804458 | H116: 0.1601965 | I116: -0.04789155 | J116: 0 | K116: 0 | L116: 0.58034953 | N116: Poor Asset Condition | O116: Y | P116: 14.7 | Q116: Closeout of previous period project. Savings due to highly competitive contract pricing.
A117: 10847 | B117: IEC61850 Technology Development | C117: 2010 | D117: Security/Compliance | G117: 0.9090015 | H117: -0.37312828 | I117: 0.02564762 | J117: 0 | K117: 0 | L117: 0.56152084 | N117: New Requirements | O117: Y | P117: 3.2 | Q117: Transfer of project scope to EC.10370
A118: 11049 | B118: Vegetation Mapping using ALS | C118: 2011 | D118: Security/Compliance | G118: 0 | H118: 0.38135973 | I118: 0.14423791 | J118: 0 | K118: 0 | L118: 0.52559764 | N118: New requirement | O118: Y | P118: 0.5393
A119: 11021 | B119: Improved Alarm Management System | C119: 2011 | D119: Replacement | G119: 0.11142337 | H119: 0.11793913 | I119: 0.26838544 | J119: 0.01201036 | K119: 0 | L119: 0.5097583 | N119: Obsolescence | O119: Y | P119: 0.511
A120: 11905 | B120: Yorke Peninsula Reinforcement Land and Easement Acquisition | C120: 2014 | D120: Easements | G120: 0 | H120: 0 | I120: 0 | J120: 0 | K120: 0.50236356 | L120: 0.50236356 | N120: Strategic Land Purchase | O120: N
A121: 11235 | B121: SDM SecondarySystemsUpdate-IntegratEC618 | C121: 2011 | D121: Security/Compliance | G121: 0 | H121: 0 | I121: 0.36165366 | J121: 0.13813609 | K121: 7.901e-05 | L121: 0.49986876 | N121: Business Efficiency Improvements | O121: Y | P121: 0.5
A122: 10283 | B122: Playford 2x60MV.A 132/33kV Transformer Capacity Increase | C122: 2010 | D122: Connection | G122: 0.20254035 | H122: 0.25767868 | I122: 0 | J122: 0 | K122: 0 | L122: 0.46021903 | N122: Reliability | O122: Y | P122: 2.71100011
A123: 11902 | B123: Yorke Peninsula Reinforcement | C123: 2019 | D123: Augmentation | G123: 0 | H123: 0 | I123: 0 | J123: 0.05009456 | K123: 0.40996513 | L123: 0.46005969 | N123: NER Requirements / voltage standards | O123: N
A124: 11509 | B124: Bungama Second 275_132kV Transformer | C124: 2016 | D124: Augmentation | G124: 0 | H124: 0 | I124: 0 | J124: 0.20382527 | K124: 0.2428377 | L124: 0.44666297 | N124: Security / Compliance | O124: N
A125: 11005 | B125: Kanmantoo Substation Upgrade | C125: 2016 | D125: Replacement | G125: 0 | H125: 0 | I125: 0 | J125: 0 | K125: 0.44547678 | L125: 0.44547678 | N125: Poor Asset Condition | O125: N
A126: 11396 | B126: Happy Valley Transformer Noise Mitigation | C126: 2013 | D126: Security/Compliance | G126: 0 | H126: 0 | I126: 0 | J126: 0 | K126: 0.43932208 | L126: 0.43932208 | N126: Stakeholder Management | O126: N
A127: 10300 | B127: Stoney Point Protection upgrade | C127: 2009 | D127: Augmentation | G127: 0.386 | H127: 0.00016927 | I127: 0 | J127: 0 | K127: 0 | L127: 0.38616927 | N127: Reliability | O127: Y | P127: 0.453264 | Q127: Actual cost 0.42, including WIP to 30/6/2008 of 0.04. Savings due to risk mitigation strategies
A128: 11394 | B128: Inventory Purchases 2012_2013 | C128: 2013 | D128: Inventory/Spares | G128: 0 | H128: 0 | I128: 0 | J128: -1.87 | K128: 2.25445829 | L128: 0.38445829 | N128: Purchase of spares | O128: N
A129: 11010 | B129: Drawing Standards Implementation | C129: 2010 | D129: Replacement | G129: 0.34880155 | H129: 0.00040735 | I129: 0 | J129: 0 | K129: 0 | L129: 0.3492089 | N129: New Requirements | O129: Y | P129: 1.261
A130: 11709 | B130: Yadnarie - Port Lincoln Backbone Telecoms Link | C130: 2015 | D130: Replacement | G130: 0 | H130: 0 | I130: 0 | J130: 0.02384737 | K130: 0.32530419 | L130: 0.34915156 | N130: Security / Compliance | O130: N
A131: 10654 | B131: Brinkworth to Para Radio Network Upgrade | C131: 2009 | D131: Augmentation | G131: 0.304 | H131: 0.01222356 | I131: 0 | J131: 0 | K131: 0 | L131: 0.31622356 | N131: Reliability | O131: Y | P131: 3.753717
A132: 11839 | B132: Davenport Reactive Power Support Stage 1 | C132: 2016 | D132: Augmentation | G132: 0 | H132: 0 | I132: 0 | J132: 0.19113871 | K132: 0.12454117 | L132: 0.31567988 | N132: NER requirements / voltage standards | O132: N
A133: 10941 | B133: Waterloo Emergency Replacement Transform | C133: 2010 | D133: Inventory/Spares | G133: 0.03393809 | H133: 0.26808466 | I133: 0.00695744 | J133: 0 | K133: 0 | L133: 0.30898019 | N133: Security | O133: Y | P133: 0.317198
A134: 11472 | B134: ICT Security 2012-2014 | D134: Security/Compliance | G134: 0 | H134: 0 | I134: 0 | J134: 0 | K134: 0.29059722 | L134: 0.29059722
A135: 11625 | B135: Mount Barker South 2nd 275_66 kV Transformer | C135: 2017 | D135: Connection | G135: 0 | H135: 0 | I135: 0 | J135: 0.08898611 | K135: 0.19671326 | L135: 0.28569937 | N135: ETC compliance | O135: N
A136: 11312 | B136: TIPS 275_66kV Transformer Upgrade | C136: 2016 | D136: Augmentation | G136: 0 | H136: 0 | I136: 0 | J136: 0.00711619 | K136: 0.25906404 | L136: 0.26618023 | N136: ETC Contingency requirement | O136: N
A137: 11294 | B137: Inventory Purchases 2011_2012 | C137: 2012 | D137: Inventory/Spares | G137: 0 | H137: 0 | I137: 0 | J137: 0.25766634 | K137: 0.00099667 | L137: 0.25866301 | N137: Purchase of spares | O137: N
A138: 11425 | B138: Riverland Reactive Support Stage 1 (Monash) | C138: 2015 | D138: Augmentation | G138: 0 | H138: 0 | I138: 0 | J138: 0.06753746 | K138: 0.18836208 | L138: 0.25589954 | N138: Security / Compliance | O138: N
A139: 11461 | B139: Cultana-Stony Point Easement Acquisition | C139: 2017 | D139: Easements | G139: 0 | H139: 0 | I139: 0 | J139: 0 | K139: 0.22276387 | L139: 0.22276387 | N139: Strategic Land Purchase | O139: N
A140: 10945 | B140: Network Engineering QA Framework Stage 1 | C140: 2009 | D140: Security/Compliance | G140: 0.2046072 | H140: 0.00922203 | I140: 0 | J140: 0 | K140: 0 | L140: 0.21382923 | N140: New Requirements | O140: Y | P140: 0.215
A141: 10886 | B141: OCS Misc 07/08 | C141: 2009 | D141: Replacement | G141: 0.19264198 | H141: 0 | I141: 0 | J141: 0 | K141: 0 | L141: 0.19264198 | N141: New Requirements | O141: Y | P141: 0.35
A142: 10919 | B142: Mount Barker Strategic Land and Easement Acquisition | C142: 2008 | D142: Easements | G142: 0.18483454 | H142: 0 | I142: 0 | J142: 0 | K142: 0 | L142: 0.18483454 | N142: Easement acquisition | O142: Y | P142: 4.015294
A143: 10600 | B143: Happy Valley-MVE Radio Bearer replace | C143: 2009 | D143: Replacement | G143: 0.17664125 | H143: 0.0049805 | I143: 0 | J143: 0 | K143: 0 | L143: 0.18162175 | N143: Replacement of unreliable protection signalling | O143: Y | P143: 0.981
A144: 10720 | B144: Spare 132/66/33/11kV 25MVA TF | C144: 2010 | D144: Inventory/Spares | G144: 0.193 | H144: -0.01138012 | I144: 0 | J144: 0 | K144: 0 | L144: 0.18161988 | N144: ETC spare restoration requirement | O144: Y | P144: 0.985 | Q144: Actual cost 0.92, including WIP to 30/6/2008 of 0.74. Savings due to favourable exchange rate and materials movement not required.
A145: 11129 | B145: Competency Based Assessments for Design | C145: 2012 | D145: Augmentation | G145: 0 | H145: 0 | I145: 0.01251045 | J145: 0.1407878 | K145: 0.01223587 | L145: 0.16553412 | N145: Business Efficiency Improvements | O145: Y | P145: 0.13
A146: 11242 | B146: Aerial Services Implementation | C146: 2013 | D146: Security/Compliance | G146: 0 | H146: 0 | I146: 0 | J146: 0.05405136 | K146: 0.10545325 | L146: 0.15950461 | N146: Business Efficiency Improvements | O146: N
A147: 85035.z | B147: SE - Snuggery New 132kV Line | C147: 2008 | D147: Augmentation | G147: 0.03183047 | H147: 0.12346275 | I147: 0 | J147: 0 | K147: 0 | L147: 0.15529322 | N147: Reliability Upgrade | O147: Y | P147: 4.203655
A148: 11413 | B148: Control System Virtualisation | C148: 2016 | D148: Replacement | G148: 0 | H148: 0 | I148: 0 | J148: 0 | K148: 0.15 | L148: 0.15 | N148: Business Efficiency Improvements | O148: N
A149: 11330 | B149: AREVA EMP Upgrade Stage 2 | C149: 2017 | D149: Replacement | G149: 0 | H149: 0 | I149: 0 | J149: 0 | K149: 0.15 | L149: 0.15 | N149: Obsolescence | O149: N
A150: 11388 | B150: 275kV Rapid Line Construction Methodology Development | C150: 2013 | D150: Security/Compliance | G150: 0 | H150: 0 | I150: 0 | J150: 0.01771558 | K150: 0.10948696 | L150: 0.12720254 | N150: Strategic Objective - Empoly new technology | O150: N
A151: 10664 | B151: Magill 3rd T/F (SIM Stage 1) | C151: 2008 | D151: Connection | G151: 0.12066784 | H151: 0 | I151: 0 | J151: 0 | K151: 0 | L151: 0.12066784 | N151: Reliability Augmentation | O151: Y | P151: 9.6 | Q151: Project savings achieved
A152: 11110 | B152: Eyre Peninsula Easement Acquisition | C152: 2011 | D152: Easements | G152: 0 | H152: 0.00482604 | I152: 0.1017179 | J152: 0.00980848 | K152: 0 | L152: 0.11635242 | N152: Strategic Land Purchase | O152: Y | P152: 0.12
A153: 10562 | B153: Happy Valley - Magill 275kV Line Uprate | C153: 2009 | D153: Augmentation | G153: 0.1143638 | H153: 0.00026912 | I153: 0 | J153: 0 | K153: 0 | L153: 0.11463292 | N153: Reliability | O153: Y | P153: 1.18191 | Q153: Actual cost 1.05, including WIP to 30/6/2008 of 0.94. Savings on construction management costs.
A154: 10510 | B154: Bungama Substation Redev Stg2 | C154: 2007 | D154: Replacement | G154: 0.13323528 | H154: -0.01994179 | I154: 0 | J154: 0 | K154: 0 | L154: 0.11329349 | N154: Poor Asset Condition | O154: Y | P154: 30.03507105
A155: 11739 | B155: Para to Templers West DC 275kV Line Easement | C155: 2018 | D155: Easements | G155: 0 | H155: 0 | I155: 0 | J155: 0 | K155: 0.10433236 | L155: 0.10433236 | N155: Strategic Land Purchase | O155: N
A156: 10938 | B156: Inventory Replenish 10MVA 132/33/11kV TF | C156: 2009 | D156: Inventory/Spares | G156: 0.10303895 | H156: 0 | I156: 0 | J156: 0 | K156: 0 | L156: 0.10303895 | N156: ETC spare restoration requirement | O156: Y | P156: 0.785
A157: 11656 | B157: Vegetation Management Analysis Tools | C157: 2016 | D157: Augmentation | G157: 0 | H157: 0 | I157: 0 | J157: 0 | K157: 0.10262814 | L157: 0.10262814 | N157: Security / Compliance | O157: N
A158: 11048 | B158: Northfield & Mannum Fault Level Reductio | C158: 2012 | D158: Augmentation | G158: 0 | H158: 0.01161051 | I158: 0.00646802 | J158: 0.03384549 | K158: 0.04715718 | L158: 0.0990812 | N158: DNSP Connection Request | O158: Y | P158: 0.05
A159: 11620 | B159: Dynamic Constraint Systems | C159: 2014 | D159: Replacement | G159: 0 | H159: 0 | I159: 0 | J159: 0 | K159: 0.08385906 | L159: 0.08385906 | N159: Business Efficiency Improvements | O159: N
A160: 11252 | B160: Generator and Load Test Equipment | C160: 2012 | D160: Security/Compliance | G160: 0 | H160: 0 | I160: 0 | J160: 0 | K160: 0.08318999 | L160: 0.08318999 | N160: Security / Compliance | O160: N
A161: 11384 | B161: Security _ Video System Consolidation and Development | C161: 2014 | D161: Security/Compliance | G161: 0 | H161: 0 | I161: 0 | J161: 0 | K161: 0.08068873 | L161: 0.08068873 | N161: Security / Compliance | O161: N
A162: 10631 | B162: Dorrien Templers Line Easement | C162: 2008 | D162: Easements | G162: 0.07913101 | H162: 0 | I162: 0 | J162: 0 | K162: 0 | L162: 0.07913101 | N162: Acquisition of easements and approvals | O162: Y | P162: 2.679
A163: 11575 | B163: OPSWAN Replacement 2013-2015 | C163: 2016 | D163: Replacement | G163: 0 | H163: 0 | I163: 0 | J163: 0 | K163: 0.07508721 | L163: 0.07508721 | N163: New Requirements | O163: N
A164: 10944 | B164: Network Engineering Standard Drawings | C164: 2010 | D164: Security/Compliance | G164: 0.03437463 | H164: 0.04019245 | I164: 0 | J164: 0 | K164: 0 | L164: 0.07456708 | N164: New Requirements | O164: Y | P164: 0.076
A165: 10509 | B165: Whyalla Terminal Rebuild (Reduced Brownfield at Whyalla + Cultana diameter) and 2x120MV.A Transformer Capacity Increase | C165: 2013 | D165: Connection | G165: 0 | H165: 0.0736759005 | I165: 0 | J165: 0 | K165: 0 | L165: 0.0736759005 | N165: ETC compliance | O165: N
A166: 11210 | B166: East Terrace Second Transformer | C166: 2016 | D166: Connection | G166: 0 | H166: 0 | I166: 0 | J166: 0.07252144 | K166: 0 | L166: 0.07252144 | N166: Reliability | O166: N
A167: 11809 | B167: Common Information-Connectivity Model | C167: 2016 | D167: Augmentation | G167: 0 | H167: 0 | I167: 0 | J167: 0 | K167: 0.06648308 | L167: 0.06648308 | N167: Business Efficiency Improvements | O167: N
A168: 10259 | B168: Riverland 275kV Reinforcement | C168: 2024 | D168: Augmentation | G168: 0 | H168: 0 | I168: 0 | J168: 0.05861253 | K168: 0.00459872 | L168: 0.06321125 | N168: Overload of the 132kv system | O168: N
A169: 10926 | B169: Telecom Network Management Process Improvements | C169: 2010 | D169: Augmentation | G169: 0.04984277 | H169: 0.00806389 | I169: 0 | J169: 0 | K169: 0 | L169: 0.05790666 | N169: Security | O169: Y | P169: 0.05
A170: 10556 | B170: SE SVC Systems Replacement | C170: 2008 | D170: Replacement | G170: 0.05067988 | H170: 0 | I170: 0 | J170: 0 | K170: 0 | L170: 0.05067988 | N170: Condition/Obsolescence | O170: Y | P170: 9.8
A171: 10614 | B171: Kilburn & Mobilong Neutral Earth Resistors | C171: 2008 | D171: Augmentation | G171: 0.04949799 | H171: 0 | I171: 0 | J171: 0 | K171: 0 | L171: 0.04949799 | N171: Reliability Augmentation | O171: Y | P171: 0.298921
A172: 11646 | B172: Eyre Peninsula Voltage Control Scheme | D172: Security/Compliance | G172: 0 | H172: 0 | I172: 0 | J172: 0 | K172: 0.04792856 | L172: 0.04792856
A173: 11549 | B173: Switching System Writer Application | C173: 2014 | D173: Replacement | G173: 0 | H173: 0 | I173: 0 | J173: 0 | K173: 0.04612557 | L173: 0.04612557 | N173: Business Efficiency Improvements | O173: N
A174: 10337 | B174: Tungkillo Substation - Stage 1 | C174: 2008 | D174: Augmentation | G174: 0.00130517 | H174: 0.039772 | I174: 0 | J174: 0 | K174: 0 | L174: 0.04107717 | N174: Reliability Augmentation | O174: Y | P174: 30.3
A175: 85035 | B175: SE - Snuggery New 132kV Line (Co | C175: 2008 | D175: Augmentation | G175: 0.02859435 | H175: 0 | I175: 0 | J175: 0 | K175: 0 | L175: 0.02859435 | N175: Reliability Upgrade | O175: Y | P175: 32.326345
A176: 11553 | B176: South East Substation to Heywood Telecoms Bearer | C176: 2015 | D176: Replacement | G176: 0 | H176: 0 | I176: 0 | J176: 0.02229377 | K176: 0.00220645 | L176: 0.02450022 | N176: Security / Compliance | O176: N
A177: 10503 | B177: Waterloo Substation Rebuild and 2x60MV.A Transformer Capacity Increase | C177: 2014 | D177: Connection | G177: 0.0180985308 | H177: 0 | I177: 0 | J177: 0 | K177: 0 | L177: 0.0180985308 | N177: ETC compliance | O177: N
A178: 10626 | B178: TIPS 66kV Cable Replacement | C178: 2007 | D178: Replacement | G178: 0.0177461 | H178: 0 | I178: 0 | J178: 0 | K178: 0 | L178: 0.0177461 | N178: Poor Asset Condition | O178: Y | P178: 3.02
A179: 11305 | B179: Keith Substation Replacement & Trans Upg | C179: 2020 | D179: Replacement | G179: 0 | H179: 0.01329644 | I179: 0 | J179: 0 | K179: 0 | L179: 0.01329644 | N179: Reliabliity | O179: N
A180: 10313 | B180: Fleurieu Peninsula Reinforcement | C180: 2021 | D180: Connection | G180: 0 | H180: 0 | I180: 0 | J180: 0.00921828 | K180: 0.0010562 | L180: 0.01027448 | N180: Load forecast | O180: N
A181: 10284 | B181: Barossa Network Reinforcement | C181: 2007 | D181: Augmentation | G181: 0.01019627 | H181: 0 | I181: 0 | J181: 0 | K181: 0 | L181: 0.01019627 | N181: Reliability Augmentation | O181: Y | P181: 9.91999979
A182: 11040 | B182: Plant Forward Orders | D182: Replacement | G182: 0.26 | H182: 12.4537618 | I182: -12.7059631 | J182: 0.00157358 | K182: 0 | L182: 0.00937228 | N182: Expediting order and delivery of plant for major projects | O182: N
A183: 10618 | B183: Baroota Substation Upgrade | C183: 2018 | D183: Augmentation | G183: 0 | H183: 0 | I183: 0 | J183: 0 | K183: 0.00836366 | L183: 0.00836366 | N183: Replacement of aged assets | O183: N
A184: 11647 | B184: Upper North Voltage Control Scheme | D184: Security/Compliance | G184: 0 | H184: 0 | I184: 0 | J184: 0 | K184: 0.00734892 | L184: 0.00734892
A185: 11828 | B185: Substation Perimeter Video Monitoring and Security 2013-2018 | C185: 2018 | D185: Security/Compliance | G185: 0 | H185: 0 | I185: 0 | J185: 0 | K185: 0.00359812 | L185: 0.00359812 | N185: Security / Compliance | O185: N
A186: 10339 | B186: Munno Para Reactive Power Support | C186: 2026 | D186: Augmentation | G186: 0 | H186: 0 | I186: 0 | J186: 0 | K186: 0 | L186: 0 | N186: Security / Compliance | O186: N
A187: 10619 | B187: Kincraig Substation Replacement and Transformer Upgrade | C187: 2018 | D187: Replacement | G187: 0 | H187: 0 | I187: 0 | J187: 0 | K187: 0 | L187: 0 | N187: Replacement | O187: N
A188: 10947 | B188: Kanmantoo Bulk Oil CB Replacement | C188: 2009 | D188: Replacement | G188: 0.10826397 | H188: -0.10826397 | I188: 0 | J188: 0 | K188: 0 | L188: 0 | N188: Condition | O188: Y | P188: 0.279
A189: 11007 | B189: Bulk Oil CB Replacement | C189: 2010 | D189: Replacement | G189: 0.02597278 | H189: -0.02597278 | I189: 0 | J189: 0 | K189: 0 | L189: 0 | N189: Obsolescence | O189: N
A190: 11043 | B190: Morgan Whyalla no.4 - Fault Limiting Rea | C190: 2012 | D190: Security/Compliance | G190: 0.01232704 | H190: 0.00925209 | I190: 0 | J190: -0.02157913 | K190: 0 | L190: 0 | N190: Reliability | O190: N
A191: 11313 | B191: Mannum-Adelaide Pump Station 1-3 and Millbrook Substations Replacement | C191: 2018 | D191: Replacement | G191: 0 | H191: 0 | I191: 0 | J191: 0.24597313 | K191: -0.24597313 | L191: 0 | N191: Replacement/Condition | O191: N
A192: 11357 | B192: Bushing Replacements | C192: 2018 | D192: Security/Compliance | G192: 0.02763804 | H192: 0.01236196 | I192: -0.04 | J192: 0 | K192: 0 | L192: 0 | N192: Condition/Obsolescence | O192: N
A193: 11009 | B193: Substation Perimeter Electronic Security | C193: 2008 | D193: Security/Compliance | G193: 0 | H193: 0 | I193: -0.00612059 | J193: 0 | K193: 0 | L193: -0.00612059 | N193: Security | O193: N
A194: 10508 | B194: Hummocks Substation Aged Asset Replacement and 2x25MV.A Transformer Capacity Increase | C194: 2020 | D194: Connection | G194: 0.000760942 | H194: -0.0263645844 | I194: 0 | J194: 0 | K194: 0 | L194: -0.0256036424 | N194: ETC compliance | O194: N
A195: 10469 | B195: SCC to PARA & BUCC Radio Network | C195: 2007 | D195: Augmentation | G195: -0.02572622 | H195: 0 | I195: 0 | J195: 0 | K195: 0 | L195: -0.02572622 | N195: Reliability Augmentation | O195: Y | P195: 1.551308
A196: 10662 | B196: 2GHz Radio Frequency Changes | C196: 2008 | D196: Security/Compliance | G196: -0.037 | H196: 0.00651262 | I196: 0 | J196: 0 | K196: 0 | L196: -0.03048738 | N196: Closeout of previous period project | O196: Y | P196: 1.557
A197: 10661 | B197: Barossa Telecoms Network Reinforcement | C197: 2007 | D197: Augmentation | G197: -0.03228298 | H197: 0 | I197: 0 | J197: 0 | K197: 0 | L197: -0.03228298 | N197: Reliability Augmentation | O197: Y | P197: 0.82
A198: 10508 | B198: Hummocks Substation Aged Asset Replacement and 2x25MV.A Transformer Capacity Increase | C198: 2020 | D198: Replacement | G198: 0.001956708 | H198: -0.0677946456 | I198: 0 | J198: 0 | K198: 0 | L198: -0.0658379376 | N198: ETC compliance | O198: N
A199: 10803 | B199: Davenport Sub-Cultana Line Exit | C199: 2009 | D199: Augmentation | G199: 0.03828473 | H199: 0 | I199: -0.17928493 | J199: 0 | K199: 0 | L199: -0.1410002 | N199: Reliability | O199: N
A200: 10903 | B200: Eastern Hills Network Limitations | D200: Augmentation | G200: -0.58844529 | H200: -0.009069 | I200: 0.007069 | J200: 0 | K200: 0 | L200: -0.59044529 | N200: ETC compliance | O200: N
E206: Subtotal | G206: 90.14757103 | H206: 108.9415223 | I206: 224.2443624 | J206: 166.4400384 | K206: 209.8312655 | L206: 799.6047597

Sheet Hist Capex - Non-Network
A1: 3.4 HISTORIC CAPEX - Non-Network - by project
F3: Home | I3: Link to Historic Capex Instructions - Table 6.2 | L3: Link to Historic Capex Commentary - Table 5.2
A7: $M nominal
F8: Yearly expenditure by project (inclusive of FDC)
A10: Project ID | B10: Project Description | C10: Commissioning Date | D10: Category^ | F10: Any Part Year | G10: Year 1 | H10: Year 2 | I10: Year 3 | J10: Year 4 | K10: Year 5 | L10: TOTAL | N10: REASON FOR PROJECT | O10: Business Case (Y/N) | P10: Business Case Cost Estimate | Q10: Reason for Variance from Cost Estimate / Expected Commissioning Date
A12: 11221 | B12: Business Information and Performance | C12: 2013 | D12: Information Technology | G12: 0.14410277 | H12: 1.18841716 | I12: 1.07085281 | J12: 0.47572805 | K12: 0.12403653 | L12: 3.00313732 | N12: New Requirements | O12: Y | P12: 2.79
A13: 11219 | B13: RDBMS (Oracle/ SQL) | C13: 2012 | D13: Information Technology | G13: 0 | H13: 4.57e-06 | I13: 1.34944676 | J13: 1.10002767 | K13: 0.06420861 | L13: 2.51368761 | N13: New Requirements | O13: Y | P13: 1.37
A14: 11022 | B14: Enterprise Systems (SAP) - Upgrades and Support Packs | C14: 2009 | D14: Information Technology | G14: 1.98143529 | H14: 0.20127355 | I14: 0 | J14: 0 | K14: 0 | L14: 2.18270884 | N14: New Requirements | O14: Y | P14: 2.212
A15: 11226 | B15: Office Systems / SOE | C15: 2012 | D15: Information Technology | G15: 0.11795792 | H15: 0.60339607 | I15: 1.23728378 | J15: 0.13551528 | K15: 0 | L15: 2.09415305 | N15: New Requirements | O15: Y | P15: 2.47
A16: 11223 | B16: Enterprise Systems (SAP) - Process/Reporting Improvements | C16: 2011 | D16: Information Technology | G16: 0.09860406 | H16: 1.22663157 | I16: 0.65394818 | J16: -0.00358994 | K16: 0 | L16: 1.97559387 | N16: Obsolescence | O16: Y | P16: 1.81
A17: 10932 | B17: IT Storage Implementation | C17: 2010 | D17: Information Technology | G17: 1.72582137 | H17: 0.13230565 | I17: 0 | J17: 0 | K17: 0 | L17: 1.85812702 | N17: Obsolescence | O17: Y | P17: 1.916
A18: 11346 | B18: West Wing (Plus other Pirie Street Requirements) | C18: 2010 | D18: Facilities | G18: 0.07710237 | H18: 1.43123357 | I18: 0.2528946 | J18: 0.0174591 | K18: 0 | L18: 1.77868964 | N18: New Requirements | O18: N
A19: 11220 | B19: Applications Integration | C19: 2013 | D19: Information Technology | G19: 0 | H19: 0.00703944 | I19: 0.01089038 | J19: 0.22336744 | K19: 1.44446987 | L19: 1.68576713 | N19: Obsolescence | O19: N
A20: 11270 | B20: ICT Hardware 2010-2012 | C20: 2012 | D20: Information Technology | G20: 0 | H20: 0 | I20: 0.68447642 | J20: 0.84175733 | K20: 0.05659318 | L20: 1.58282693 | N20: General IT hardware upgrades | O20: Y | P20: 1.59
A21: 11471 | B21: ICT Software 2012-2014 | C21: 2014 | D21: Information Technology | G21: 0 | H21: 0 | I21: 0 | J21: 0 | K21: 1.52582201 | L21: 1.52582201 | N21: General IT Software Upgrades | O21: N
A22: 10928 | B22: Project Server - Upgrades and Support Packs 2009 | C22: 2012 | D22: Information Technology | G22: 0 | H22: 0.20055867 | I22: 0.64568415 | J22: 0.61284269 | K22: 0.00283031 | L22: 1.46191582 | N22: Obsolescence | O22: Y | P22: 0.85 | Q22: Rescheduled based on dependencies and outcomes of other IT projects
A23: 11134 | B23: Integrated Budgeting & Forecasting | C23: 2013 | D23: Information Technology | G23: 0 | H23: 0 | I23: 0.16457543 | J23: 0.24050819 | K23: 1.00520594 | L23: 1.41028956 | N23: Business Efficiency Improvements | O23: N
A24: 11250 | B24: Short Term Accommodation Fit Out 2011-2012 | C24: 2013 | D24: Facilities | G24: 0 | H24: 0 | I24: 0 | J24: 0.54378774 | K24: 0.84562137 | L24: 1.38940911 | N24: New Requirements | O24: N
A25: 11385 | B25: SAP Functional Upgrade Stream 3 | C25: 2013 | D25: Information Technology | G25: 0 | H25: 0 | I25: 0 | J25: 0.23897792 | K25: 1.08021568 | L25: 1.3191936 | N25: Software Upgrades | O25: N
A26: 11070 | B26: ICT Hardware 2008/10 | C26: 2010 | D26: Information Technology | G26: 1.0682417 | H26: 0.22970421 | I26: 0 | J26: 0 | K26: 0 | L26: 1.29794591 | N26: Obsolescence | O26: Y | P26: 1.223
A27: 10917 | B27: Structured Substation Training Program and Facility | C27: 2008 | D27: Facilities | G27: 0.09111515 | H27: 0.96651037 | I27: 0.10037019 | J27: 0.09932665 | K27: 0.01828904 | L27: 1.2756114 | N27: New Requirements | O27: Y | P27: 1.51
A28: 11071 | B28: ICT Software 2008/10 | C28: 2010 | D28: Information Technology | G28: 0.38895726 | H28: 0.71364319 | I28: -0.07805 | J28: 0 | K28: 0 | L28: 1.02455045 | N28: Obsolescence | O28: Y | P28: 1.338 | Q28: Scope transferred to other projects (annual projects)
A29: 11386 | B29: Business Process Improvement - Stage 2 | C29: 2014 | D29: Information Technology | G29: 0 | H29: 0 | I29: 0 | J29: 0.43794342 | K29: 0.52829267 | L29: 0.96623609 | N29: Business Efficiency Improvements | O29: Y | P29: 0.87
A30: 11117 | B30: CAPS Replacement | C30: 2012 | D30: Information Technology | G30: 0 | H30: 0.162596 | I30: 0.19864307 | J30: 0.52310892 | K30: 0.02809009 | L30: 0.91243808 | N30: Reliability | O30: Y | P30: 0.91
A31: 11378 | B31: Energy Management System-Functional Enhancements 2012-13 | C31: 2013 | D31: Information Technology | G31: 0 | H31: 0 | I31: 0 | J31: 0.23109278 | K31: 0.57890714 | L31: 0.80999992 | N31: New Requirements | O31: N
A32: 11470 | B32: ICT Hardware 2012-2014 | C32: 2015 | D32: Information Technology | G32: 0 | H32: 0 | I32: 0 | J32: 0 | K32: 0.78917049 | L32: 0.78917049 | N32: General IT Hardware Upgrades | O32: N
A33: 11119 | B33: Project Server - Portfolio Management | C33: 2013 | D33: Information Technology | G33: 0 | H33: 0 | I33: 0.08008538 | J33: 0.26018152 | K33: 0.42722477 | L33: 0.76749167 | N33: Obsolescence | O33: N
A34: 11541 | B34: ICT Business Continuity Planning and Disaster Recovery | C34: 2013 | D34: Information Technology | G34: 0 | H34: 0 | I34: 0 | J34: 0.10523463 | K34: 0.66076537 | L34: 0.766 | N34: Software Upgrades | O34: N
A35: 10801 | B35: Geospatial Systems | C35: 2013 | D35: Information Technology | G35: 0 | H35: 0.06597142 | I35: 0 | J35: 0.22473549 | K35: 0.40206426 | L35: 0.69277117 | N35: New Requirements | O35: N
A36: 11539 | B36: Records Management | C36: 2014 | D36: Information Technology | G36: 0 | H36: 0 | I36: 0 | J36: 0.02696184 | K36: 0.63832716 | L36: 0.665289 | N36: Business Efficiency Improvements | O36: N
A37: 11234 | B37: Drawing Management Systems Technical Upgrade 2012-2014 | C37: 2013 | D37: Information Technology | G37: 0 | H37: 0 | I37: 0 | J37: 0.01268287 | K37: 0.62993854 | L37: 0.64262141 | N37: New Requirements | O37: N
A38: 11338 | B38: Estimating System Functional Upgrade | C38: 2013 | D38: Information Technology | G38: 0 | H38: 0 | I38: 0 | J38: 0.1268892 | K38: 0.48994477 | L38: 0.61683397 | N38: Software Upgrades | O38: N
A39: 11025 | B39: Computer Room Upgrade | C39: 2011 | D39: Facilities | G39: 0.15838142 | H39: 0.29366765 | I39: 0.1149614 | J39: 0 | K39: 0 | L39: 0.56701047 | N39: Obsolescence | O39: Y | P39: 0.57
A40: 11387 | B40: ICT Service Management 2011-13 | C40: 2013 | D40: Information Technology | G40: 0 | H40: 0 | I40: 0 | J40: 0.30231259 | K40: 0.2046874 | L40: 0.50699999 | N40: General IT Software Upgrades | O40: Y | P40: 0.5
A41: 11039 | B41: Network Engineering QA Framework | C41: 2012 | D41: Information Technology | G41: 0 | H41: 0 | I41: 0.15657156 | J41: 0.10841373 | K41: 0.21484326 | L41: 0.47982855 | N41: New Requirements | O41: N
A42: 11225 | B42: IT Network Equipment | C42: 2011 | D42: Information Technology | G42: 0 | H42: 0.24704292 | I42: 0.23179483 | J42: 0 | K42: 0 | L42: 0.47883775 | N42: Obsolescence | O42: Y | P42: 0.48
A43: 11473 | B43: IT OCS Software 2012-2014 | C43: 2015 | D43: Information Technology | G43: 0 | H43: 0 | I43: 0 | J43: 0.0014643 | K43: 0.44321696 | L43: 0.44468126 | N43: General IT Software Upgrades | O43: N
A44: 10814 | B44: Operator Training Simulator | C44: 2012 | D44: Information Technology | G44: 0.0058971 | H44: 0.04593924 | I44: 0.28727049 | J44: 0.1019627 | K44: 0 | L44: 0.44106953 | N44: New Requirements | O44: Y | P44: 0.46
A45: 11243 | B45: SAP System Improvements Stream 2 | C45: 2012 | D45: Information Technology | G45: 0 | H45: 0 | I45: 0.19529352 | J45: 0.20967316 | K45: 0 | L45: 0.40496668 | N45: Software Upgrades | O45: Y | P45: 0.46 | Q45: Project savings achieved
A46: 11398 | B46: People Management System | C46: 2013 | D46: Information Technology | G46: 0 | H46: 0 | I46: 0 | J46: 0 | K46: 0.39408846 | L46: 0.39408846 | N46: New Software | O46: N
A47: 11706 | B47: Archiving Solutions | C47: 2015 | D47: Information Technology | G47: 0 | H47: 0 | I47: 0 | J47: 0 | K47: 0.34120532 | L47: 0.34120532 | N47: Business Efficiency Improvements | O47: N
A48: 11118 | B48: IT Systems Management | C48: 2011 | D48: Information Technology | G48: 0 | H48: 0.31213493 | I48: 0.01483013 | J48: 0 | K48: 0 | L48: 0.32696506 | N48: Reliability | O48: Y | P48: 0.35
A49: 11395 | B49: Vehicle Purchases 2012-13 | C49: 2013 | D49: Facilities | G49: 0 | H49: 0 | I49: 0 | J49: 0 | K49: 0.313 | L49: 0.313 | N49: New Requirements | O49: N
A50: 11120 | B50: Drawing Management System Upgrade | C50: 2009 | D50: Information Technology | G50: 0.3103059 | H50: 0.00110391 | I50: 0 | J50: 0 | K50: 0 | L50: 0.31140981 | N50: Obsolescence | O50: Y | P50: 0.334
A51: 11030 | B51: Telecommunications Configuration System | C51: 2010 | D51: Information Technology | G51: 0.05033671 | H51: 0.26086615 | I51: 9.386e-05 | J51: 0 | K51: 0 | L51: 0.31129672 | N51: Reliability | O51: Y | P51: 0.312
A52: 11472 | B52: ICT Security 2012-2014 | C52: 2015 | D52: Information Technology | G52: 0 | H52: 0 | I52: 0 | J52: 0 | K52: 0.29059722 | L52: 0.29059722 | N52: General IT Software Upgrades | O52: N
A53: 11230 | B53: Airconditioning 300 Pirie St West | C53: 2012 | D53: Facilities | G53: 0 | H53: 0 | I53: 0 | J53: 0.27694857 | K53: 0.00114096 | L53: 0.27808953 | N53: Building Upgrades | O53: Y | P53: 0.37
A54: 11345 | B54: Furniture and Building Upgrades 2012-13 | C54: 2013 | D54: Facilities | G54: 0 | H54: 0 | I54: 0 | J54: 0 | K54: 0.26800001 | L54: 0.26800001 | N54: Building Upgrades | O54: N
A55: 10981 | B55: Furn & General Building Upgrades - 08/09 | C55: 2009 | D55: Facilities | G55: 0.24019567 | H55: 0 | I55: 0 | J55: 0 | K55: 0 | L55: 0.24019567 | N55: Obsolescence | O55: Y | P55: 0.254517
A56: 11254 | B56: Bentley Substation (Information Modellin | D56: Information Technology | G56: 0 | H56: 0 | I56: 0 | J56: 0 | K56: 0.22744656 | L56: 0.22744656
A57: 11124 | B57: Outage Management 2009-2011 | D57: Facilities | G57: 0 | H57: 0 | I57: 0 | J57: 0 | K57: 0.22582688 | L57: 0.22582688
A58: 11136 | B58: Business Plan Model | C58: 2012 | D58: Information Technology | G58: 0 | H58: 0 | I58: 0.17468682 | J58: 0.04668955 | K58: 0 | L58: 0.22137637 | N58: New Software | O58: Y | P58: 0.23
A59: 11348 | B59: [CLSD] ICT Security 2010-2012 | D59: Information Technology | G59: 0 | H59: 0 | I59: 0 | J59: 0 | K59: 0.22061462 | L59: 0.22061462
A60: 11123 | B60: Knowledge Management | C60: 2013 | D60: Information Technology | G60: 0 | H60: 0.01815574 | I60: 0 | J60: 0 | K60: 0.2017208 | L60: 0.21987654 | N60: New Requirements | O60: N
A61: 11366 | B61: Carpet - 300 Pirie 2012-13 | C61: 2013 | D61: Facilities | G61: 0 | H61: 0 | I61: 0 | J61: 0 | K61: 0.215 | L61: 0.215 | N61: Building Upgrades | O61: N
A62: 11435 | B62: Outage Optimisation Improvements | C62: 2014 | D62: Information Technology | G62: 0 | H62: 0 | I62: 0 | J62: 0.01905056 | K62: 0.18721151 | L62: 0.20626207 | N62: Software Upgrades | O62: N
A63: 11434 | B63: Asset Condition Monitoring Systems | C63: 2015 | D63: Information Technology | G63: 0 | H63: 0 | I63: 0 | J63: 0.00277978 | K63: 0.20279828 | L63: 0.20557806 | N63: New Software | O63: N
A64: 11281 | B64: Furniture and General Building Upgrades 2011-2012 | C64: 2012 | D64: Facilities | G64: 0 | H64: 0 | I64: 0 | J64: 0.19921171 | K64: -0.00050968 | L64: 0.19870203 | N64: Building Upgrades | O64: Y | P64: 0.16
A65: 10705 | B65: SAP BW Pilot to Production | C65: 2009 | D65: Information Technology | G65: 0.1727228 | H65: -0.0008 | I65: 0 | J65: 0 | K65: 0 | L65: 0.1719228 | N65: New Requirements | O65: Y | P65: 0.46126 | Q65: 0
A66: 10927 | B66: IT Services & Asset Management | C66: 2009 | D66: Information Technology | G66: 0.16436829 | H66: 0 | I66: 0 | J66: 0 | K66: 0 | L66: 0.16436829 | N66: New Requirements | O66: Y | P66: 0.165
A67: 11138 | B67: Opex Model for 2013-2018 | C67: 2012 | D67: Information Technology | G67: 0 | H67: 0 | I67: 0.04869838 | J67: 0.1068988 | K67: 0.00818237 | L67: 0.16377955 | N67: New Software | O67: Y | P67: 0.46
A68: 11217 | B68: Asset Data Capture | D68: Information Technology | G68: 0 | H68: 0 | I68: 0 | J68: 0 | K68: 0.16330237 | L68: 0.16330237
A69: 11137 | B69: Business Model Develpmnt Proj | C69: 2011 | D69: Information Technology | G69: 0 | H69: 0 | I69: 0.15468291 | J69: 0 | K69: 0 | L69: 0.15468291 | N69: New Software | O69: Y | P69: 0.19 | Q69: Project savings achieved
A70: 11181 | B70: Office Refurb. &Furn. Upgrades 10/11 | C70: 2011 | D70: Facilities | G70: 0 | H70: 0 | I70: 0.15289898 | J70: 0 | K70: 0 | L70: 0.15289898 | N70: New Requirements | O70: Y | P70: 0.16
A71: 10818 | B71: SAP ETI Establishment | C71: 2010 | D71: Information Technology | G71: 0 | H71: 0.14912978 | I71: -0.00397683 | J71: 0 | K71: 0 | L71: 0.14515295 | N71: New Requirements | O71: Y | P71: 0.15
A72: 11081 | B72: Furn. & Gen. Bldg Upgrades - 09/10 | C72: 2010 | D72: Facilities | G72: 0 | H72: 0.13819142 | I72: -0.003858 | J72: 0 | K72: 0 | L72: 0.13433342 | N72: New Requirements | O72: Y | P72: 0.153
A73: 11815 | B73: Carpet - Rymill 2012-13 | C73: 2013 | D73: Facilities | G73: 0 | H73: 0 | I73: 0 | J73: 0 | K73: 0.11200001 | L73: 0.11200001 | N73: Building Upgrades | O73: N
A74: 11121 | B74: Rymill Pk Replace ACU2 (open area) | C74: 2011 | D74: Facilities | G74: 0 | H74: 0 | I74: 0.10019431 | J74: 0 | K74: 0 | L74: 0.10019431 | N74: Obsolescence | O74: Y | P74: 0.1
A75: 10829 | B75: Office Accom. Fitout - Richmond Rd | C75: 2009 | D75: Facilities | G75: 0.09793945 | H75: 0 | I75: 0 | J75: 0 | K75: 0 | L75: 0.09793945 | N75: New Requirements | O75: Y | P75: 0.843
A76: 11521 | B76: Database Management Systems Consolidation 2013-2015 | C76: 2015 | D76: Information Technology | G76: 0 | H76: 0 | I76: 0 | J76: 0 | K76: 0.09605546 | L76: 0.09605546 | N76: General IT Software Upgrades | O76: N
A77: 11392 | B77: Mechanical 300 Pirie Street 2012-13 | C77: 2013 | D77: Facilities | G77: 0 | H77: 0 | I77: 0 | J77: 0 | K77: 0.087 | L77: 0.087 | N77: Building Upgrades | O77: N
A78: 10929 | B78: Rymill Pk Replace ACU3 (boardroom) & ACU4 (NW gnd fl office) | C78: 2010 | D78: Facilities | G78: 0.08259267 | H78: 0.00076227 | I78: 0 | J78: 0 | K78: 0 | L78: 0.08335494 | N78: New Requirements | O78: Y | P78: 0.097 | Q78: Competitive Contract Pricing
A79: 11364 | B79: Facilities Security 2012-2013 | C79: 2013 | D79: Facilities | G79: 0 | H79: 0 | I79: 0 | J79: 0 | K79: 0.07899999 | L79: 0.07899999 | N79: Building Upgrades | O79: N
A80: 11251 | B80: Pool Car Replacement | D80: Facilities | G80: 0 | H80: 0 | I80: 0 | J80: 0 | K80: 0.07212235 | L80: 0.07212235
A81: 11391 | B81: Roof Access Safety | C81: 2013 | D81: Facilities | G81: 0 | H81: 0 | I81: 0 | J81: 0 | K81: 0.06623511 | L81: 0.06623511 | N81: Building Upgrades | O81: N
A82: 10933 | B82: New Roofing | C82: 2010 | D82: Facilities | G82: 0.06069523 | H82: 0.00029088 | I82: 0 | J82: 0 | K82: 0 | L82: 0.06098611 | N82: New Requirements | O82: Y | P82: 0.068 | Q82: Competitive Contract Pricing
A83: 10718 | B83: Project Server Enhancements | C83: 2009 | D83: Information Technology | G83: 0.05267142 | H83: 0.00093594 | I83: 0 | J83: 0 | K83: 0 | L83: 0.05360736 | N83: New Requirements | O83: Y | P83: 0.379
A84: 10949 | B84: Critical Clearing Time Tool Development | C84: 2010 | D84: Information Technology | G84: 0.00962193 | H84: 0.04346519 | I84: 0 | J84: 0 | K84: 0 | L84: 0.05308712 | N84: New Requirements | O84: Y | P84: 0.06
A85: 11399 | B85: Environment Health and Safety Management System | C85: 2013 | D85: Information Technology | G85: 0 | H85: 0 | I85: 0 | J85: 0 | K85: 0.04764535 | L85: 0.04764535 | N85: New Software | O85: N
A86: 10948 | B86: Limit Equations Development | C86: 2009 | D86: Information Technology | G86: 0.06771558 | H86: -0.020937 | I86: 0 | J86: 0 | K86: 0 | L86: 0.04677858 | N86: New Requirements | O86: Y | P86: 0.08 | Q86: Project savings achieved
A87: 10946 | B87: Estimating System SLD Enhancement | C87: 2009 | D87: Information Technology | G87: 0.04515451 | H87: 0.00111409 | I87: 0 | J87: 0 | K87: 0 | L87: 0.0462686 | N87: New Requirements | O87: Y | P87: 0.05
A88: 11024 | B88: 276 Pirie St Replace Roof AC Unit | C88: 2009 | D88: Facilities | G88: 0.03916088 | H88: -0.00016088 | I88: 0 | J88: 0 | K88: 0 | L88: 0.039 | N88: New Requirements | O88: Y | P88: 0.039
A89: 11393 | B89: Mechanical Rymill Park 2012-13 | C89: 2013 | D89: Facilities | G89: 0 | H89: 0 | I89: 0 | J89: 0 | K89: 0.033 | L89: 0.033 | N89: Building Upgrades | O89: N
A90: 10802 | B90: Real Time Information | C90: 2008 | D90: Information Technology | G90: 0.030235 | H90: 0 | I90: 0 | J90: 0 | K90: 0 | L90: 0.030235 | N90: New requirements | O90: Y | P90: 0.2
A91: 10706 | B91: Estimating Systems & Processes | C91: 2009 | D91: Information Technology | G91: 0.02759753 | H91: 0 | I91: 0 | J91: 0 | K91: 0 | L91: 0.02759753 | N91: New Software | O91: Y | P91: 0.785
A92: 11513 | B92: Business Intelligence Functional Enhancements 2013-2015 | C92: 2015 | D92: Information Technology | G92: 0 | H92: 0 | I92: 0 | J92: 0 | K92: 0.02714285 | L92: 0.02714285 | N92: Business Efficiency Improvements | O92: N
A93: 10710 | B93: Build Upgrade Equipment Rm Level 2 | C93: 2008 | D93: Facilities | G93: 0.01763963 | H93: 0 | I93: 0 | J93: 0 | K93: 0 | L93: 0.01763963 | N93: Building Upgrade | O93: Y | P93: 0.15
A94: 10770 | B94: IT Hardware 06/08 | C94: 2008 | D94: Information Technology | G94: -0.01228486 | H94: 0 | I94: 0 | J94: 0 | K94: 0 | L94: -0.01228486 | N94: General IT hardware upgrades | O94: Y | P94: 1.161
A95: 10871 | B95: IT Software 07/08 | C95: 2008 | D95: Information Technology | G95: -0.05418669 | H95: 0 | I95: 0 | J95: 0 | K95: 0 | L95: -0.05418669 | N95: Software upgrades | O95: Y | P95: 0.25
E99: Subtotal | G99: 7.26009806 | H99: 8.62018767 | I99: 7.99524351 | J99: 7.84994424 | K99: 16.08259222 | L99: 47.45253523
D101: ^refers to Categories in table 3.1 (e.g Information Technology, Motor Vehicles etc)

Sheet Forecast Capex by Category
A1: 4.1 FORECAST CAPEX by project category | F1: Home | H1: Link to Forecast Capex Instructions - Table 6.3
A4: $ million, real (as of year 6)
A6: Project Category | F6: 2013/14 | G6: 2014/15 | H6: 2015/16 | I6: 2016/17 | J6: 2017/18 | K6: TOTAL
A9: LOAD DRIVEN | C9: Augmentation | F9: 38.03448778 | G9: 11.44439259 | H9: 10.73017977 | I9: 12.74701364 | J9: 15.33848915 | K9: =SUM(F9:J9) -> 88.29456292
C11: Connection | F11: 38.97482762 | G11: 17.39736844 | H11: 17.76023025 | I11: 10.55935753 | J11: 3.777767531 | K11: =SUM(F11:J11) -> 88.46955137
C13: Easements/Land | F13: 12.13960649 | G13: 20.52574501 | H13: 5.634659304 | I13: 1.289061537 | J13: 0 | K13: =SUM(F13:J13) -> 39.58907234
A16: NON-LOAD DRIVEN | C16: Replacement | F16: 86.03938902 | G16: 66.59897706 | H16: 71.8991022 | I16: 81.55794333 | J16: 36.64037342 | K16: =SUM(F16:J16) -> 342.735785
C18: Refurbishment | F18: 1.146898936 | G18: 6.226949216 | H18: 29.49764295 | I18: 14.68035607 | J18: 2.062303639 | K18: =SUM(F18:J18) -> 53.61415081
C20: Security/Compliance | F20: 17.83933665 | G20: 13.90158657 | H20: 14.51866502 | I20: 10.88410856 | J20: 8.1466893 | K20: =SUM(F20:J20) -> 65.29038609
C22: Other | F22: 0 | G22: 0 | H22: 0 | I22: 0 | J22: 0 | K22: =SUM(F22:J22) -> 0
C24: Inventory/Spares | F24: 5.292493637 | G24: 3.773272318 | H24: 4.747070187 | I24: 3.035550887 | J24: 2.091303314 | K24: =SUM(F24:J24) -> 18.93969034
A26: NON NETWORK
A27: BUSINESS IT | C27: Information Technology | F27: 10.85786531 | G27: 10.76372462 | H27: 11.41725634 | I27: 7.248024119 | J27: 5.475772525 | K27: =SUM(F27:J27) -> 45.76264292
A29: SUPPORT THE BUSINESS | C29: Facilities | F29: 0.7125512568 | G29: 1.452254477 | H29: 2.13414352 | I29: 0.6258455634 | J29: 0.6495788534 | K29: =SUM(F29:J29) -> 5.574373671
A33: TOTAL FORECAST CAPEX | F33: =SUM(F9:F31) -> 211.0374567 | G33: 152.0842703 | H33: 168.3389495 | I33: 142.6272612 | J33: 74.18227773 | K33: 748.2702155

Sheet Forecast Capex by Asset Class
A1: 4.2 FORECAST CAPEX by asset class | E1: Home | H1: Link to Capex Instructions - Table 6.3
A5: 4.2 FORECAST CAPEX by asset class
A9: $ million, real (as of year 6) | E9: 2013/14 | F9: 2014/15 | G9: 2015/16 | H9: 2016/17 | I9: 2017/18 | J9: TOTAL
A10: Asset class
A12: Commercial Buildings | E12: 1.996013548 | F12: 1.703125484 | G12: 2.572901466 | H12: 0.1763050167 | I12: 0.3168218624 | J12: =SUM(E12:I12) -> 6.765167376
A13: Communications - Civil | E13: 6.606667252 | F13: 3.578946937 | G13: 1.551526331 | H13: 1.688928032 | I13: 0.478116951 | J13: =SUM(E13:I13) -> 13.9041855
A14: Communications - Systems | E14: 25.34934359 | F14: 15.70230803 | G14: 13.50989661 | H14: 8.80040938 | I14: 2.119659452 | J14: 65.48161707
A15: Computers, software, and office machines | E15: 23.42530924 | F15: 23.82108376 | G15: 22.88141378 | H15: 15.87086015 | I15: 9.482366154 | J15: 95.48103309
A16: Easement | E16: 4.790388577 | F16: 12.06512188 | G16: 2.903879949 | H16: 1.131976997 | I16: 0.03298811024 | J16: 20.92435551
A17: Land | E17: 9.181414356 | F17: 10.5473356 | G17: 5.789517442 | H17: 3.056550302 | I17: 0.8068000326 | J17: 29.38161773
A18: Network Switching Centres | E18: 0 | F18: 0 | G18: 0 | H18: 0 | I18: 0 | J18: 0
A19: Office furniture, movable plant, and misc | E19: 1.263101239 | F19: 0.4619447947 | G19: 0.5864835798 | H19: 0.4495405467 | I19: 0.332756991 | J19: 3.093827152
A20: Refurbishment | E20: 0 | F20: 0 | G20: 0 | H20: 0 | I20: 0 | J20: 0
A21: Substation Primary Plant | E21: 73.00990759 | F21: 35.3811339 | G21: 40.89603461 | H21: 39.6971414 | I21: 23.90674623 | J21: 212.8909637
A22: Substation Demountable Buildings | E22: 3.565828638 | F22: 2.565203688 | G22: 2.481617486 | H22: 2.432109413 | I22: 0.6125794578 | J22: 11.65733868
A23: Substation Establishment | E23: 14.74453062 | F23: 10.72901457 | G23: 14.17781709 | H23: 16.20816129 | I23: 9.352437654 | J23: 65.21196123
A24: Substation Fences | E24: 0.471439034 | F24: 0.5579016271 | G24: 0.7789596555 | H24: 0.8825761474 | I24: 0.3625948361 | J24: 3.0534713
A25: Substation Secondary Systems - Electromechanical | E25: 0 | F25: 0 | G25: 0 | H25: 0 | I25: 0 | J25: 0
A26: Substation Secondary Systems - Electronic | E26: 32.01268927 | F26: 21.82102225 | G26: 22.74163261 | H26: 28.15599913 | I26: 20.36175166 | J26: 125.0930949
A27: Transmission lines - Overhead | E27: 13.60767264 | F27: 7.445982059 | G27: 15.56562403 | H27: 8.550250988 | I27: 2.369331585 | J27: 47.5388613
A28: Transmission lines - Underground | E28: 0.266413562 | F28: 1.552385369 | G28: 2.079714671 | H28: 3.130333574 | I28: 1.585023108 | J28: 8.613870283
A29: Working Capital | E29: 0 | F29: 0 | G29: 0 | H29: 0 | I29: 0 | J29: 0
A30: Accelerated Depreciation | E30: 0 | F30: 0 | G30: 0 | H30: 0 | I30: 0 | J30: 0
A31: Refurbishment Projects 2008-2013 | E31: 0 | F31: 0 | G31: 0 | H31: 0 | I31: 0 | J31: 0
A32: Equity Raising Cost - 2003 Opening RAB and 2003-08 capex | E32: 0 | F32: 0 | G32: 0 | H32: 0 | I32: 0 | J32: 0
A33: Equity Raising Cost 2013-2018 | E33: 0 | F33: 0 | G33: 0 | H33: 0 | I33: 0 | J33: 0
A34: Transmission Line Refit | E34: 0.7467375434 | F34: 4.151760357 | G34: 19.82193021 | H34: 12.39611886 | I34: 2.062303639 | J34: 39.17885061
A36: TOTAL CAPEX | E36: =SUM(E12:E34) -> 211.0374567 | F36: =SUM(F12:F34) -> 152.0842703 | G36: 168.3389495 | H36: 142.6272612 | I36: 74.18227773 | J36: 748.2702155

Sheet Forecast Capex - Network
A1: 4.3 FORECAST CAPEX - NETWORK - by project
F3: Home | I3: Link to Forecast Capex Instructions - Table 6.3 | L3: Link to Forecast Capex Commentary - Table 5.3
A7: $ million, real (as of year 6)
F8: Yearly expenditure by project
A10: Project ID | B10: Project Description | C10: Commissioning Date | D10: Category | F10: 2013/14 | G10: 2014/15 | H10: 2015/16 | I10: 2016/17 | J10: 2017/18 | K10: TOTAL | M10: REASON FOR PROJECT | N10: Reg Test / Business Case (Y/N) | O10: Reg Test / Business Case Cost Estimate | P10: Reason for Variance from Cost Estimate / Expected Commissioning Date
A12: 10505 | B12: 10505 Millbrook Pump Station | C12: 2018 | D12: Replacement | F12: 0.9880311058 | G12: 1.7358388 | H12: 3.438959604 | I12: 5.086193429 | J12: 1.949900189 | K12: =SUM(F12:J12) -> 13.19892313 | M12: Refer Appendix P Revenue Proposal | N12: N
A13: 10517 | B13: 10517 South East CB Upgrade | C13: 2017 | D13: Security/Compliance | F13: 0.5875814812 | G13: 1.913548809 | H13: 5.36954922 | I13: 0.9757878628 | J13: 0 | K13: 8.846467373 | M13: Reliability | N13: N
A14: 10618 | B14: 10618 Baroota Substation Upgrade | C14: 2018 | D14: Connection | F14: 0.2672269425 | G14: 1.017221192 | H14: 6.724877653 | I14: 6.887403813 | J14: 2.347886452 | K14: 17.24461605 | M14: Refer Appendix P Revenue Proposal | N14: N
A15: 10619 | B15: 10619 Kincraig Substation Replacement and Transformer Upgrade | C15: 2021 | D15: Replacement | F15: 0 | G15: 0 | H15: 0 | I15: 0.5411534083 | J15: 1.551920778 | K15: 2.093074186 | M15: Refer Appendix J | N15: N
A16: 10703 | B16: 10703 Para SVC Secondary System Replacement | C16: 2018 | D16: Replacement | F16: 0 | G16: 0.02232820545 | H16: 0.4018137898 | I16: 6.905127156 | J16: 9.086338353 | K16: 16.4156075 | M16: Refer Appendix P Revenue Proposal | N16: N
A17: 11005 | B17: 11005 Kanmantoo Substation Upgrade | C17: 2018 | D17: Replacement | F17: 0 | G17: 0.2460448103 | H17: 1.229884611 | I17: 10.57197823 | J17: 2.746945674 | K17: 14.79485333 | M17: Refer Appendix J | N17: N
A18: 11312 | B18: 11312 Torrens Island Transformer Upgrade | C18: 2019 | D18: Augmentation | F18: 0 | G18: 0.05547353877 | H18: 0.3329019593 | I18: 2.221774875 | J18: 11.5134667 | K18: 14.12361708 | M18: Refer Appendix J | N18: N
A19: 11313 | B19: 11313 Mannum Pump Station No 1 Option A - 2 No TF | C19: 2018 | D19: Replacement | F19: 1.289718716 | G19: 2.265863671 | H19: 4.489019159 | I19: 6.639223015 | J19: 2.545287039 | K19: 17.2291116 | M19: Refer Appendix P Revenue Proposal | N19: N
A20: 11314 | B20: 11314 Mannum Pump Station No 2 Option A - 2 No TF | C20: 2018 | D20: Replacement | F20: 1.168199963 | G20: 2.052371438 | H20: 4.066058707 | I20: 6.013667928 | J20: 2.305467222 | K20: 15.60576526 | M20: Refer Appendix P Revenue Proposal | N20: N
A21: 11315 | B21: 11315 Mannum Pump Station No 3 Option A - 2 No TF | C21: 2018 | D21: Replacement | F21: 0.8825932612 | G21: 1.550598578 | H21: 3.071970664 | I21: 4.543419756 | J21: 1.741816383 | K21: 11.79039864 | M21: Refer Appendix P Revenue Proposal | N21: N
A22: 11316 | B22: 11316 Morgan Whyalla Pump Station No 1 Option A - 2 No TF | C22: 2017 | D22: Replacement | F22: 2.649721788 | G22: 3.390235059 | H22: 9.79415815 | I22: 7.157744228 | J22: 0 | K22: 22.99185922 | M22: Refer Appendix P Revenue Proposal | N22: N
A23: 11317 | B23: 11317 Morgan Pump Station No 2 Option A - 2 No TF | C23: 2017 | D23: Replacement | F23: 1.846756653 | G23: 2.362866614 | H23: 6.826160696 | I23: 4.988679126 | J23: 0 | K23: 16.02446309 | M23: Refer Appendix P Revenue Proposal | N23: N
A24: 11318 | B24: 11318 Morgan Whyalla Pump Station No 3 Option A - 2 No TF | C24: 2017 | D24: Replacement | F24: 1.438785383 | G24: 1.840880302 | H24: 5.318177798 | I24: 3.886618518 | J24: 0 | K24: 12.484462 | M24: Refer Appendix P Revenue Proposal | N24: N
A25: 11319 | B25: 11319 Morgan Whyalla Pump Station No 4 Option A - 2 No TF | C25: 2017 | D25: Replacement | F25: 1.489932191 | G25: 1.906321023 | H25: 5.507231582 | I25: 4.024782372 | J25: 0 | K25: 12.92826717 | M25: Refer Appendix P Revenue Proposal | N25: N
A26: 11330 | B26: 11330 Energy Management System Upgrade 2013-2018 | C26: 2017 | D26: Replacement | F26: 0.4647122044 | G26: 0.7914628314 | H26: 0.8025800397 | I26: 0.04136939726 | J26: 0 | K26: 2.100124473 | M26: Condition/Obsolescence | N26: N
A27: 11384 | B27: 11384 Security & Video System Consolidation & Development | C27: 2014 | D27: Security/Compliance | F27: 1.361959669 | G27: 0 | H27: 0 | I27: 0 | J27: 0 | K27: 1.361959669 | M27: Security | N27: N
A28: 11389 | B28: 11389 Spare 300MVA 275/66kV Transformer | C28: 2017 | D28: Inventory/Spares | F28: 0 | G28: 1.486677669 | H28: 2.591727367 | I28: 0.934003635 | J28: 0 | K28: 5.012408671 | M28: ETC spare requirement | N28: N
A29: 11413 | B29: 11413 Control System Virtualisation | C29: 2015 | D29: Replacement | F29: 0.4743457873 | G29: 0.7182417131 | H29: 0 | I29: 0 | J29: 0 | K29: 1.1925875 | M29: Condition/Obsolescence | N29: N
A30: 11432 | B30: 11432 OPSWAN Implementation 2012-2014 | C30: 2014 | D30: Augmentation | F30: 1.16561764 | G30: 0 | H30: 0 | I30: 0 | J30: 0 | K30: 1.16561764 | M30: Reliability | N30: N
A31: 11437 | B31: 11437 BUCC Refurishment | C31: 2014 | D31: Replacement | F31: 0.2065 | G31: 0 | H31: 0 | I31: 0 | J31: 0 | K31: 0.2065 | M31: Condition/Obsolescence | N31: N
A32: 11441 | B32: 11441 Para To Davenport Line Hazard Mitigation | C32: 2017 | D32: Refurbishment | F32: 0.9337649216 | G32: 4.842392585 | H32: 22.57799305 | I32: 5.330200811 | J32: 0 | K32: 33.68435137 | M32: Refer Appendix P Revenue Proposal | N32: N
A33: 11444 | B33: 11444 Penola West to South East Line Refurbishment | C33: 2017 | D33: Refurbishment | F33: 0.05545729555 | G33: 0.2083950509 | H33: 1.793062824 | I33: 0.409457457 | J33: 0 | K33: 2.466372628 | M33: Condition | N33: N
A34: 11445 | B34: 11445 Tailem Bend to Keith No 2 Line Refurbishment | C34: 2018 | D34: Refurbishment | F34: 0 | G34: 0.09399823444 | H34: 0.2958001789 | I34: 4.088514795 | J34: 1.354613035 | K34: 5.832926244 | M34: Condition | N34: N
A35: 11446 | B35: 11446 Brinkworth to Mintaro Line Refurbishment | C35: 2018 | D35: Refurbishment | F35: 0.04581961722 | G35: 0.210060545 | H35: 2.519939467 | I35: 2.006481187 | J35: 0.1927785753 | K35: 4.975079392 | M35: Condition | N35: N
A36: 11447 | B36: 11447 Magill to Happy Valley Line Refurbishment | C36: 2017 | D36: Refurbishment | F36: 0.111857102 | G36: 0.8721028009 | H36: 2.149654503 | I36: 0.4045358903 | J36: 0 | K36: 3.538150296 | M36: Condition | N36: N
A37: 11448 | B37: 11448 Cultana to Stony Point Line Refurbishment | C37: 2018 | D37: Refurbishment | F37: 0 | G37: 0 | H37: 0.1611929301 | I37: 2.441165929 | J37: 0.5149120286 | K37: 3.117270888 | M37: Condition | N37: N
A38: 11472 | B38: 11472 ICT Security 2012-2014 | C38: 2015 | D38: Security/Compliance | F38: 0.5340558195 | G38: 0.03229773204 | H38: 0 | I38: 0 | J38: 0 | K38: 0.5663535515 | M38: Security | N38: N
A39: 11473 | B39: 11473 IT OCS Software 2012-2014 | C39: 2015 | D39: Replacement | F39: 0.4910805181 | G39: 0.1494362136 | H39: 0 | I39: 0 | J39: 0 | K39: 0.6405167317 | M39: Condition/Obsolescence | N39: N
A40: 11494 | B40: 11494 Inventory Replenishment 2013-2014 | C40: 2014 | D40: Inventory/Spares | F40: 2.256871686 | G40: 0 | H40: 0 | I40: 0 | J40: 0 | K40: 2.256871686 | M40: Reliability | N40: N
A41: 11504 | B41: 11504 Neuroodla Asset Replacement | C41: 2015 | D41: Replacement | F41: 6.060593664 | G41: 4.945016376 | H41: 0 | I41: 0 | J41: 0 | K41: 11.00561004 | M41: Refer Appendix P Revenue Proposal | N41: N
A42: 11505 | B42: 11505 Mt. Gunson Substation Replacement | C42: 2015 | D42: Replacement | F42: 6.166268414 | G42: 5.031239508 | H42: 0 | I42: 0 | J42: 0 | K42: 11.19750792 | M42: Refer Appendix P Revenue Proposal | N42: N
A43: 11549 | B43: 11549 Switching System Writer | C43: 2014 | D43: Replacement | F43: 0.2569676008 | G43: 0 | H43: 0 | I43: 0 | J43: 0 | K43: 0.2569676008 | M43: Condition/Obsolescence | N43: N
A44: 11551 | B44: 11551 Control Room Asset Replacement | C44: 2018 | D44: Replacement | F44: 0 | G44: 0 | H44: 0 | I44: 0.000364382791 | J44: 0.1817697293 | K44: 0.1821341121 | M44: Condition/Obsolescence | N44: N
A45: 11553 | B45: 11553 South East Substation to Heywood Telecommunications Bearer | C45: 2015 | D45: Replacement | F45: 4.522189339 | G45: 2.630381858 | H45: 0 | I45: 0 | J45: 0 | K45: 7.152571197 | M45: Condition/Obsolescence | N45: N
A46: 11560 | B46: 11560 Magill/East Terrace Cable Pit Construction | C46: 2018 | D46: Replacement | F46: 0 | G46: 0.1051540517 | H46: 0.3517015903 | I46: 0.9940232199 | J46: 0.08881701117 | K46: 1.539695873 | M46: Condition/Obsolescence | N46: N
A47: 11561 | B47: 11561 Magill/East Terrace Cable Instrument Replacement | C47: 2018 | D47: Replacement | F47: 0 | G47: 0.01860494517 | H47: 0.06113842487 | I47: 0.1698064429 | J47: 0.01491739743 | K47: 0.2644672104 | M47: Condition/Obsolescence | N47: N
A48: 11562 | B48: 11562 Transmission Line Inspection Data Analysis Tool | C48: 2016 | D48: Augmentation | F48: 0.2049355134 | G48: 0.484004894 | H48: 0.7137330213 | I48: 0 | J48: 0 | K48: 1.402673429 | M48: New Requirements | N48: N
A49: 11564 | B49: 11564 Magill/East Terrace Cable Joint Monitoring | C49: 2018 | D49: Security/Compliance | F49: 0 | G49: 1.033580844 | H49: 1.380281809 | I49: 1.770915356 | J49: 0.1499474868 | K49: 4.334725497 | M49: Condition | N49: N
A50: 11575 | B50: 11575 OPSWAN Replacement 2013-2015 | C50: 2016 | D50: Replacement | F50: 0.5276417897 | G50: 0.8746651825 | H50: 0.05269293266 | I50: 0 | J50: 0 | K50: 1.454999905 | M50: Condition/Obsolescence | N50: N
A51: 11594 | B51: 11594 Inventory Replenishment 2014-2015 | C51: 2015 | D51: Inventory/Spares | F51: 0 | G51: 2.286594649 | H51: 0 | I51: 0 | J51: 0 | K51: 2.286594649 | M51: Reliability | N51: N
A52: 11602 | B52: 11602 Tailem Bend Substation Upgrade | C52: 2020 | D52: Security/Compliance | F52: 0 | G52: 0 | H52: 0 | I52: 0.1126612223 | J52: 1.066526472 | K52: 1.179187694 | M52: Reliability | N52: N
A53: 11625 | B53: 11625 Mount Barker South 275-66kV Transformer | C53: 2021 | D53: Connection | F53: 0 | G53: 0 | H53: 0.2264203726 | I53: 0.4970495502 | J53: 1.429881079 | K53: 2.153351002 | M53: Refer Appendix J | N53: N
A54: 11632 | B54: 11632 OPSWAN Implementation 2014-2016 | C54: 2016 | D54: Augmentation | F54: 0.1060651705 | G54: 0.7375119507 | H54: 0.9732386232 | I54: 0 | J54: 0 | K54: 1.816815744 | M54: Reliability | N54: N
A55: 11638 | B55: 11638 Operational Logging and Fault Investigation Systems | C55: 2016 | D55: Replacement | F55: 0.1731294084 | G55: 0.4554559041 | H55: 0.5999858937 | I55: 0 | J55: 0 | K55: 1.228571206 | M55: Condition/Obsolescence | N55: N
A56: 11645 | B56: 11645 Reactive Plant Control Systems | C56: 2018 | D56: Augmentation | F56: 0.1026621793 | G56: 0.3032737641 | H56: 0.7161813961 | I56: 1.905955389 | J56: 0.8743935876 | K56: 3.902466316 | M56: Reliability | N56: N
A57: 11646 | B57: 11646 Upper North Voltage Control Scheme | C57: 2015 | D57: Security/Compliance | F57: 1.58013914 | G57: 1.509779487 | H57: 0 | I57: 0 | J57: 0 | K57: 3.089918627 | M57: Security | N57: N
A58: 11647 | B58: 11647 Eyre Peninsula Voltage Control Scheme | C58: 2015 | D58: Security/Compliance | F58: 0.2417404641 | G58: 0.2309763644 | H58: 0 | I58: 0 | J58: 0 | K58: 0.4727168284 | M58: Security | N58: N
A59: 11656 | B59: 11656 Transmission Line Vegetation Management System | C59: 2016 | D59: Augmentation | F59: 0.1788476126 | G59: 0.2424897518 | H59: 0.3088783179 | I59: 0 | J59: 0 | K59: 0.7302156823 | M59: New Requirements | N59: N
A60: 11672 | B60: 11672 ICT Security 2014-2016 | C60: 2016 | D60: Security/Compliance | F60: 0 | G60: 0.4125730364 | H60: 0.7120277286 | I60: 0 | J60: 0 | K60: 1.124600765 | M60: Security | N60: N
A61: 11673 | B61: 11673 IT OCS Software 2014-2016 | C61: 2017 | D61: Augmentation | F61: 0.06792090057 | G61: 0.4025510325 | H61: 0.6904768894 | I61: 0.1675678323 | J61: 0 | K61: 1.328516655 | M61: Reliability | N61: N
A62: 11694 | B62: 11694 Inventory Replenishment 2015-2016 | C62: 2017 | D62: Inventory/Spares | F62: 0 | G62: 0 | H62: 2.15534282 | I62: 0.1725575124 | J62: 0 | K62: 2.327900332 | M62: Reliability | N62: N
A63: 11709 | B63: 11709 Yadnarie - Port Lincoln Backbone Telecommunications Links | C63: 2015 | D63: Replacement | F63: 3.80257047 | G63: 1.402642107 | H63: 0 | I63: 0 | J63: 0 | K63: 5.205212577 | M63: Condition/Obsolescence | N63: N
A64: 11712 | B64: 11712 Engineering Systems Enhancements 2015-2017 | C64: 2016 | D64: Augmentation | F64: 0.2515853625 | G64: 0.9291240943 | H64: 0.8666254145 | I64: 0 | J64: 0 | K64: 2.047334871 | M64: New Requirements | N64: N
A65: 11730 | B65: 11730 Hummocks 132kV Capacitor Bank | C65: 2018 | D65: Augmentation | F65: 0.2218615098 | G65: 0.5044156183 | H65: 0.8502984829 | I65: 2.235232325 | J65: 0.9500676334 | K65: 4.76187557 | M65: Reliability | N65: N
A66: 11733 | B66: 11733 Asset Condition Online Monitoring Equipment Replacement | C66: 2018 | D66: Replacement | F66: 2.39473313 | G66: 2.371983165 | H66: 2.377281102 | I66: 2.354022667 | J66: 2.346838467 | K66: 11.84485853 | M66: Refer Appendix P Revenue Proposal | N66: N
A67: 11734 | B67: 11734 Network Arial Laser Survey | C67: 2018 | D67: Security/Compliance | F67: 0.9799012816 | G67: 0.9705922194 | H67: 0.9727600832 | I67: 0.9632429598 | J67: 0.9603032559 | K67: 4.8467998 | M67: New Requirements | N67: N
A68: 11775 | B68: 11775 OPSWAN Replacement 2015-2017 | C68: 2017 | D68: Replacement | F68: 0 | G68: 0.06926302869 | H68: 0.4426523008 | I68: 0.7096759903 | J68: 0 | K68: 1.22159132 | M68: Condition/Obsolescence | N68: N
A69: 11794 | B69: 11794 Inventory Replenishment 2016-2017 | C69: 2018 | D69: Inventory/Spares | F69: 0 | G69: 0 | H69: 0 | I69: 1.92898974 | J69: 0.1633320093 | K69: 2.092321749 | M69: Reliability | N69: N
A70: 11809 | B70: 11809 Common Information-Connectivity Model | C70: 2015 | D70: Augmentation | F70: 0.4576609655 | G70: 0.7739163137 | H70: 0 | I70: 0 | J70: 0 | K70: 1.231577279 | M70: Reliability | N70: N
A71: 11810 | B71: 11810 OSI PI Technology Upgrade | C71: 2016 | D71: Replacement | F71: 0.4343836184 | G71: 0.7354495734 | H71: 0.06149189605 | I71: 0 | J71: 0 | K71: 1.231325088 | M71: Condition/Obsolescence | N71: N
A72: 11811 | B72: 11811 Outage Management Upgrade | C72: 2019 | D72: Augmentation | F72: 0 | G72: 0 | H72: 0.009199575 | I72: 0.3031002307 | J72: 0.5100858078 | K72: 0.8223856135 | M72: New Requirements | N72: N
A73: 11812 | B73: 11812 Substation Automation and Alarm | C73: 2017 | D73: Augmentation | F73: 0 | G73: 0.4491693685 | H73: 0.6184945038 | I73: 0.7670159016 | J73: 0 | K73: 1.834679774 | M73: Security | N73: N
A74: 11816 | B74: 11816 One IP Substation Network | C74: 2018 | D74: Augmentation | F74: 0 | G74: 0 | H74: 3.064900781 | I74: 4.669156308 | J74: 1.417801219 | K74: 9.151858308 | M74: Reliability | N74: N
A75: 11824 | B75: 11824 Weather Stations For Dynamic Line Rating | C75: 2016 | D75: Augmentation | F75: 0.2182981569 | G75: 1.339548754 | H75: 0.4285234609 | I75: 0 | J75: 0 | K75: 1.986370372 | M75: Compliance | N75: N
A76: 11825 | B76: 11825-Radial Supply Reliability Improvement | C76: 2018 | D76: Security/Compliance | F76: 0 | G76: 0.08315822942 | H76: 0.4151239163 | I76: 1.179843363 | J76: 1.930467499 | K76: =SUM(F76:J76) -> 3.608593008 | M76: Compliance | N76: N
A77: 11826 | B77: 11826 Dalrymple North | C77: 2017 | D77: Connection | F77: 1.263261094 | G77: 8.835997408 | H77: 10.80893222 | I77: 3.174904165 | J77: 0 | K77: 24.08309489 | M77: Refer Appendix P Revenue Proposal | N77: N
A78: 11828 | B78: 11828 Substation Perimeter Video Monitoring & Security | C78: 2018 | D78: Security/Compliance | F78: 1.522788652 | G78: 1.50832216 | H78: 1.843525694 | I78: 2.154077401 | J78: 2.147503411 | K78: 9.176217317 | M78: Security | N78: N
A79: 11829 | B79: 11829 Regional Control Scheme | C79: 2018 | D79: Security/Compliance | F79: 0 | G79: 0 | H79: 1.634976727 | I79: 3.378509656 | J79: 1.47715673 | K79: 6.490643113 | M79: Reliability | N79: N
A80: 11847 | B80: 11847 NGM CT,VT and Meter Replacements | C80: 2018 | D80: Replacement | F80: 0 | G80: 0.09329200984 | H80: 1.383074623 | I80: 4.492615607 | J80: 10.39115411 | K80: 16.36013635 | M80: Refer Appendix P Revenue Proposal | N80: N
A81: 11854 | B81: 11854 Tel Asset Replacement - Metro Region | C81: 2016 | D81: Replacement | F81: 1.185466842 | G81: 1.863556692 | H81: 0.5941807104 | I81: 0 | J81: 0 | K81: 3.643204244 | M81: Condition/Obsolescence | N81: N
A82: 11855 | B82: 11855 Tel Asset Replacement - Eastern Hills Region | C82: 2017 | D82: Replacement | F82: 0.2854789916 | G82: 0.5934669577 | H82: 0.2664760314 | I82: 0.003565175939 | J82: 0 | K82: 1.148987157 | M82: Condition/Obsolescence | N82: N
A83: 11856 | B83: 11856 Tel Asset Replacement - Mid North Region | C83: 2017 | D83: Replacement | F83: 0.5770874614 | G83: 1.376548216 | H83: 1.001872536 | I83: 0.2426677333 | J83: 0 | K83: 3.198175947 | M83: Condition/Obsolescence | N83: N
A84: 11857 | B84: 11857 Tel Asset Replacement - Upper North Region | C84: 2017 | D84: Replacement | F84: 0.1643693723 | G84: 0.5752427794 | H84: 0.6445569961 | I84: 0.2157809306 | J84: 0 | K84: 1.599950078 | M84: Condition/Obsolescence | N84: N
A85: 11858 | B85: 11858 Tel Asset Replacement - Eyre Region | C85: 2017 | D85: Replacement | F85: 0.1156696734 | G85: 0.6008317903 | H85: 0.8681522036 | I85: 0.3331281292 | J85: 0 | K85: 1.917781796 | M85: Condition/Obsolescence | N85: N
A86: 11859 | B86: 11859 Tel Asset Replacement - Riverland Region | C86: 2018 | D86: Replacement | F86: 0 | G86: 0.1473198233 | H86: 0.312117563 | I86: 0.1391614969 | J86: 0.001872284073 | K86: 0.6004711674 | M86: Condition/Obsolescence | N86: N
A87: 11860 | B87: 11860 Tel Asset Replacement - South East Region | C87: 2018 | D87: Replacement | F87: 0 | G87: 0.4446235304 | H87: 1.09177798 | I87: 0.7320271677 | J87: 0.1430192539 | K87: 2.411447932 | M87: Condition/Obsolescence | N87: N
A88: 11861 | B88: 11861 Telecommunications Network Optimisation Stage 2 | C88: 2018 | D88: Augmentation | F88: 0 | G88: 0.3318573195 | H88: 0.7313905203 | I88: 0.3724441013 | J88: 0.0301764994 | K88: 1.465868441 | M88: Reliability | N88: N
A89: 11865 | B89: 11865 Network Configuration Management Upgrade | C89: 2017 | D89: Replacement | F89: 0.05316974806 | G89: 0.2112372741 | H89: 0.3426425686 | I89: 0.2098344948 | J89: 0 | K89: 0.8168840855 | M89: Condition/Obsolescence | N89: N
A90: 11872 | B90: 11872 ICT Security 2016-2018 | C90: 2018 | D90: Security/Compliance | F90: 0 | G90: 0 | H90: 0.001990514518 | I90: 0.2416852412 | J90: 0.4147844453 | K90: 0.658460201 | M90: Security | N90: N
A91: 11873 | B91: 11873 IT OCS software 2016-2018 | C91: 2019 | D91: Replacement | F91: 0 | G91: 0 | H91: 0.0829475221 | I91: 0.4928159661 | J91: 0.8418038825 | K91: 1.417567371 | M91: Condition/Obsolescence | N91: N
A92: 11890 | B92: 11890 Unit Asset replacement | C92: 2018 | D92: Replacement | F92: 8.823252614 | G92: 8.939454706 | H92: 9.118899592 | I92: 9.188715698 | J92: 0.02552673308 | K92: 36.09584934 | M92: Refer Appendix J | N92: N
A93: 11894 | B93: 11894 Inventory Replenishment 2017-2018 | C93: 2019 | D93: Inventory/Spares | F93: 0 | G93: 0 | H93: 0 | I93: 0 | J93: 1.927971305 | K93: 1.927971305 | M93: Reliability | N93: N
A94: 11975 | B94: 11975 OPSWAN Replacement 2017-2019 | C94: 2019 | D94: Replacement | F94: 0 | G94: 0 | H94: 0 | I94: 0.06309032156 | J94: 0.400763224 | K94: 0.4638535456 | M94: Condition/Obsolescence | N94: N
A95: 10386 | B95: Hummocks 132/33 kV Transformer Upgrade | C95: 2014 | D95: Connection | F95: 4.675210366 | G95: 0 | H95: 0 | I95: 0 | J95: 0 | K95: 4.675210366 | M95: Reliability | N95: N
A96: 10503 | B96: Waterloo Substation Replacement | C96: 2014 | D96: Replacement | F96: 14.18193073 | G96: 0 | H96: 0 | I96: 0 | J96: 0 | K96: 14.18193073 | M96: Refer Appendix P Revenue Proposal | N96: N
A97: 10503 | B97: Waterloo Substation Replacement | C97: 2014 | D97: Connection | F97: 5.515195285 | G97: 0 | H97: 0 | I97: 0 | J97: 0 | K97: 5.515195285 | M97: Refer Appendix P Revenue Proposal | N97: N
A98: 10509 | B98: Whyalla Terminal Substation Replac | C98: 2015 | D98: Replacement | F98: 5.232143384 | G98: 0.9046899578 | H98: 0 | I98: 0 | J98: 0 | K98: 6.136833342 | M98: Condition | N98: Y | O98: 43.9
A99: 10509 | B99: Whyalla Terminal Substation Replac | C99: 2015 | D99: Connection | F99: 0.9233194207 | G99: 0.159651169 | H99: 0 | I99: 0 | J99: 0 | K99: 1.08297059 | M99: Condition | N99: Y | O99: 43.9
A100: 10615 | B100: Ardrossan West 132kV Sub Rebuild 2x25MVA | C100: 2014 | D100: Augmentation | F100: 0.05802146341 | G100: 0 | H100: 0 | I100: 0 | J100: 0 | K100: 0.05802146341 | M100: Condition | N100: N
A101: 10615 | B101: Ardrossan West 132kV Sub Rebuild 2x25MVA | C101: 2014 | D101: Connection | F101: 0.02256390244 | G101: 0 | H101: 0 | I101: 0 | J101: 0 | K101: 0.02256390244 | M101: Condition | N101: N
A102: 10921 | B102: Spare 120 MVA & 200 MVA Transformers | C102: 2014 | D102: Inventory/Spares | F102: 3.035621951 | G102: 0 | H102: 0 | I102: 0 | J102: 0 | K102: 3.035621951 | M102: ETC spare requirement | N102: N
A103: 11101 | B103: Cultana 275_132kV Augmentation | C103: 2015 | D103: Augmentation | F103: 20.09219817 | G103: 3.496995692 | H103: 0 | I103: 0 | J103: 0 | K103: 23.58919386 | M103: Refer Appendix P Revenue Proposal | N103: Y | O103: 70.6
A104: 11109 | B104: TIPS 66kV Section Secondary Systems Upg. | C104: 2014 | D104: Replacement | F104: 1.21482439 | G104: 0 | H104: 0 | I104: 0 | J104: 0 | K104: 1.21482439 | M104: Condition/Obsolescence | N104: Y | O104: 11.2
A105: 11132 | B105: Fleurieu Peninsula Strategic Land and Easement Acquisition | C105: 2015 | D105: Easement/Land | F105: 0.4797347561 | G105: 6.866571721 | H105: 0 | I105: 0 | J105: 0 | K105: 7.346306477 | M105: Strategic Land Purchase | N105: N
A106: 11209 | B106: Munno Para New 275_66kV Substation | C106: 2015 | D106: Connection | F106: 26.30805061 | G106: 7.384498676 | H106: 0 | I106: 0 | J106: 0 | K106: 33.69254928 | M106: Refer Appendix P Revenue Proposal | N106: Y | O106: 44.85
A107: 11218 | B107: Network Configuration Management | C107: 2014 | D107: Replacement | F107: 0.1410243902 | G107: 0 | H107: 0 | I107: 0 | J107: 0 | K107: 0.1410243902 | M107: Strategic Objective - Employ new technology | N107: N
A108: 11236 | B108: IEC 61850 Training & Development Facilit | C108: 2015 | D108: Security/Compliance | F108: 1.393371341 | G108: 1.3090448 | H108: 0 | I108: 0 | J108: 0 | K108: 2.702416141 | M108: New Requirements | N108: N
A109: 11242 | B109: Aerial Services Implementation | C109: 2014 | D109: Security/Compliance | F109: 0.2427634146 | G109: 0 | H109: 0 | I109: 0 | J109: 0 | K109: 0.2427634146 | M109: Business Efficiency Improvements | N109: N
A110: 11247 | B110: Fire and Security Systems Upgrade to SDM Standard | C110: 2014 | D110: Security/Compliance | F110: 1.351064024 | G110: 0 | H110: 0 | I110: 0 | J110: 0 | K110: 1.351064024 | M110: Security / Compliance | N110: N
A111: 11302 | B111: Para 275Kv Secondary Systems & Minor Pri | C111: 2016 | D111: Replacement | F111: 12.29203841 | G111: 11.42900971 | H111: 6.563225484 | I111: 0 | J111: 0 | K111: 30.28427361 | M111: Refer Appendix P Revenue Proposal | N111: Y | O111: 49.3
A112: 11322 | B112: Barn Hill Telecoms Bearer Replacement | C112: 2014 | D112: Replacement | F112: 0.2820487805 | G112: 0 | H112: 0 | I112: 0 | J112: 0 | K112: 0.2820487805 | M112: Condition/Obsolescence | N112: N
A113: 11380 | B113: Yadnarie Reactor Replacement | C113: 2014 | D113: Replacement | F113: 0.3928536585 | G113: 0 | H113: 0 | I113: 0 | J113: 0 | K113: 0.3928536585 | M113: Condition | N113: N
A114: 11383 | B114: Mt Barker South Triple Circuit Easement Expansion | C114: 2016 | D114: Easement/Land | F114: 1.165969512 | G114: 1.094279638 | H114: 2.13634575 | I114: 0 | J114: 0 | K114: 4.3965949 | M114: Strategic Land Purchase | N114: N
A115: 11390 | B115: Tailem Bend 132kV Reactive Power Support | C115: 2014 | D115: Augmentation | F115: 1.55798374 | G115: 0 | H115: 0 | I115: 0 | J115: 0 | K115: 1.55798374 | M115: Reliability | N115: N
A116: 11396 | B116: Happy Valley Transformer Noise Mitigatio | C116: 2015 | D116: Security/Compliance | F116: 2.455215447 | G116: 0.511345625 | H116: 0 | I116: 0 | J116: 0 | K116: 2.966561072 | M116: Compliance | N116: N
A117: 11400 | B117: Davenport 275kV Reactor Replacement Stage 3 | C117: 2014 | D117: Replacement | F117: 0.2398373984 | G117: 0 | H117: 0 | I117: 0 | J117: 0 | K117: 0.2398373984 | M117: Condition | N117: N
A118: 11461 | B118: Cultana to Stony Point Land and Easement Acquisition | C118: 2015 | D118: Easement/Land | F118: 0.5867621951 | G118: 0.2774833308 | H118: 0 | I118: 0 | J118: 0 | K118: 0.864245526 | M118: Strategic Land Purchase | N118: N
A119: 11510 | B119: Kadina East 132kV Capacitor Bank | C119: 2014 | D119: Augmentation | F119: 2.218615854 | G119: 0 | H119: 0 | I119: 0 | J119: 0 | K119: 2.218615854 | M119: Reliability | N119: N
A120: 11528 | B120: South East Backbone Telecoms Stage 2 | C120: 2015 | D120: Augmentation | F120: 1.697569106 | G120: 0.08714909148 | H120: 0 | I120: 0 | J120: 0 | K120: 1.784718197 | M120: Reliability | N120: N
A121: 11543 | B121: Magill Telecoms Bearer | C121: 2015 | D121: Augmentation | F121: 8.551870122 | G121: 0.9315129409 | H121: 0 | I121: 0 | J121: 0 | K121: 9.483383063 | M121: Refer Appendix P Revenue Proposal | N121: N
A122: 11620 | B122: Dynamic Constraint Systems | C122: 2015 | D122: Augmentation | F122: 0.2216097561 | G122: 0.1265435931 | H122: 0 | I122: 0 | J122: 0 | K122: 0.3481533492 | M122: Condition/Obsolescence | N122: N
A123: 11630 | B123: Eyre Peninsula Reinforcement - Land Acqu | C123: 2015 | D123: Easement/Land | F123: 4.91822561 | G123: 5.736440093 | H123: 0 | I123: 0 | J123: 0 | K123: 10.6546657 | M123: Strategic Land Purchase | N123: N
A124: 11735 | B124: Transmission Line Design | C124: 2016 | D124: Security/Compliance | F124: 4.571060976 | G124: 3.455061683 | H124: 0.8896129878 | I124: 0 | J124: 0 | K124: 8.915735646 | M124: New Requirements | N124: N
A125: 11822 | B125: Riverland Telecoms Bearer | C125: 2015 | D125: Replacement | F125: 2.836604878 | G125: 1.26813715 | H125: 0 | I125: 0 | J125: 0 | K125: 4.104742028 | M125: Condition/Obsolescence | N125: N
A126: 11912 | B126: TIPS to Kilburn to Northfield 275kV Loop | C126: 2014 | D126: Augmentation | F126: 0.6226178862 | G126: 0 | H126: 0 | I126: 0 | J126: 0 | K126: 0.6226178862 | M126: Reliability | N126: Y | O126: 0.06
A127: 11126 | B127: 11126 Equipment Evaluation Facility | C127: 2014 | D127: Security/Compliance | F127: 0.9527360916 | G127: 0 | H127: 0 | I127: 0 | J127: 0 | K127: 0.9527360916 | M127: New Requirements | N127: N
A128: 11526 | B128: 11526 Telecommunications Network Management Systems Upgrade | C128: 2015 | D128: Replacement | F128: 0.2927332876 | G128: 0.2725278661 | H128: 0 | I128: 0 | J128: 0 | K128: 0.5652611537 | M128: Condition/Obsolescence | N128: N
A129: 11615 | B129: 11615 Standards Major Review | C129: 2016 | D129: Security/Compliance | F129: 0 | G129: 0.7128158013 | H129: 1.025241525 | I129: 0 | J129: 0 | K129: 1.738057326 | M129: New Requirements | N129: N
A130: 11732 | B130: 11732 Outage Management Functional Upgrade | C130: 2021 | D130: Augmentation | F130: 0 | G130: 0 | H130: 0 | I130: 0 | J130: 0.0424977 | K130: 0.0424977 | M130: Reliability | N130: N
A131: 11738 | B131: 11738 Mallala to Para 275kV Double Circuit Land & Easements | C131: 2015 | D131: Easement/Land | F131: 4.305799801 | G131: 4.838180871 | H131: 0 | I131: 0 | J131: 0 | K131: 9.143980672 | M131: Strategic Land Purchase | N131: Y
A132: 11739 | B132: 11739 Templers to Para 275kV Double Circuit Land & Easements | C132: 2017 | D132: Easement/Land | F132: 0.6831146186 | G132: 1.712789354 | H132: 3.498313554 | I132: 1.289061537 | J132: 0 | K132: 7.183279064 | M132: Strategic Land Purchase | N132: Y
A133: 11853 | B133: 11853 Telecommunications SDM Major Review | C133: 2017 | D133: Security/Compliance | F133: 0.06495884649 | G133: 0.218489781 | H133: 0.2735748106 | I133: 0.1073854947 | J133: 0 | K133: 0.6644089328 | M133: New Requirements | N133: N
A134: 11862 | B134: 11862 VOIP Network Refresh | C134: 2018 | D134: Replacement | F134: 0 | G134: 0.2066936394 | H134: 0.7362194472 | I134: 0.8166913377 | J134: 0.27621568 | K134: 2.035820104 | M134: Condition/Obsolescence | N134: N
A135: 12112 | B135: 12112 Outage Management Functional Upgrade | C135: 2017 | D135: Augmentation | F135: 0.03854666667 | G135: 0.2488548708 | H135: 0.4253368192 | I135: 0.1047666812 | J135: 0 | K135: 0.8175050379 | M135: New Requirements | N135: N
E139: Subtotal | F139: =SUM(F12:F138) -> 199.4670401 | G139: 139.8682912 | H139: 154.7875497 | I139: 134.7533916 | J139: 68.05692635 | K139: 696.9331989

Sheet Forecast Capex - Non-Network
A1: 4.4 FORECAST CAPEX - Non-Network - by project
G3: Home | J3: Link to Forecast Capex Instructions - Table 6.3
A7: $ million, real (as of year 6))
F8: Yearly expenditure by project
A10: Project ID | B10: Project Description | C10: Estimated Commissioning Date | D10: Category | F10: 2013/14 | G10: 2014/15 | H10: 2015/16 | I10: 2016/17 | J10: 2017/18 | K10: TOTAL | M10: REASON FOR PROJECT | N10: Business Case (Y/N)
A12: 11439 | B12: 11439 Emergency Supplies 300 Pirie St | C12: 2015 | D12: Facilities | F12: 0.05120414402 | G12: 0.0004168578465 | H12: 0 | I12: 0 | J12: 0 | K12: =SUM(F12:J12) -> 0.05162100187 | M12: Annual replacement | N12: N
A13: 11442 | B13: 11442 Fleet Replacement Vehicles 2013-2014 | C13: 2014 | D13: Facilities | F13: 0.35105 | G13: 0 | H13: 0 | I13: 0 | J13: 0 | K13: 0.35105 | M13: Annual replacement | N13: N
A14: 11470 | B14: 11470 ICT Hardware 2012-2014 | C14: 2015 | D14: Information Technology | F14: 0.7594676892 | G14: 0.1689059042 | H14: 0 | I14: 0 | J14: 0 | K14: 0.9283735934 | M14: Obsolesence | N14: N
A15: 11471 | B15: 11471 ICT Software 2012-2014 | C15: 2015 | D15: Information Technology | F15: 1.337136667 | G15: 0.4188435978 | H15: 0 | I15: 0 | J15: 0 | K15: 1.755980264 | M15: Obsolesence | N15: N
A16: 11481 | B16: 11481 Furniture and General Building Upgrades 2013 - 2014 | C16: 2015 | D16: Facilities | F16: 0.1945757473 | G16: 0.001584059817 | H16: 0 | I16: 0 | J16: 0 | K16: 0.1961598071 | M16: Annual replacement | N16: N
A17: 11482 | B17: 11482 General Utility Upgrade 2013 - 2014 | C17: 2015 | D17: Facilities | F17: 0.1157213655 | G17: 0.000942098733 | H17: 0 | I17: 0 | J17: 0 | K17: 0.1166634642 | M17: Annual replacement | N17: N
A18: 11513 | B18: 11513 Business Intelligence Functional Enhancements 2013-2015 | C18: 2015 | D18: Information Technology | F18: 0.4810724213 | G18: 0.08115411447 | H18: 0 | I18: 0 | J18: 0 | K18: 0.5622265358 | M18: Obsolesence | N18: N
A19: 11515 | B19: 11515 Data Quality | C19: 2019 | D19: Information Technology | F19: 0 | G19: 0 | H19: 0 | I19: 0.136388779 | J19: 0.3282810709 | K19: 0.4646698499 | M19: New requirements | N19: N
A20: 11516 | B20: 11516 SAP Functional Enhancements 2013-2015 | C20: 2016 | D20: Information Technology | F20: 1.304692426 | G20: 2.480900208 | H20: 0.4145153072 | I20: 0 | J20: 0 | K20: 4.200107941 | M20: New requirements | N20: N
A21: 11517 | B21: 11517 SAP Upgrade Technology | C21: 2016 | D21: Information Technology | F21: 0 | G21: 0.6390577662 | H21: 3.168868747 | I21: 0 | J21: 0 | K21: 3.807926513 | M21: Obsolesence | N21: N
A22: 11521 | B22: 11521 Database Management Systems Consolidation 2013-2015 | C22: 2015 | D22: Information Technology | F22: 0.4367883778 | G22: 0.03164963291 | H22: 0 | I22: 0 | J22: 0 | K22: 0.4684380107 | M22: New requirements | N22: N
A23: 11523 | B23: 11523 ICT Systems Management 2014-2015 | C23: 2016 | D23: Information Technology | F23: 0 | G23: 0.1364848395 | H23: 0.3736504046 | I23: 0 | J23: 0 | K23: 0.5101352441 | M23: New requirements | N23: N
A24: 11524 | B24: 11524 IT Storage and Virtualisation Refurbishment | C24: 2016 | D24: Information Technology | F24: 0.7458675998 | G24: 1.214907287 | H24: 0.3308360192 | I24: 0 | J24: 0 | K24: 2.291610906 | M24: Obsolesence | N24: N
A25: 11532 | B25: 11532 Fire Protection Rymill 2014 - 2015 | C25: 2015 | D25: Facilities | F25: 0 | G25: 0.02352189875 | H25: 0 | I25: 0 | J25: 0 | K25: 0.02352189875 | M25: Annual replacement | N25: N
A26: 11533 | B26: 11533 Business Intelligence Technology Upgrade 2014-2015 | C26: 2017 | D26: Information Technology | F26: 0 | G26: 0.3639502486 | H26: 0.996620625 | I26: 0.6283793709 | J26: 0 | K26: 1.988950245 | M26: Obsolesence | N26: N
A27: 11538 | B27: 11538 Project & Portfolio Management Systems 2014 | C27: 2018 | D27: Information Technology | F27: 0 | G27: 0 | H27: 0.4171600807 | I27: 0.9931834027 | J27: 0.6206013333 | K27: 2.030944817 | M27: New requirements | N27: N
A28: 11539 | B28: 11539 Records Management 2013-2015 | C28: 2014 | D28: Information Technology | F28: 0.7637096154 | G28: 0 | H28: 0 | I28: 0 | J28: 0 | K28: 0.7637096154 | M28: Obsolesence | N28: N
A29: 11554 | B29: 11554 UPS Battery Bank No.2 | C29: 2015 | D29: Facilities | F29: 0 | G29: 0.1073825813 | H29: 0 | I29: 0 | J29: 0 | K29: 0.1073825813 | M29: Obsolesence | N29: N
A30: 11558 | B30: 11558 Electrical 300 Pirie St. 2014-2015 | C30: 2015 | D30: Facilities | F30: 0 | G30: 0.01534036875 | H30: 0 | I30: 0 | J30: 0 | K30: 0.01534036875 | M30: Annual replacement | N30: N
A31: 11559 | B31: 11559 Fleet Replacement Vehicles 2014-2015 | C31: 2015 | D31: Facilities | F31: 0 | G31: 0.1738575125 | H31: 0 | I31: 0 | J31: 0 | K31: 0.1738575125 | M31: Annual replacement | N31: N
A32: 11581 | B32: 11581 Furniture and General Building Upgrades 2014 - 2015 | C32: 2015 | D32: Facilities | F32: 0 | G32: 0.200447485 | H32: 0 | I32: 0 | J32: 0 | K32: 0.200447485 | M32: Annual replacement | N32: N
A33: 11610 | B33: 11610 One Network Refresh 2013-2016 | C33: 2016 | D33: Information Technology | F33: 0.4111692765 | G33: 0.7060501984 | H33: 0.01164112887 | I33: 0 | J33: 0 | K33: 1.128860604 | M33: Obsolesence | N33: N
A34: 11618 | B34: 11618 Carpet Keswick 2015 -2016 | C34: 2016 | D34: Facilities | F34: 0 | G34: 0 | H34: 0.21465675 | I34: 0 | J34: 0 | K34: 0.21465675 | M34: Annual replacement | N34: N
A35: 11619 | B35: 11619 Fire Protection 300 Pirie 2015 - 2016 | C35: 2016 | D35: Facilities | F35: 0 | G35: 0 | H35: 0.0367983 | I35: 0 | J35: 0 | K35: 0.0367983 | M35: Annual replacement | N35: N
A36: 11648 | B36: 11648 UPS & Battery Bank BUCC 2015-2016 | C36: 2016 | D36: Facilities | F36: 0 | G36: 0 | H36: 0.05110875 | I36: 0 | J36: 0 | K36: 0.05110875 | M36: Annual replacement | N36: N
A37: 11649 | B37: 11649 Mechanical 300 Pirie St. 2015-2016 | C37: 2016 | D37: Facilities | F37: 0 | G37: 0 | H37: 0.066441375 | I37: 0 | J37: 0 | K37: 0.066441375 | M37: Annual replacement | N37: N
A38: 11650 | B38: 11650 Electrical 300 Pirie St. & Keswick 2015-2016 | C38: 2016 | D38: Facilities | F38: 0 | G38: 0 | H38: 0.086884875 | I38: 0 | J38: 0 | K38: 0.086884875 | M38: Annual replacement | N38: N
A39: 11651 | B39: 11651 Carpet 300 & 276 Pirie St. 2015-2016 | C39: 2016 | D39: Facilities | F39: 0 | G39: 0 | H39: 0.045997875 | I39: 0 | J39: 0 | K39: 0.045997875 | M39: Annual replacement | N39: N
A40: 11652 | B40: 11652 Fleet Replacement Vehicles 2015-2016 | C40: 2016 | D40: Facilities | F40: 0 | G40: 0 | H40: 0.1022175 | I40: 0 | J40: 0 | K40: 0.1022175 | M40: Annual replacement | N40: N
A41: 11657 | B41: 11657 Meduim Term Accomodation | C41: 2016 | D41: Facilities | F41: 0 | G41: 0.9071494927 | H41: 1.290984682 | I41: 0 | J41: 0 | K41: 2.198134175 | M41: New requirements | N41: N
A42: 11670 | B42: 11670 ICT Hardware 2014-2016 | C42: 2017 | D42: Information Technology | F42: 0.08410467988 | G42: 0.514631956 | H42: 0.8691354576 | I42: 0.06602109713 | J42: 0 | K42: 1.533893191 | M42: Obsolesence | N42: N
A43: 11671 | B43: 11671 ICT Software 2014-2016 | C43: 2017 | D43: Information Technology | F43: 0.1370653103 | G43: 0.8148230432 | H43: 1.416429161 | I43: 0.2190316894 | J43: 0 | K43: 2.587349204 | M43: Obsolesence | N43: N
A44: 11681 | B44: 11681 Furniture and General Building Upgrades 2015 -2016 | C44: 2016 | D44: Facilities | F44: 0 | G44: 0.02161212172 | H44: 0.239053413 | I44: 0 | J44: 0 | K44: 0.2606655347 | M44: Annual replacement | N44: N
A45: 11703 | B45: 11703 Drawing Management Systems Technology Upgrade 2015-2017 | C45: 2018 | D45: Information Technology | F45: 0 | G45: 0 | H45: 0 | I45: 0.03969169688 | J45: 0.6687244375 | K45: 0.7084161344 | M45: Obsolesence | N45: N
A46: 11705 | B46: 11705 Drawing Management Systems Augmentation 2015-2017 | C46: 2015 | D46: Information Technology | F46: 0 | G46: 0.1943113375 | H46: 0 | I46: 0 | J46: 0 | K46: 0.1943113375 | M46: New requirements | N46: N
A47: 11706 | B47: 11706 Archiving Solutions 2013-2015 | C47: 2015 | D47: Information Technology | F47: 0.5883861085 | G47: 0.3192162194 | H47: 0 | I47: 0 | J47: 0 | K47: 0.9076023278 | M47: New requirements | N47: N
A48: 11715 | B48: 11715 Project & Portfolio Management Systems Functional Enhancements 2015-2017 | C48: 2016 | D48: Information Technology | F48: 0.3267219957 | G48: 0.6414717477 | H48: 0.05757228863 | I48: 0 | J48: 0 | K48: 1.025766032 | M48: New requirements | N48: N
A49: 11717 | B49: 11717 UPS Battery Bank | C49: 2017 | D49: Facilities | F49: 0 | G49: 0 | H49: 0 | I49: 0.1065694875 | J49: 0 | K49: 0.1065694875 | M49: Obsolesence | N49: N
A50: 11731 | B50: 11731 Fleet Vehicles Purchase 2016-2017 | C50: 2017 | D50: Facilities | F50: 0 | G50: 0 | H50: 0 | I50: 0.123823595 | J50: 0 | K50: 0.123823595 | M50: Annual replacement | N50: N
A51: 11781 | B51: 11781 Furniture and General Building Upgrades 2016 - 2017 | C51: 2017 | D51: Facilities | F51: 0 | G51: 0 | H51: 0 | I51: 0.29636467 | J51: 0 | K51: 0.29636467 | M51: Annual replacement | N51: N
A52: 11782 | B52: 11782 Building Generator 300 Pirie St | C52: 2017 | D52: Facilities | F52: 0 | G52: 0 | H52: 0 | I52: 0.046281606 | J52: 0 | K52: 0.046281606 | M52: Annual replacement | N52: N
A53: 11802 | B53: 11802 Business Intelligence Functional Enhancements 2017-2018 | C53: 2018 | D53: Information Technology | F53: 0 | G53: 0 | H53: 0 | I53: 0.07933138608 | J53: 0.1789344977 | K53: 0.2582658837 | M53: Obsolesence | N53: N
A54: 11803 | B54: 11803 SAP Functional Enhancements 2017-2018 | C54: 2019 | D54: Information Technology | F54: 0 | G54: 0 | H54: 0 | I54: 0.6181088589 | J54: 1.185359436 | K54: 1.803468295 | M54: New requirements | N54: N
A55: 11807 | B55: 11807 ICT Systems Management 2017-2019 | C55: 2020 | D55: Information Technology | F55: 0 | G55: 0 | H55: 0 | I55: 0 | J55: 0.01200185092 | K55: 0.01200185092 | M55: Obsolesence | N55: N
A56: 11808 | B56: 11808 Office Systems Refresh | C56: 2017 | D56: Information Technology | F56: 0.01061069175 | G56: 0.7672219828 | H56: 1.112392364 | I56: 1.066977847 | J56: 0 | K56: 2.957202886 | M56: Obsolesence | N56: N
A57: 11870 | B57: 11870 ICT Hardware 2016-2018 | C57: 2019 | D57: Information Technology | F57: 0 | G57: 0 | H57: 0.07761806803 | I57: 0.4756382713 | J57: 0.799829835 | K57: 1.353086174 | M57: Obsolesence | N57: N
A58: 11871 | B58: 11871 ICT Software 2016-2018 | C58: 2019 | D58: Information Technology | F58: 0 | G58: 0 | H58: 0.112587339 | I58: 0.6709484389 | J58: 1.160177199 | K58: 1.943712977 | M58: Obsolesence | N58: N
A59: 11880 | B59: 11880 Fire Protection 300 Pirie St - Sprinkler System | C59: 2018 | D59: Facilities | F59: 0 | G59: 0 | H59: 0 | I59: 0 | J59: 0.1113035 | K59: 0.1113035 | M59: Obsolesence | N59: N
A60: 11881 | B60: 11881 Furniture and General Building Upgrades 2017 - 2018 | C60: 2018 | D60: Facilities | F60: 0 | G60: 0 | H60: 0 | I60: 0 | J60: 0.2043937 | K60: 0.2043937 | M60: Annual replacement | N60: N
A61: 11882 | B61: 11882 General Utility Upgrade 2017 - 2018 | C61: 2018 | D61: Facilities | F61: 0 | G61: 0 | H61: 0 | I61: 0 | J61: 0.1254694 | K61: 0.1254694 | M61: Annual replacement | N61: N
A62: 11883 | B62: 11883 ICT Data Centre Expansion | C62: 2018 | D62: Information Technology | F62: 0 | G62: 0 | H62: 1.139087182 | I62: 2.240048835 | J62: 0.1806812783 | K62: 3.559817296 | M62: New requirements | N62: N
A63: 11884 | B63: 11884 Fire Protection Rymill - Sprinkler System | C63: 2018 | D63: Facilities | F63: 0 | G63: 0 | H63: 0 | I63: 0.05280620491 | J63: 0.0131252034 | K63: 0.06593140831 | M63: Annual replacement | N63: N
A64: 11896 | B64: 11896 Mechanical 300 & 276 Pirie St. 2017-2018 | C64: 2018 | D64: Facilities | F64: 0 | G64: 0 | H64: 0 | I64: 0 | J64: 0.05767545 | K64: 0.05767545 | M64: Annual replacement | N64: N
A65: 11899 | B65: 11899 Fleet Vehicles Purchase 2017-2018 | C65: 2018 | D65: Facilities | F65: 0 | G65: 0 | H65: 0 | I65: 0 | J65: 0.1376116 | K65: 0.1376116 | M65: Annual replacement | N65: N
A66: 12002 | B66: 12002 Corporate Network Refresh 2018-2020 | C66: 2021 | D66: Information Technology | F66: 0 | G66: 0 | H66: 0 | I66: 0 | J66: 0.07702167607 | K66: 0.07702167607 | M66: Obsolesence | N66: N
A67: 12003 | B67: 12003 Geospacial Systems Functional Enhancements | C67: 2016 | D67: Information Technology | F67: 0.3280711697 | G67: 1.007863426 | H67: 0.9191421656 | I67: 0 | J67: 0 | K67: 2.255076761 | M67: New requirements | N67: N
A68: 12070 | B68: 12070 ICT Hardware 2018-2020 | C68: 2020 | D68: Information Technology | F68: 0 | G68: 0 | H68: 0 | I68: 0 | J68: 0.04803246421 | K68: 0.04803246421 | M68: Obsolesence | N68: N
A69: 10801 | B69: Geospatial Systems | C69: 2014 | D69: Information Technology | F69: 0.3276178862 | G69: 0 | H69: 0 | I69: 0 | J69: 0 | K69: 0.3276178862 | M69: New Requirements | N69: N
A70: 11338 | B70: Estimating System Functional Upgrade | C70: 2014 | D70: Information Technology | F70: 0.7000853659 | G70: 0 | H70: 0 | I70: 0 | J70: 0 | K70: 0.7000853659 | M70: Software Upgrades | N70: N
A71: 11386 | B71: Business Process Improvement - Stage 2 | C71: 2014 | D71: Information Technology | F71: 0.4633658537 | G71: 0 | H71: 0 | I71: 0 | J71: 0 | K71: 0.4633658537 | M71: New requirements | N71: N
A72: 11398 | B72: People Management System | C72: 2014 | D72: Information Technology | F72: 0.119199187 | G72: 0 | H72: 0 | I72: 0 | J72: 0 | K72: 0.119199187 | M72: New Software | N72: N
A73: 11399 | B73: Environment Health and Safety Management System | C73: 2014 | D73: Information Technology | F73: 0.4699134146 | G73: 0 | H73: 0 | I73: 0 | J73: 0 | K73: 0.4699134146 | M73: New Software | N73: N
A74: 11435 | B74: Outage Optimisation Improvements | C74: 2014 | D74: Information Technology | F74: 0.5567945122 | G74: 0 | H74: 0 | I74: 0 | J74: 0 | K74: 0.5567945122 | M74: New requirements | N74: N
A75: 11851 | B75: 11851 Transmission Billing | C75: 2019 | D75: Information Technology | F75: 0 | G75: 0 | H75: 0 | I75: 0.01427444511 | J75: 0.2161274468 | K75: 0.2304018919 | M75: Condition/Obsolescence | N75: N
A76: 11434 | B76: 11434 Asset Condition Monitoring Systems | C76: 2015 | D76: Information Technology | F76: 0.5060250661 | G76: 0.26228111 | H76: 0 | I76: 0 | J76: 0 | K76: =SUM(F76:J76) -> 0.768306176 | M76: New Requirements | N76: N
E80: Subtotal | F80: =SUM(F12:F79) -> 11.57041657 | G80: 12.2159791 | H80: 13.55139986 | I80: 7.873869682 | J80: 6.125351379 | K80: 51.33701659
